Workbook

Sheet Indhold
A1: Investering Danmarks markedsstatistik 30.09.2024
A3: 1. Investeringsområde
A4: 1.1 | B4: Formue i detailafdelinger opgjort på investeringsområde
A5: 1.2 | B5: Investorernes nettokøb i detailafdelingerne opgjort på investeringsområde
A6: 1.3 | B6: Antal detailfonde opgjort på investeringsområde
A7: 1.4 | B7: Udbytter i detailfonde opgjort på investeringsområde og foreningsgruppe
A8: 1.5 | B8: Nettoflow i detailfonde opgjort på investeringsområde og foreningsgruppe
A9: 2. Investeringsforeninger
A10: 2.1 | B10: Branchens samlede formue opgjort på foreningsgruppe
A11: 2.2 | B11: Branchens samlede formue opgjort på foreningsgruppe og afdelingstype
A12: 2.3 | B12: Investorernes nettokøb og nettoflow i detailafdelingerne opgjort på foreningsgruppe
A13: 3. Investeringsforvaltningsselskaber
A14: 3.1 | B14: Branchens samlede formue opgjort på investeringsforvaltningsselskab
A15: 4. Afdelingstyper
A16: 4.1 | B16: Branchens samlede formue opgjort på fondstype
A17: 4.1 | B17: Branchens samlede formue opgjort på fondstype, netto
A18: 4.1 | B18: Investorernes nettokøb opgjort på fondstype
A19: 4.1 | B19: Investorernes nettokøb opgjort på fondstype, netto
A20: 4.1 | B20: Antal afdelinger og klasser opgjort på fondstype
A21: 4.1 | B21: Branchens samlede formue opgjort på foreningstype
A22: 5. Kategoriafkast
A23: 5.1 | B23: Månedlig formuevægtet kategoriafkast siden januar 2000
A33: https://finansdanmark.dk/tal-og-data/investeringsfondsstatistikker/forklaring-til-statistikker/om-brutto-og-nettotal-i-den-maanedlige-markedsstatistik/
A35: Investering Danmark Amaliegade 7 DK-1256 København K Tel: 3370 1000

Sheet 1.1 Formue (D)
A1: Formue i detailfonde opgjort på investeringsområde
B2: Bruttoformue | I2: Nettoformue*
A3: Kursværdi - mio. kroner | B3: 2019 | C3: 2020 | D3: 2021 | E3: 2022 | F3: 2023 | G3: august | H3: september | I3: 2019 | J3: 2020 | K3: 2021 | L3: 2022 | M3: 2023 | N3: august | O3: september
A4: Aktier Danmark | B4: 28647.10542 | C4: 39352.10018 | D4: 50428.52546 | E4: 41394.6241 | F4: 43988.90571 | G4: 53896.70779 | H4: 53622.99612 | I4: 25698.33054 | J4: 36082.77515 | K4: 44771.9163 | L4: 36407.51584 | M4: 38310.01974 | N4: 47024.07926 | O4: 46714.08839
A5: Aktier Brancher | B5: 124.248596 | C5: 149.286131 | D5: 0 | E5: 50.014755 | F5: 37.71201 | G5: 29.383882 | H5: 28.579538 | I5: 124.2485955 | J5: 149.2861305 | K5: 0 | L5: 50.014755 | M5: 37.71201 | N5: 29.383882 | O5: 28.579538
A6: Aktier Ejendomme | B6: 5357.548054 | C6: 5511.346531 | D6: 7847.094302 | E6: 9171.609592 | F6: 6018.494822 | G6: 4341.445528 | H6: 4374.319906 | I6: 4782.119233 | J6: 4882.380535 | K6: 6830.42704 | L6: 8034.769497 | M6: 5353.751566 | N6: 3601.677407 | O6: 3632.652483
A7: Aktier Emerging markets | B7: 28253.65642 | C7: 32421.49547 | D7: 35223.96247 | E7: 25932.73734 | F7: 27560.87843 | G7: 27807.17827 | H7: 29775.98022 | I7: 20090.83232 | J7: 22981.06732 | K7: 23705.71078 | L7: 16350.18327 | M7: 16810.74113 | N7: 16667.32416 | O7: 19484.89272
A8: Aktier Enkeltlande | B8: 586.5191903 | C8: 343.6171663 | D8: 441.0812704 | E8: 180.6598426 | F8: 318.7496852 | G8: 500.5818706 | H8: 523.6377266 | I8: 586.5191907 | J8: 343.6171663 | K8: 441.0812704 | L8: 180.6598426 | M8: 318.7496852 | N8: 500.5818706 | O8: 523.6377266
A9: Aktier Europa | B9: 22746.48079 | C9: 20950.56007 | D9: 25575.10662 | E9: 16696.20823 | F9: 15266.77802 | G9: 16835.93145 | H9: 16834.98945 | I9: 20539.6035 | J9: 18444.93691 | K9: 23731.94997 | L9: 15660.75138 | M9: 14310.70467 | N9: 15773.09361 | O9: 15739.17976
A10: Aktier Fjernøsten | B10: 8973.323932 | C10: 7635.403939 | D10: 8206.95293 | E10: 5766.238397 | F10: 4062.146624 | G10: 4078.288818 | H10: 4080.540144 | I10: 8255.358113 | J10: 6618.969025 | K10: 7140.621391 | L10: 4741.091135 | M10: 3378.415917 | N10: 3185.279776 | O10: 3199.548741
A11: Aktier Globale | B11: 269452.3067 | C11: 300009.03 | D11: 406208.8558 | E11: 336247.3986 | F11: 400037.9683 | G11: 471416.3209 | H11: 474388.1431 | I11: 223176.8669 | J11: 249226.4834 | K11: 332103.35 | L11: 272476.5351 | M11: 319637.4968 | N11: 384442.4675 | O11: 386818.4286
A12: Aktier Health Care | B12: 819.1255167 | C12: 820.4353929 | D12: 718.3725068 | E12: 626.5959946 | F12: 1552.023431 | G12: 518.6324656 | H12: 513.5642001 | I12: 819.1255167 | J12: 820.4353929 | K12: 718.3725068 | L12: 626.5959946 | M12: 1174.030883 | N12: 518.6324656 | O12: 513.5642001
A13: Aktier IT | B13: 1543.1 | C13: 2483.249045 | D13: 3311.901258 | E13: 1970.375319 | F13: 3458.659162 | G13: 4792.550351 | H13: 4901.816092 | I13: 1543.1 | J13: 2483.249045 | K13: 3311.901258 | L13: 1970.375319 | M13: 3458.659162 | N13: 4792.550351 | O13: 4901.816092
A14: Aktier Japan | B14: 2762.782569 | C14: 1595.666178 | D14: 1456.504669 | E14: 1076.283089 | F14: 1153.657148 | G14: 1569.178563 | H14: 1526.279441 | I14: 2466.272071 | J14: 1451.14596 | K14: 1432.067965 | L14: 1049.31286 | M14: 1090.320039 | N14: 1453.314437 | O14: 1411.208506
A15: Aktier Kina | B15: 746.2485864 | C15: 682.1377789 | D15: 623.0260909 | E15: 281.7900513 | F15: 211.2886703 | G15: 200.6543351 | H15: 241.1887111 | I15: 746.248583 | J15: 682.1377783 | K15: 623.0260893 | L15: 281.7900545 | M15: 211.2886679 | N15: 200.654338 | O15: 241.1887111
A16: Aktier Latinamerika | B16: 163.0567391 | C16: 133.3110749 | D16: 0 | E16: 0 | F16: 0 | G16: 0 | H16: 0 | I16: 163.0567391 | J16: 133.3110749 | K16: 0 | L16: 0 | M16: 0 | N16: 0 | O16: 0
A17: Aktier Nordamerika | B17: 25043.94084 | C17: 25123.39246 | D17: 26549.51835 | E17: 19061.96599 | F17: 15167.64141 | G17: 21241.57028 | H17: 21826.1745 | I17: 22091.51877 | J17: 21860.05884 | K17: 23276.95724 | L17: 16440.08165 | M17: 13880.18929 | N17: 19367.2629 | O17: 20009.93471
A18: Aktier Norden | B18: 755.9916071 | C18: 1367.057946 | D18: 2564.886606 | E18: 1941.299937 | F18: 1627.16029 | G18: 1590.766643 | H18: 1431.357355 | I18: 754.880473 | J18: 1365.765002 | K18: 2563.408979 | L18: 1941.299937 | M18: 1627.16029 | N18: 1590.766643 | O18: 1431.357355
A19: Aktier Tyskland | B19: 443.024958 | C19: 383.9665862 | D19: 413.2391501 | E19: 269.5475996 | F19: 265.9254764 | G19: 246.94181 | H19: 247.5084861 | I19: 443.024958 | J19: 383.9665862 | K19: 413.2391501 | L19: 269.5475996 | M19: 265.9254764 | N19: 246.94181 | O19: 247.5084861
A20: Aktier Østeuropa | B20: 463.3655928 | C20: 231.6056492 | D20: 260.1575484 | E20: 0.81653098 | F20: 0.83655918 | G20: 0.86091533 | H20: 3.30693095 | I20: 463.3655928 | J20: 231.6056492 | K20: 260.1575484 | L20: 0.81653098 | M20: 0.83655918 | N20: 0.86091533 | O20: 3.30693095
A21: Kapitalforeninger Aktier | B21: 18868.2685 | C21: 22450.74171 | D21: 29943.21429 | E21: 24175.02138 | F21: 25630.06557 | G21: 27661.50917 | H21: 26276.15652 | I21: 18514.44337 | J21: 22450.74171 | K21: 29219.85004 | L21: 23524.96894 | M21: 24899.42182 | N21: 26267.99505 | O21: 26276.15652
A22: Udenlandske aktier i alt | B22: =SUM(B5:B21) -> 387102.9886 | C22: =SUM(C5:C21) -> 422292.3032 | D22: =SUM(D5:D21) -> 549343.8739 | E22: =SUM(E5:E21) -> 443448.5626 | F22: 502369.9857 | G22: =SUM(G5:G21) -> 582831.7952 | H22: 586973.5423 | I22: =SUM(I5:I21) -> 325560.584 | J22: =SUM(J5:J21) -> 354509.1576 | K22: =SUM(K5:K21) -> 455772.1212 | L22: =SUM(L5:L21) -> 363598.7939 | M22: 406455.404 | N22: 478638.7871 | O22: 484462.9611
A23: Obligationer Korte Danske | B23: 46053.87027 | C23: 46653.71342 | D23: 47980.8239 | E23: 48023.19345 | F23: 53151.51068 | G23: 53627.86397 | H23: 57209.92775 | I23: 44177.0735 | J23: 44537.48453 | K23: 44041.15704 | L23: 43367.54026 | M23: 47805.14224 | N23: 48744.41573 | O23: 50135.69713
A24: Obligationer Lange Danske | B24: 49141.16471 | C24: 49229.19741 | D24: 52686.07192 | E24: 46358.24691 | F24: 53659.66316 | G24: 56594.7518 | H24: 57367.80747 | I24: 32817.91721 | J24: 30287.00943 | K24: 31756.91725 | L24: 29139.10304 | M24: 35539.79408 | N24: 39443.18546 | O24: 40638.57177
A25: Obligationer Øvrige Danske | B25: 109546.3425 | C25: 108034.6897 | D25: 105471.6372 | E25: 102644.1937 | F25: 101931.3148 | G25: 115910.6563 | H25: 113917.4752 | I25: 103828.4461 | J25: 102319.4957 | K25: 98100.09583 | L25: 88376.53137 | M25: 85653.17367 | N25: 98051.75788 | O25: 95801.40315
A26: Obligationer Danske Indeksobligationer | B26: 129.2229238 | C26: 125.4710767 | D26: 115.2694455 | E26: 103.6730181 | F26: 92.78745075 | G26: 81.43766476 | H26: 82.88306798 | I26: 129.2229238 | J26: 125.4710767 | K26: 115.2694455 | L26: 103.6730181 | M26: 92.78745075 | N26: 81.43766476 | O26: 82.88306798
A27: Danske obligationer i alt | B27: =SUM(B23:B26) -> 204870.6004 | C27: =SUM(C23:C26) -> 204043.0716 | D27: =SUM(D23:D26) -> 206253.8024 | E27: =SUM(E23:E26) -> 197129.3071 | F27: 208835.2761 | G27: =SUM(G23:G26) -> 226214.7097 | H27: 228578.0935 | I27: =SUM(I23:I26) -> 180952.6597 | J27: =SUM(J23:J26) -> 177269.4607 | K27: =SUM(K23:K26) -> 174013.4396 | L27: =SUM(L23:L26) -> 160986.8477 | M27: 169090.8974 | N27: 186320.7967 | O27: 186658.5551
A28: Obligationer Investment Grade | B28: 29659.44147 | C28: 38383.43911 | D28: 40315.95147 | E28: 35620.91404 | F28: 40145.77039 | G28: 39264.61136 | H28: 40032.6773 | I28: 27828.62531 | J28: 34301.07408 | K28: 32409.35457 | L28: 27107.60304 | M28: 33088.65674 | N28: 32569.36103 | O28: 33192.13496
A29: Obligationer Non-Investment Grade | B29: 39741.85314 | C29: 48841.20207 | D29: 47617.51228 | E29: 35857.7491 | F29: 39660.60522 | G29: 44457.73158 | H29: 44924.61947 | I29: 33093.06216 | J29: 40871.40432 | K29: 36450.01333 | L29: 29333.10893 | M29: 31387.56408 | N29: 36159.42034 | O29: 36411.80601
A30: Obligationer Emerging Markets | B30: 59626.33821 | C30: 60286.90828 | D30: 58256.07232 | E30: 41434.13575 | F30: 38531.84352 | G30: 41361.21074 | H30: 43408.21438 | I30: 46981.47216 | J30: 48067.59789 | K30: 44564.63664 | L30: 30006.48282 | M30: 29287.79169 | N30: 31375.58147 | O30: 33076.97059
A31: Obligationer Øvrige | B31: 61724.99703 | C31: 64785.36021 | D31: 70480.19942 | E31: 60732.90257 | F31: 64030.15649 | G31: 60643.93249 | H31: 60473.69171 | I31: 57294.86452 | J31: 59889.52536 | K31: 65112.67985 | L31: 56183.90116 | M31: 58955.11628 | N31: 56142.98173 | O31: 55904.19123
A32: Obligationer Udenlandske Indeksobligationer | B32: 4092.434163 | C32: 4296.921812 | D32: 9339.882382 | E32: 7893.974817 | F32: 12552.67697 | G32: 12576.0637 | H32: 12334.17039 | I32: 3759.411464 | J32: 4048.84372 | K32: 7365.539725 | L32: 6309.088773 | M32: 11072.59666 | N32: 11664.10422 | O32: 11420.56242
A33: Kapitalforeninger Obligationer Udenlandske | B33: 13161.48453 | C33: 14091.15873 | D33: 15406.55143 | E33: 12748.96388 | F33: 13763.24686 | G33: 12395.99203 | H33: 12491.31972 | I33: 11883.47573 | J33: 12773.54384 | K33: 13460.29865 | L33: 11779.72702 | M33: 12706.44662 | N33: 12395.99203 | O33: 12491.51843
A34: Udenlandske obligationer i alt | B34: =SUM(B28:B33) -> 208006.5485 | C34: =SUM(C28:C33) -> 230684.9902 | D34: =SUM(D28:D33) -> 241416.1693 | E34: =SUM(E28:E33) -> 194288.6402 | F34: 208684.2994 | G34: =SUM(G28:G33) -> 210699.5419 | H34: 213664.693 | I34: =SUM(I28:I33) -> 180840.9113 | J34: =SUM(J28:J33) -> 199951.9892 | K34: =SUM(K28:K33) -> 199362.5228 | L34: =SUM(L28:L33) -> 160719.9117 | M34: 176498.1721 | N34: 180307.4408 | O34: 182497.1836
A35: Pengemarkedsforeninger | B35: 247.210166 | C35: 0 | D35: 0 | E35: 0 | F35: 0 | G35: 0 | H35: 0 | I35: 247.2101663 | J35: 0 | K35: 0 | L35: 0 | M35: 0 | N35: 0 | O35: 0
A36: Øvrige | B36: 8889.656114 | C36: 10006.80646 | D36: 12438.52253 | E36: 9692.250919 | F36: 10160.56602 | G36: 10624.13044 | H36: 10782.37005 | I36: 8412.053783 | J36: 10006.80646 | K36: 12438.52253 | L36: 9692.250919 | M36: 10160.56602 | N36: 10624.13018 | O36: 10782.36978
A37: Blandede Balanceret | B37: 84742.07685 | C37: 99667.37239 | D37: 123158.5935 | E37: 112291.4857 | F37: 120227.3651 | G37: 127355.2328 | H37: 128681.29 | I37: 78781.41577 | J37: 92818.06411 | K37: 114625.7951 | L37: 104778.9298 | M37: 112703.0617 | N37: 119549.2391 | O37: 120860.4944
A38: Blandede Fleksibel | B38: 16490.5797 | C38: 24739.99691 | D38: 34331.54512 | E38: 29294.64768 | F38: 28973.31632 | G38: 32829.60373 | H38: 33238.43956 | I38: 14188.20709 | J38: 22814.69154 | K38: 25575.61984 | L38: 22388.10708 | M38: 21147.34619 | N38: 24154.27685 | O38: 24458.24014
A39: Blandede Høj Aktieandel | B39: 16889.39768 | C39: 19278.62994 | D39: 30265.05316 | E39: 35844.75682 | F39: 44827.45044 | G39: 54234.27814 | H39: 55329.14955 | I39: 16889.70729 | J39: 19278.62994 | K39: 30265.05316 | L39: 35844.75682 | M39: 44827.45044 | N39: 54190.45032 | O39: 55287.52104
A40: Blandede Lav Aktieandel | B40: 42436.50289 | C40: 45065.54671 | D40: 48141.44022 | E40: 52555.23214 | F40: 51858.60654 | G40: 49935.10251 | H40: 50205.79264 | I40: 42436.53269 | J40: 45065.54671 | K40: 48141.44022 | L40: 52555.23214 | M40: 51858.60654 | N40: 49901.10036 | O40: 50173.27884
A41: Blandede i alt | B41: =SUM(B37:B40) -> 160558.5571 | C41: =SUM(C37:C40) -> 188751.5459 | D41: =SUM(D37:D40) -> 235896.632 | E41: =SUM(E37:E40) -> 229986.1223 | F41: 245886.7384 | G41: =SUM(G37:G40) -> 264354.2172 | H41: 267454.6718 | I41: =SUM(I37:I40) -> 152295.8629 | J41: =SUM(J37:J40) -> 179976.9323 | K41: =SUM(K37:K40) -> 218607.9083 | L41: =SUM(L37:L40) -> 215567.0258 | M41: 230536.4649 | N41: 247795.0666 | O41: 250779.5344
A42: Kapitalforeninger Blandede | B42: 42267.29238 | C42: 55780.09596 | D42: 45357.66406 | E42: 15438.46931 | F42: 15082.32566 | G42: 17254.57568 | H42: 19249.39546 | I42: 25870.5933 | J42: 37040.71356 | K42: 45357.66406 | L42: 15438.46931 | M42: 15082.32566 | N42: 17253.28207 | O42: 19161.96648
A43: Kapitalforeninger Øvrige | B43: 1171.705239 | C43: 1644.350386 | D43: 1995.596295 | E43: 1897.947174 | F43: 4195.029253 | G43: 6277.1264 | H43: 6394.175286 | I43: 1171.705239 | J43: 1644.350386 | K43: 1995.596299 | L43: 1897.947174 | M43: 4195.029253 | N43: 6028.55952 | O43: 6149.153637
A44: Kapitalforeninger Hedgestrategier | B44: 26043.39618 | C44: 26171.54861 | D44: 26713.75875 | E44: 18226.75641 | F44: 17581.26914 | G44: 16194.17355 | H44: 16001.17987 | I44: 25810.01649 | J44: 25928.57601 | K44: 26435.32608 | L44: 18032.0534 | M44: 17394.55306 | N44: 16023.57637 | O44: 15809.52204
A45: Andre Alternative Investeringsfonde | B45: 0 | C45: 0 | D45: 0 | E45: 537.6538018 | F45: 881.4223665 | G45: 1777.175483 | H45: 1837.024092 | I45: 0 | J45: 0 | K45: 0 | L45: 365.0596378 | M45: 746.9859008 | N45: 1777.175483 | O45: 1837.024092
A46: I alt danske foreninger | B46: =B4+B22+B27+B34+B35+B36+B41+B42+B43+B44+B45 -> 1067805.06 | C46: =C4+C22+C27+C34+C35+C36+C41+C42+C43+C44+C45 -> 1178726.813 | D46: =D4+D22+D27+D34+D35+D36+D41+D42+D43+D44+D45 -> 1369844.545 | E46: =E4+E22+E27+E34+E35+E36+E41+E42+E43+E44+E45 -> 1152040.334 | F46: 1257665.818 | G46: =G4+G22+G27+G34+G35+G36+G41+G42+G43+G44+G45 -> 1390124.153 | H46: 1404558.141 | I46: =I4+I22+I27+I34+I35+I36+I41+I42+I43+I44+I45 -> 926859.9274 | J46: =J4+J22+J27+J34+J35+J36+J41+J42+J43+J44+J45 -> 1022410.761 | K46: =K4+K22+K27+K34+K35+K36+K41+K42+K43+K44+K45 -> 1178755.017 | L46: =L4+L22+L27+L34+L35+L36+L41+L42+L43+L44+L45 -> 982705.8754 | M46: 1068470.418 | N46: 1191792.894 | O46: 1204852.359
A47: * Nettoformuen angiver den formue, der er tilgået afdelingerne i den enkelte investeringsforening fra eksterne investorer.
A48: Investering Danmark Amaliegade 7 DK-1256 København K Tel: 3370 1000

Sheet 1.2 Nettokøb (D)
A1: Investorernes nettokøb i detailfonde opgjort på investeringsområde
B2: Nettokøb, brutto | J2: Nettokøb, netto*
A3: Kursværdi - mio kr. | B3: 2019 | C3: 2020 | D3: 2021 | E3: 2022 | F3: 2023 | G3: august | H3: september | I3: år-til-dato | J3: 2019 | K3: 2020 | L3: 2021 | M3: 2022 | N3: 2023 | O3: august | P3: september | Q3: år-til-dato
A4: Aktier Danmark | B4: -2618.25632 | C4: 3441.59918 | D4: 5282.338014 | E4: 2784.436179 | F4: 1412.721045 | G4: 169.0601367 | H4: 271.7320536 | I4: 6758.851536 | J4: -2609.17451 | K4: 4049.581632 | L4: 4088.556863 | M4: 2137.960834 | N4: 1225.176008 | O4: 97.96614653 | P4: 156.9134585 | Q4: 6500.088106
A5: Aktier Brancher | B5: -91.258417 | C5: 8.690091 | D5: -152.358768 | E5: -113.441984 | F5: -19.606321 | G5: 0.151006 | H5: 0 | I5: -6.210054 | J5: 11.301013 | K5: 8.690091 | L5: -152.358768 | M5: -113.441984 | N5: -19.606321 | O5: 0.151006 | P5: 0 | Q5: -6.210054
A6: Aktier Ejendomme | B6: 3123.410402 | C6: 46.69188 | D6: 1983.458475 | E6: 1972.217896 | F6: -2725.766216 | G6: -2.8642376 | H6: 4.16924 | I6: -1649.714862 | J6: 2562.504493 | K6: 5.5763824 | L6: 1639.746475 | M6: 1792.918772 | N6: -2306.819987 | O6: -2.86423762 | P6: 2.7766364 | Q6: -1722.548187
A7: Aktier Emerging markets | B7: -6374.404837 | C7: 35.34269758 | D7: 3819.285249 | E7: -357.6783622 | F7: 640.391553 | G7: 175.8802623 | H7: 506.5517476 | I7: -1703.687687 | J7: -4984.086197 | K7: -777.4599686 | L7: 1951.139924 | M7: -1255.698276 | N7: -11.49139079 | O7: 1.43918358 | P7: 1681.551001 | Q7: -92.33614401
A8: Aktier Enkeltlande | B8: -108.5028346 | C8: -67.27587017 | D8: -8.24336896 | E8: -335.1444243 | F8: 95.24544799 | G8: 12.108312 | H8: 22.80136076 | I8: 132.6490492 | J8: -108.5028346 | K8: -67.27587017 | L8: -8.24336896 | M8: -335.1444243 | N8: 95.24544799 | O8: 12.108312 | P8: 22.80136076 | Q8: 132.6490492
A9: Aktier Europa | B9: -5342.042904 | C9: -1651.551186 | D9: -19.39008929 | E9: -2320.68292 | F9: -2787.712526 | G9: 72.61238479 | H9: 102.549076 | I9: 1066.440249 | J9: -5211.961412 | K9: -1857.88014 | L9: 1107.396058 | M9: -1847.117374 | N9: -2471.76361 | O9: 49.4302641 | P9: 57.72043314 | Q9: 808.8395631
A10: Aktier Fjernøsten | B10: -1836.488367 | C10: -757.2449661 | D10: 595.7633096 | E10: -383.4217471 | F10: -1538.705202 | G10: -19.25496621 | H10: -98.95148766 | I10: -165.2257791 | J10: -1774.836464 | K10: -921.4491916 | L10: 605.154285 | M10: -588.2985896 | N10: -1229.256377 | O10: -26.67705525 | P10: -35.56700601 | Q10: -203.0172842
A11: Aktier Globale | B11: 21784.9345 | C11: 28252.00425 | D11: 29571.2656 | E11: 7435.189583 | F11: 25457.15797 | G11: 1462.046208 | H11: -1338.611049 | I11: 23574.18437 | J11: 14727.0432 | K11: 26225.15943 | L11: 22169.6078 | M11: 5552.411579 | N11: 16900.75123 | O11: 214.2777637 | P11: -2261.103105 | Q11: 22587.00577
A12: Aktier Health Care | B12: 46.4501465 | C12: 3.5556238 | D12: -61.78140882 | E12: -35.43434829 | F12: 925.5784375 | G12: -1.50785 | H12: -4.78235 | I12: -80.1147377 | J12: 46.45014647 | K12: 3.55562382 | L12: -61.78140882 | M12: -35.43434829 | N12: 550.6976877 | O12: -1.50785 | P12: -4.78235 | Q12: -80.1147377
A13: Aktier IT | B13: 45.627486 | C13: 463.7436763 | D13: 191.2959058 | E13: -67.7427961 | F13: 619.7486942 | G13: 37.16505125 | H13: 8.03922075 | I13: 858.2884714 | J13: 45.627486 | K13: 463.7436763 | L13: 191.2959058 | M13: -67.7427961 | N13: 619.7486942 | O13: 37.16505125 | P13: 8.03922075 | Q13: 858.2884714
A14: Aktier Japan | B14: -2025.13158 | C14: -1051.429314 | D14: -237.0267925 | E14: -153.599858 | F14: 17.82392161 | G14: -21.286748 | H14: -25.278272 | I14: 325.1789796 | J14: -407.0952835 | K14: -940.5985156 | L14: -80.58450657 | M14: -158.0521272 | N14: -12.16697152 | O14: -22.462134 | P14: -25.897692 | Q14: 281.2433604
A15: Aktier Kina | B15: -121.1802694 | C15: 1.074436852 | D15: 92.04059916 | E15: -162.2377005 | F15: -10.17860752 | G15: -0.396405 | H15: -2.018684 | I15: -17.919504 | J15: -121.1720281 | K15: 1.078547954 | L15: 92.04120583 | M15: -162.2377017 | N15: -10.17628355 | O15: -0.396405 | P15: -2.018684 | Q15: -17.919504
A16: Aktier Latinamerika | B16: -191.3201682 | C16: 8.25127154 | D16: -12.07775073 | E16: 0 | F16: 0 | G16: 0 | H16: 0 | I16: 0 | J16: -91.23363388 | K16: 8.25127154 | L16: 0 | M16: 0 | N16: 0 | O16: 0 | P16: 0 | Q16: 0
A17: Aktier Nordamerika | B17: 1161.983137 | C17: -422.3918895 | D17: -4304.777646 | E17: -1011.904561 | F17: -6193.135498 | G17: 196.7545642 | H17: 303.5560378 | I17: 3163.885813 | J17: 1850.779033 | K17: -671.3194139 | L17: -2954.054425 | M17: -780.6746467 | N17: -4716.441612 | O17: 176.6154725 | P17: 379.0137917 | Q17: 3124.469207
A18: Aktier Norden | B18: -64.82974584 | C18: 314.3974442 | D18: 878.891169 | E18: 176.9092739 | F18: -412.9736313 | G18: -25.249095 | H18: -148.297588 | I18: -319.779067 | J18: -65.68881784 | K18: 315.1391613 | L18: 878.891169 | M18: 177.9315259 | N18: -412.9736313 | O18: -25.249095 | P18: -148.297588 | Q18: -319.779067
A19: Aktier Tyskland | B19: -854.0899627 | C19: -29.29082951 | D19: -15.55732689 | E19: -24.73637401 | F19: -27.42327935 | G19: -2.2894518 | H19: -5.90727425 | I19: -33.6380642 | J19: -236.1876833 | K19: -29.29082951 | L19: -15.55732689 | M19: -24.73637401 | N19: -27.42327935 | O19: -2.2894518 | P19: -5.90727425 | Q19: -33.6380642
A20: Aktier Østeuropa | B20: -133.9021612 | C20: -21.62234134 | D20: -10.6720266 | E20: -0.26500281 | F20: 0 | G20: 0 | H20: 0 | I20: 0 | J20: -133.9021612 | K20: -21.62234134 | L20: -10.6720266 | M20: -0.26500281 | N20: 0 | O20: 0 | P20: 0 | Q20: 0
A21: Kapitalforeninger Aktier | B21: 1056.966755 | C21: 907.1528795 | D21: 2017.701029 | E21: 799.0334497 | F21: -171.1647454 | G21: -146.6387976 | H21: -1561.655503 | I21: -2133.364822 | J21: 855.8247874 | K21: 1221.294907 | L21: 1508.000489 | M21: 562.9633501 | N21: -171.1647454 | O21: -146.6387975 | P21: -1561.655503 | Q21: -2133.364822
A22: Udenlandske aktier i alt | B22: 10076.22118 | C22: 26040.09785 | D22: 34327.81616 | E22: 5417.060125 | F22: 13869.28 | G22: =SUM(G5:G21) -> 1737.230237 | H22: -2237.835526 | I22: 23010.97236 | J22: 6964.863646 | K22: 22965.59282 | L22: 26860.02148 | M22: 2717.381583 | N22: 6777.158854 | O22: 263.102027 | P22: -1893.326759 | Q22: 23183.56756
A23: Obligationer Korte Danske | B23: -4385.170676 | C23: 823.5679127 | D23: 1560.247802 | E23: 3381.698258 | F23: 3425.125748 | G23: -448.3802733 | H23: 3119.766341 | I23: 1995.329831 | J23: -4643.23398 | K23: 1335.487649 | L23: 459.2192831 | M23: 2400.732767 | N23: 2824.56514 | O23: 226.1840998 | P23: 3051.638356 | Q23: 2991.194254
A24: Obligationer Lange Danske | B24: 670.3830928 | C24: 439.6283153 | D24: 5429.705007 | E24: 4130.113816 | F24: 5667.405549 | G24: -9.39604049 | H24: -144.6732345 | I24: 1249.23397 | J24: -1446.804048 | K24: -1838.837881 | L24: 3210.910999 | M24: 2741.15332 | N24: 3851.029372 | O24: -49.94024703 | P24: -703.660891 | Q24: -186.6946273
A25: Obligationer Øvrige Danske | B25: 8511.362268 | C25: -985.3955872 | D25: 1322.446717 | E25: 7311.156677 | F25: -5164.727244 | G25: 1201.457639 | H25: -3332.194876 | I25: 7872.753019 | J25: 7160.72278 | K25: -1123.385453 | L25: 1084.647814 | M25: -446.4293278 | N25: -6686.841996 | O25: 240.6805988 | P25: -3391.492058 | Q25: 6295.540582
A26: Obligationer Danske Indeksobligationer | B26: -1.07242 | C26: -3.35096 | D26: -2.8821 | E26: -5.90565 | F26: -10.93162 | G26: -3.0325 | H26: -0.8302 | I26: -7.39394 | J26: -1.07242 | K26: -3.35096 | L26: -2.8821 | M26: -5.90565 | N26: -10.93162 | O26: -3.0325 | P26: -0.8302 | Q26: -7.39394
A27: Danske obligationer i alt | B27: 4795.502265 | C27: 274.4496807 | D27: 8309.517427 | E27: 14817.0631 | F27: 3916.872433 | G27: =SUM(G23:G26) -> 740.6488252 | H27: -357.9319702 | I27: 11109.92288 | J27: 1069.612332 | K27: -1630.086645 | L27: 4751.895997 | M27: 4689.55111 | N27: -22.17910414 | O27: =SUM(O23:O26) -> 413.8919516 | P27: =SUM(P23:P26) -> -1044.344794 | Q27: 9092.646269
A28: Obligationer Investment Grade | B28: 2484.657532 | C28: 6889.82555 | D28: 3460.70144 | E28: 1426.966849 | F28: 1872.693595 | G28: 1.525272331 | H28: 257.7905659 | I28: -1454.190577 | J28: 2605.508348 | K28: 6484.079462 | L28: 1055.155919 | M28: -419.8084419 | N28: 4078.157607 | O28: -10.2276079 | P28: 192.537301 | Q28: -987.6502874
A29: Obligationer Non-Investment Grade | B29: 2245.377887 | C29: 8042.600641 | D29: -1429.291689 | E29: -6113.852979 | F29: 667.3706754 | G29: -22.27520806 | H29: 18.22967838 | I29: 3250.206084 | J29: 3801.834568 | K29: 6941.094478 | L29: -4158.883617 | M29: -3369.396977 | N29: -908.5267294 | O29: -32.82829907 | P29: -117.3914166 | Q29: 3476.150992
A30: Obligationer Emerging Markets | B30: -987.9520118 | C30: 1967.799638 | D30: 3179.856179 | E30: -9872.816595 | F30: -4953.535177 | G30: 165.1656392 | H30: 1195.710093 | I30: 682.442861 | J30: -1257.892675 | K30: 2323.17229 | L30: 2157.815974 | M30: -8779.770881 | N30: -3318.333858 | O30: 182.9659641 | P30: 1049.106963 | Q30: 521.9877084
A31: Obligationer Øvrige | B31: 1365.772733 | C31: 2787.790329 | D31: 7447.843264 | E31: -428.0433025 | F31: -915.7757643 | G31: 202.2022235 | H31: -891.1953215 | I31: -6556.679713 | J31: 1212.762791 | K31: 2088.979267 | L31: 7090.529049 | M31: -756.4302965 | N31: -1753.717592 | O31: 204.1849816 | P31: -936.1752396 | Q31: -6378.061912
A32: Obligationer Udenlandske Indeksobligationer | B32: -1067.360615 | C32: 10.10387031 | D32: 4761.554548 | E32: -697.1851585 | F32: 4408.924737 | G32: -232.3458295 | H32: -351.1755216 | I32: -397.4466433 | J32: 250.6570257 | K32: 106.8038244 | L32: 3107.91118 | M32: -427.6809078 | N32: 4543.834763 | O32: -231.6464898 | P32: -343.7753758 | Q32: 178.1212744
A33: Kapitalforeninger Obligationer Udenlandske | B33: 1216.02822 | C33: 820.9634574 | D33: 1816.51718 | E33: -513.7751107 | F33: 389.1743308 | G33: -59.90991895 | H33: -87.28584415 | I33: 101.7194557 | J33: 1510.96057 | K33: 820.9634574 | L33: 1239.971382 | M33: 221.0188338 | N33: 389.1743308 | O33: -59.90991895 | P33: -87.28584419 | Q33: 106.4460226
A34: Udenlandske obligationer i alt | B34: 5256.523745 | C34: 20519.08349 | D34: 19237.18092 | E34: -16198.7063 | F34: 1468.852398 | G34: =SUM(G28:G33) -> 54.36217851 | H34: 142.0736502 | I34: -4373.948532 | J34: 8123.830627 | K34: 18765.09278 | L34: 10492.49989 | M34: -13532.06867 | N34: 3030.588522 | O34: =SUM(O28:O33) -> 52.53862997 | P34: =SUM(P28:P33) -> -242.9836125 | Q34: -3083.006202
A35: Pengemarkedsforeninger | B35: 2.903173 | C35: -245.747433 | D35: 0 | E35: 0 | F35: 0 | G35: 0 | H35: 0 | I35: 0 | J35: 2.903173 | K35: -245.747433 | L35: 0 | M35: 0 | N35: 0 | O35: 0 | P35: 0 | Q35: 0
A36: Øvrige | B36: -293.3570983 | C36: -123.9421292 | D36: 193.3128742 | E36: 1609.673334 | F36: -258.789981 | G36: 223.465538 | H36: 104.092218 | I36: 829.075644 | J36: -250.9999821 | K36: 339.6949213 | L36: 286.865212 | M36: 1609.673334 | N36: -258.789981 | O36: 223.465538 | P36: 104.092218 | Q36: 829.075644
A37: Blandede Balanceret | B37: 11491.96129 | C37: 12803.18083 | D37: 12557.07286 | E37: 3978.122598 | F37: -2719.593806 | G37: -342.2948051 | H37: -77.46087293 | I37: -315.9448674 | J37: 10611.29772 | K37: 11850.35727 | L37: 12135.75649 | M37: 3406.018637 | N37: -3615.298993 | O37: -352.7497856 | P37: -102.3733939 | Q37: -1361.348551
A38: Blandede Fleksibel | B38: 556.9821821 | C38: 8488.748947 | D38: 7119.273893 | E38: -774.2547801 | F38: -1820.208396 | G38: 161.7569876 | H38: 35.70050324 | I38: 1631.836857 | J38: 656.7179744 | K38: 9697.608773 | L38: 1032.913542 | M38: -297.6135538 | N38: -2510.454355 | O38: 115.6740339 | P38: 84.88279344 | Q38: 1206.260365
A39: Blandede Høj Aktieandel | B39: 1726.698436 | C39: 2039.074703 | D39: 7173.919325 | E39: 6148.316678 | F39: 3893.42994 | G39: 483.2944417 | H39: 552.1208465 | I39: 5693.867134 | J39: 1726.698436 | K39: 2039.074703 | L39: 7173.919326 | M39: 6612.702194 | N39: 3996.388059 | O39: 483.2944416 | P39: 552.1208466 | Q39: 5693.867134
A40: Blandede Lav Aktieandel | B40: 6554.843074 | C40: 2513.40669 | D40: 1462.394559 | E40: 537.0611622 | F40: -4246.949889 | G40: -219.6908532 | H40: -275.3136249 | I40: -4468.656419 | J40: 6554.843074 | K40: 2513.40669 | L40: 1462.394559 | M40: -17.00513292 | N40: -4250.079939 | O40: -219.6908529 | P40: -275.3136248 | Q40: -4805.735419
A41: Blandede i alt | B41: 20330.48498 | C41: 25844.41117 | D41: 28312.66063 | E41: 9889.245657 | F41: -4893.32215 | G41: =SUM(G37:G40) -> 83.06577111 | H41: 235.0468519 | I41: 2541.102705 | J41: 19549.5572 | K41: 26100.44743 | L41: 21804.98392 | M41: 9704.102144 | N41: -6379.445227 | O41: =SUM(O37:O40) -> 26.52783704 | P41: =SUM(P37:P40) -> 259.3166214 | Q41: 733.0435293
A42: Kapitalforeninger Blandede | B42: 2402.765801 | C42: 11276.94668 | D42: -15513.14249 | E42: -1548.400389 | F42: -728.5853662 | G42: 8.06658543 | H42: 1858.143407 | I42: 2861.571072 | J42: 1440.036702 | K42: 9180.689606 | L42: 3151.942697 | M42: -902.142705 | N42: -719.6051913 | O42: 8.06658564 | P42: 1858.143406 | Q42: 2861.571072
A43: Kapitalforeninger Øvrige | B43: 398.0898029 | C43: 445.3848447 | D43: 329.5447728 | E43: 186.4406989 | F43: 1086.546405 | G43: -5.235242487 | H43: 66.26988448 | I43: 472.6119481 | J43: 398.0898029 | K43: 445.3848447 | L43: 334.7389557 | M43: 186.4374976 | N43: 1080.371084 | O43: -5.387373662 | P43: 61.65625962 | Q43: 393.3379506
A44: Kapitalforeninger Hedgestrategier | B44: 2125.540377 | C44: -586.610522 | D44: -2372.873167 | E44: -1773.680292 | F44: -3656.69065 | G44: -158.626174 | H44: -610.1516803 | I44: -4015.818281 | J44: 2077.793857 | K44: -688.025233 | L44: -2334.999891 | M44: -1768.158786 | N44: -3627.125965 | O44: -156.431894 | P44: -631.8540803 | Q44: -4006.536121
A45: Andre Alternative Investeringsfonde | B45: -4.732819 | C45: 0 | D45: 0 | E45: 545.4014729 | F45: 121.0601972 | G45: -7.24477215 | H45: 40.01225805 | I45: 468.1339049 | J45: 0 | K45: 0 | L45: 0 | M45: 370.2948455 | N45: 325.5308653 | O45: -7.244420113 | P45: 40.01257709 | Q45: 606.9932083
A46: I alt danske foreninger | B46: =B4+B22+B27+B34+B35+B36+B41+B42+B43+B44+B45 -> 42471.68509 | C46: =C4+C22+C27+C34+C35+C36+C41+C42+C43+C44+C45 -> 86885.6728 | D46: =D4+D22+D27+D34+D35+D36+D41+D42+D43+D44+D45 -> 78106.35515 | E46: =E4+E22+E27+E34+E35+E36+E41+E42+E43+E44+E45 -> 15728.53359 | F46: =F4+F22+F27+F34+F35+F36+F41+F42+F43+F44+F45 -> 12337.94433 | G46: 2844.793083 | H46: -488.5488533 | I46: 39662.47523 | J46: =J4+J22+J27+J34+J35+J36+J41+J42+J43+J44+J45 -> 36766.51285 | K46: =K4+K22+K27+K34+K35+K36+K41+K42+K43+K44+K45 -> 79282.62473 | L46: =L4+L22+L27+L34+L35+L36+L41+L42+L43+L44+L45 -> 69436.50512 | M46: =M4+M22+M27+M34+M35+M36+M41+M42+M43+M44+M45 -> 5213.031187 | N46: 1431.679865 | O46: 916.495028 | P46: -1332.374704 | Q46: 37110.78101
A47: * Nettokøb, netto angiver det nettokøb i afdelingerne indenfor den enkelte investeringsforening, der er foretaget af eksterne investorer i perioden.
A48: Investering Danmark Amaliegade 7 DK-1256 København K Tel: 3370 1000

Sheet 1.3 Antal (D)
A1: Antal detailfonde* opgjort på investeringsområde
B2: 2019 | C2: 2020 | D2: 2021 | E2: 2022 | F2: 2023 | G2: august | H2: september
A3: Aktier Danmark | B3: 49 | C3: 47 | D3: 49 | E3: 49 | F3: 49 | G3: 52 | H3: 52
A4: Aktier Brancher | B4: 1 | C4: 1 | D4: 0 | E4: 1 | F4: 1 | G4: 1 | H4: 1
A5: Aktier Ejendomme | B5: 2 | C5: 2 | D5: 2 | E5: 3 | F5: 3 | G5: 3 | H5: 3
A6: Aktier Emerging markets | B6: 37 | C6: 39 | D6: 40 | E6: 40 | F6: 38 | G6: 38 | H6: 38
A7: Aktier Enkeltlande | B7: 3 | C7: 2 | D7: 3 | E7: 2 | F7: 2 | G7: 2 | H7: 2
A8: Aktier Europa | B8: 47 | C8: 48 | D8: 48 | E8: 48 | F8: 50 | G8: 44 | H8: 44
A9: Aktier Fjernøsten | B9: 17 | C9: 16 | D9: 15 | E9: 15 | F9: 15 | G9: 9 | H9: 9
A10: Aktier Globale | B10: 165 | C10: 179 | D10: 201 | E10: 207 | F10: 212 | G10: 217 | H10: 217
A11: Aktier Health Care | B11: 1 | C11: 1 | D11: 1 | E11: 1 | F11: 1 | G11: 1 | H11: 1
A12: Aktier IT | B12: 1 | C12: 1 | D12: 1 | E12: 1 | F12: 1 | G12: 1 | H12: 1
A13: Aktier Japan | B13: 9 | C13: 9 | D13: 10 | E13: 10 | F13: 9 | G13: 7 | H13: 7
A14: Aktier Kina | B14: 4 | C14: 3 | D14: 3 | E14: 2 | F14: 2 | G14: 2 | H14: 2
A15: Aktier Latinamerika | B15: 1 | C15: 1 | D15: 0 | E15: 0 | F15: 0 | G15: 0 | H15: 0
A16: Aktier Nordamerika | B16: 23 | C16: 25 | D16: 24 | E16: 25 | F16: 26 | G16: 22 | H16: 22
A17: Aktier Norden | B17: 7 | C17: 8 | D17: 9 | E17: 8 | F17: 6 | G17: 8 | H17: 8
A18: Aktier Tyskland | B18: 1 | C18: 1 | D18: 1 | E18: 1 | F18: 1 | G18: 1 | H18: 1
A19: Aktier Østeuropa | B19: 2 | C19: 1 | D19: 1 | E19: 1 | F19: 1 | G19: 1 | H19: 1
A20: Kapitalforeninger Aktier | B20: 11 | C20: 10 | D20: 10 | E20: 10 | F20: 10 | G20: 8 | H20: 8
A21: Udenlandske aktier i alt | B21: 332 | C21: 347 | D21: 369 | E21: 375 | F21: 378 | G21: =SUM(G4:G20) -> 365 | H21: =SUM(H4:H20) -> 365
A22: Obligationer Korte Danske | B22: 30 | C22: 31 | D22: 34 | E22: 34 | F22: 36 | G22: 38 | H22: 38
A23: Obligationer Lange Danske | B23: 16 | C23: 16 | D23: 18 | E23: 18 | F23: 19 | G23: 17 | H23: 17
A24: Obligationer Øvrige Danske | B24: 48 | C24: 51 | D24: 52 | E24: 52 | F24: 56 | G24: 55 | H24: 55
A25: Obligationer Danske Indeksobligationer | B25: 1 | C25: 1 | D25: 1 | E25: 1 | F25: 1 | G25: 1 | H25: 1
A26: Danske obligationer i alt | B26: 95 | C26: 99 | D26: 105 | E26: 105 | F26: 112 | G26: =SUM(G22:G25) -> 111 | H26: =SUM(H22:H25) -> 111
A27: Obligationer Investment Grade | B27: 34 | C27: 36 | D27: 37 | E27: 39 | F27: 36 | G27: 39 | H27: 39
A28: Obligationer Non-Investment Grade | B28: 47 | C28: 47 | D28: 48 | E28: 47 | F28: 44 | G28: 44 | H28: 44
A29: Obligationer Emerging Markets | B29: 47 | C29: 47 | D29: 50 | E29: 50 | F29: 40 | G29: 45 | H29: 45
A30: Obligationer Øvrige | B30: 33 | C30: 45 | D30: 47 | E30: 46 | F30: 52 | G30: 50 | H30: 50
A31: Obligationer Udenlandske Indeksobligationer | B31: 8 | C31: 8 | D31: 8 | E31: 8 | F31: 8 | G31: 8 | H31: 8
A32: Kapitalforeninger Obligationer Udenlandske | B32: 7 | C32: 10 | D32: 9 | E32: 9 | F32: 8 | G32: 4 | H32: 4
A33: Udenlandske obligationer i alt | B33: 176 | C33: 193 | D33: 199 | E33: 199 | F33: 188 | G33: =SUM(G27:G32) -> 190 | H33: =SUM(H27:H32) -> 190
A34: Pengemarkedsforeninger | B34: 1 | C34: 0 | D34: 0 | E34: 0 | F34: 0 | G34: 0 | H34: 0
A35: Øvrige | B35: 6 | C35: 6 | D35: 5 | E35: 5 | F35: 4 | G35: 4 | H35: 4
A36: Blandede Balanceret | B36: 56 | C36: 56 | D36: 57 | E36: 63 | F36: 62 | G36: 62 | H36: 62
A37: Blandede Fleksibel | B37: 15 | C37: 15 | D37: 16 | E37: 16 | F37: 15 | G37: 14 | H37: 14
A38: Blandede Høj Aktieandel | B38: 36 | C38: 39 | D38: 45 | E38: 59 | F38: 58 | G38: 56 | H38: 56
A39: Blandede Lav Aktieandel | B39: 40 | C39: 41 | D39: 44 | E39: 44 | F39: 43 | G39: 42 | H39: 42
A40: Blandede i alt | B40: 147 | C40: 151 | D40: 162 | E40: 182 | F40: 178 | G40: =SUM(G36:G39) -> 174 | H40: =SUM(H36:H39) -> 174
A41: Kapitalforeninger Blandede | B41: 9 | C41: 13 | D41: 13 | E41: 15 | F41: 15 | G41: 12 | H41: 12
A42: Kapitalforeninger Øvrige | B42: 4 | C42: 5 | D42: 5 | E42: 5 | F42: 7 | G42: 12 | H42: 12
A43: Kapitalforeninger Hedgestrategier | B43: 12 | C43: 12 | D43: 10 | E43: 10 | F43: 10 | G43: 10 | H43: 10
A44: Andre Alternative Investeringsfonde | B44: 0 | C44: 0 | D44: 0 | E44: 2 | F44: 6 | G44: 9 | H44: 9
A45: I alt danske foreninger | B45: =B3+B21+B26+B33+B34+B35+B40+B41+B42+B43+B44 -> 831 | C45: 873 | D45: 917 | E45: 947 | F45: 947 | G45: =G3+G21+G26+G33+G34+G35+G40+G41+G42+G43+G44 -> 939 | H45: =H3+H21+H26+H33+H34+H35+H40+H41+H42+H43+H44 -> 939
A46: * Antal afdelinger og klasser i alt. | J46: 948 | K46: 258 | L46: 148
A47: Investering Danmark Amaliegade 7 DK-1256 København K Tel: 3370 1000

Sheet 1.4 Udbytter (D)
A1: Udbetalte udbytter i detailfonde opgjort på investeringsområde | K1: Udbetalte udbytter i detailfonde opgjort på foreningsgruppe
A2: Mio kr. | B2: 2019 | C2: 2020 | D2: 2021 | E2: 2022 | F2: 2023 | G2: august | H2: september | I2: år-til-dato | K2: Mio. kr. | L2: 2019 | M2: 2020 | N2: 2021 | O2: 2022 | P2: 2023 | Q2: august | R2: september | S2: år-til-dato
A3: Aktier Danmark | B3: 1866.84527 | C3: 1028.293896 | D3: 2153.887356 | E3: 4080.423856 | F3: 2523.753276 | G3: 0 | H3: 0 | I3: 2121.556112 | K3: ACM Forvaltning A/S | L3: 20.453449 | M3: 10.550413 | N3: 34.67080356 | O3: 68.967515 | P3: 132.694349 | Q3: 0 | R3: 0 | S3: 303.127986
A4: Aktier Brancher | B4: 10.99863 | C4: 16.350345 | D4: 19.200392 | E4: 0 | F4: 0 | G4: 0 | H4: 0 | I4: 0 | K4: Advice Capital | L4: 0 | M4: 2.7029139 | N4: 3.3512959 | O4: 12.00854835 | P4: 0
A5: Aktier Ejendomme | B5: 0 | C5: 0 | D5: 0 | E5: 0 | F5: 0 | G5: 0 | H5: 0 | I5: 0 | K5: Alm. Brand Invest | L5: 120.5305501 | M5: 132.7982007 | N5: 215.5539002 | O5: 0 | P5: 0
A6: Aktier Emerging markets | B6: 727.1435707 | C6: 1098.429316 | D6: 1287.659425 | E6: 1715.933377 | F6: 181.1728159 | G6: 0 | H6: 0 | I6: 169.265256 | K6: Amalie Invest | L6: 0 | M6: 0 | N6: 0 | O6: 0 | P6: 0
A7: Aktier Enkeltlande | B7: 64.5383195 | C7: 34.4188626 | D7: 11.713782 | E7: 21.3278168 | F7: 0.5147832 | G7: 0 | H7: 0 | I7: 2.263732 | K7: BankInvest | L7: 1047.043602 | M7: 2616.914499 | N7: 1871.728034 | O7: 4526.948173 | P7: 2239.731736 | Q7: 2.95086742 | R7: 0 | S7: 1428.328036
A8: Aktier Europa | B8: 581.0982336 | C8: 747.0972804 | D8: 332.864492 | E8: 1517.628685 | F8: 604.2002973 | G8: 0 | H8: 0 | I8: 444.2066956 | K8: BIL Danmark | L8: 0 | M8: 0 | N8: 0 | O8: 0 | P8: 0
A9: Aktier Fjernøsten | B9: 266.4910471 | C9: 478.482303 | D9: 281.5790951 | E9: 625.1986516 | F9: 128.7783685 | G9: 0 | H9: 0 | I9: 10.0010151 | K9: BLS Invest | L9: 576.690966 | M9: 392.722668 | N9: 489.04871 | O9: 837.60212 | P9: 410.254559 | Q9: 0 | R9: 0 | S9: 659.554461
A10: Aktier Globale | B10: 8095.176782 | C10: 11946.94611 | D10: 9281.908379 | E10: 24776.751 | F10: 15088.43293 | G10: 2.00570186 | H10: 0 | I10: 14166.13993 | K10: C Worldwide | L10: 391.0190962 | M10: 355.4499133 | N10: 284.2180895 | O10: 327.319263 | P10: 262.5402713 | Q10: 0 | R10: 0 | S10: 450.4451847
A11: Aktier Health Care | B11: 160.7137092 | C11: 24.45168 | D11: 71.2896408 | E11: 60.379782 | F11: 0 | G11: 0 | H11: 0 | I11: 0 | K11: Carnegie Wealth Management | L11: 0 | M11: 0 | N11: 0 | O11: 37.623056 | P11: 0 | Q11: 0 | R11: 0 | S11: 0
A12: Aktier IT | B12: 61.4464608 | C12: 76.9379464 | D12: 206.7887931 | E12: 305.101023 | F12: 215.8359624 | G12: 0 | H12: 0 | I12: 329.057064 | K12: Coop Opsparing | Q12: 0 | R12: 0 | S12: 0
A13: Aktier Japan | B13: 114.7731622 | C13: 133.9126987 | D13: 54.7431622 | E13: 93.3059783 | F13: 56.337509 | G13: 0 | H13: 0 | I13: 62.5194513 | K13: Danske Invest | L13: 4856.027481 | M13: 5511.27785 | N13: 5041.773486 | O13: 7620.142336 | P13: 3030.22027 | Q13: 0 | R13: 0 | S13: 3756.940577
A14: Aktier Kina | B14: 62.2161069 | C14: 28.9260166 | D14: 87.2299909 | E14: 84.824819 | F14: 0 | G14: 0 | H14: 0 | I14: 0 | K14: Falcon Invest | L14: 0 | M14: 0 | N14: 0 | O14: 0 | P14: 0 | Q14: 0 | R14: 0 | S14: 0
A15: Aktier Latinamerika | B15: 13.506864 | C15: 1.3962224 | D15: 0 | E15: 0 | F15: 0 | G15: 0 | H15: 0 | I15: 0 | K15: Formuepleje | L15: 113.810687 | M15: 122.856077 | N15: 101.486491 | O15: 254.235104 | P15: 86.986361 | Q15: 0 | R15: 0 | S15: 24.177158
A16: Aktier Nordamerika | B16: 1306.42615 | C16: 1500.96812 | D16: 1131.492284 | E16: 2195.311274 | F16: 872.8401393 | G16: 0 | H16: 0 | I16: 628.227222 | K16: Fundamental Invest | L16: 29.80024 | M16: 19.443 | N16: 17.240847 | O16: 127.230279 | P16: 59.218755 | Q16: 0 | R16: 0 | S16: 50.153029
A17: Aktier Norden | B17: 53.2401012 | C17: 35.8576634 | D17: 72.9997027 | E17: 159.9455087 | F17: 49.566353 | G17: 0 | H17: 0 | I17: 33.4401968 | K17: Great Dane | L17: 18.527558 | M17: 8.0215641 | N17: 0 | O17: 9.336908 | P17: 37.003091 | Q17: 0 | R17: 0 | S17: 32.462131
A18: Aktier Tyskland | B18: 128.8614565 | C18: 45.0165672 | D18: 31.72232 | E18: 31.1067779 | F18: 12.6797712 | G18: 0 | H18: 0 | I18: 8.654653 | K18: Handelsinvest | L18: 412.904924 | M18: 606.325749 | N18: 939.811485 | O18: 1419.3181 | P18: 376.207278 | Q18: 0 | R18: 0 | S18: 0
A19: Aktier Østeuropa | B19: 8.5153048 | C19: 33.4166688 | D19: 5.3700098 | E19: 80.062964 | F19: 0 | G19: 0 | H19: 0 | I19: 0 | K19: HP Hedge | L19: 0 | M19: 0 | N19: 0 | O19: 0 | P19: 0
A20: Kapitalforeninger Aktier | B20: 88.6233158 | C20: 362.8850976 | D20: 548.0091355 | E20: 1000.751829 | F20: 1096.838763 | G20: 0 | H20: 0 | I20: 507.2691783 | K20: HP Invest | L20: 0 | M20: 0 | N20: 0 | O20: 0 | P20: 0
A21: Udenlandske aktier i alt | B21: 11743.76921 | C21: 16565.4929 | D21: 13424.5706 | E21: 32667.62949 | F21: 18307.19769 | G21: =SUM(G4:G20) -> 2.00570186 | H21: =SUM(H4:H20) -> 0 | I21: =SUM(I4:I20) -> 16361.0444 | K21: IA Invest | L21: 0 | M21: 0 | N21: 1.201402 | O21: 13.4154 | P21: 5.428932 | Q21: 0 | R21: 0 | S21: 1.866107
A22: Obligationer Korte Danske | B22: 222.85597 | C22: 95.8940066 | D22: 54.2796895 | E22: 133.1954636 | F22: 708.812277 | G22: 0 | H22: 9.9744132 | I22: 210.0844389 | K22: Investeringsforeningen Gudme Raaschou | L22: 108.478038 | M22: 61.681459 | N22: 102.630651 | O22: 42.011375 | P22: 5.348995 | Q22: 0 | R22: 0 | S22: 10.457641
A23: Obligationer Lange Danske | B23: 678.2923056 | C23: 1158.1737 | D23: 485.2417418 | E23: 232.0629994 | F23: 871.3477581 | G23: 0 | H23: 0 | I23: 0 | K23: Investin | L23: 13.8824 | M23: 22.165 | N23: 0 | O23: 16.697262 | P23: 5.6398794
A24: Obligationer Øvrige Danske | B24: 1019.205983 | C24: 1828.027502 | D24: 889.673302 | E24: 371.6890851 | F24: 647.9610209 | G24: 0 | H24: 70.6718999 | I24: 436.5977196 | K24: IR Invest | L24: 0 | M24: 0 | N24: 0 | O24: 0 | P24: 0
A25: Obligationer Danske Indeksobligationer | B25: 3.3696225 | C25: 2.4063282 | D25: 9.2431279 | E25: 1.5148188 | F25: 1.3066339 | G25: 0 | H25: 0 | I25: 3.4427168 | K25: Jyske Invest Fund Management A/S | L25: 579.7882619 | M25: 1664.610012 | N25: 2429.164225 | O25: 2977.773803 | P25: 784.5959073 | Q25: 0 | R25: 0 | S25: 1266.633731
A26: Danske obligationer i alt | B26: 1923.723881 | C26: 3084.501537 | D26: 1438.437861 | E26: 738.4623669 | F26: 2229.42769 | G26: =SUM(G22:G25) -> 0 | H26: =SUM(H22:H25) -> 80.6463131 | I26: =SUM(I22:I25) -> 650.1248753 | K26: KAB / Lejerbo
A27: Obligationer Investment Grade | B27: 233.1698737 | C27: 488.7163785 | D27: 878.0403016 | E27: 455.2038399 | F27: 59.8780976 | G27: 0 | H27: 0 | I27: 90.5720808 | K27: Kapitalforeningen Blue Strait Capital | L27: 188.749436 | M27: 0 | N27: 0 | O27: 56.9326842 | P27: 17.8605531 | Q27: 0 | R27: 0 | S27: 25.6199535
A28: Obligationer Non-Investment Grade | B28: 370.9257428 | C28: 405.7546255 | D28: 1264.567738 | E28: 513.1485379 | F28: 142.4263897 | G28: 0 | H28: 0 | I28: 389.3728723 | K28: Kapitalforeningen Investering & Tryghed | L28: 0 | M28: 0 | N28: 46.925154 | O28: 29.32 | P28: 3.9315408 | Q28: 0 | R28: 0 | S28: 0
A29: Obligationer Emerging Markets | B29: 391.8902484 | C29: 1092.827161 | D29: 2000.580602 | E29: 119.5696956 | F29: 13.434782 | G29: 0 | H29: 0 | I29: 58.152921 | K29: Kapitalforeningen Tryg Invest Funds
A30: Obligationer Øvrige | B30: 416.596087 | C30: 716.859421 | D30: 1137.419228 | E30: 229.4010133 | F30: 77.8204723 | G30: 0 | H30: 0 | I30: 126.2005431 | K30: Kapitalforeningen Wealth Invest | Q30: 0 | R30: 0 | S30: 0
A31: Obligationer Udenlandske Indeksobligationer | B31: 0 | C31: 3.7568585 | D31: 75.8857964 | E31: 0 | F31: 42.8147906 | G31: 0 | H31: 0 | I31: 14.0343676 | K31: Lægernes Invest | L31: 765.1440551 | M31: 710.0519932 | N31: 1287.287292 | O31: 0 | P31: 226.5360326 | Q31: 0 | R31: 0 | S31: 299.4420439
A32: Kapitalforeninger Obligationer Udenlandske | B32: 196.6483527 | C32: 69.782361 | D32: 78.586701 | E32: 48.9837198 | F32: 41.2191199 | G32: 0 | H32: 0 | I32: 232.6934649 | K32: Lån & Spar Invest | L32: 40.884903 | M32: 97.2281675 | N32: 191.466233 | O32: 354.230413 | P32: 170.723234 | Q32: 0 | R32: 0 | S32: 101.903912
A33: Udenlandske obligationer i alt | B33: 1609.230305 | C33: 2777.696806 | D33: 5435.080366 | E33: 1366.306806 | F33: 377.5936521 | G33: =SUM(G27:G32) -> 0 | H33: =SUM(H27:H32) -> 0 | I33: =SUM(I27:I32) -> 911.0262497 | K33: Maj Invest | L33: 1046.663476 | M33: 830.624785 | N33: 339.514135 | O33: 1584.930274 | P33: 1143.170396 | Q33: 0 | R33: 0 | S33: 424.24793
A34: Pengemarkedsforeninger | B34: 0 | C34: 0 | D34: 0 | E34: 0 | F34: 0 | G34: 0 | H34: 0 | I34: 0 | K34: MS Invest | L34: 35.329997 | M34: 0 | N34: 0 | O34: 0 | P34: 0 | Q34: 0 | R34: 0 | S34: 0
A35: Øvrige | B35: 0 | C35: 32.9518 | D35: 0 | E35: 0 | F35: 0 | G35: 0 | H35: 0 | I35: 15.474915 | K35: Nielsen Capital Management | L35: 0 | M35: 0 | N35: 0 | O35: 0 | P35: 0
A36: Blandede Balanceret | B36: 403.005788 | C36: 1876.675568 | D36: 1245.236646 | E36: 3672.590458 | F36: 475.38441 | G36: 0.82027796 | H36: 0 | I36: 1089.525454 | K36: Nordea Invest | L36: 3531.110188 | M36: 7456.410186 | N36: 4674.319071 | O36: 12185.94191 | P36: 8381.244947 | Q36: 0 | R36: 80.6463131 | S36: 7997.515382
A37: Blandede Fleksibel | B37: 228.050576 | C37: 161.246428 | D37: 231.1095444 | E37: 305.9147234 | F37: 223.6640684 | G37: 0 | H37: 0 | I37: 51.174183 | K37: Nykredit Portefølje Administration | L37: 1274.981155 | M37: 1524.334012 | N37: 1714.72472 | O37: 3396.292708 | P37: 3245.693614 | Q37: 0 | R37: 0 | S37: 1568.368691
A38: Blandede Høj Aktieandel | B38: 65.8031966 | C38: 409.0928732 | D38: 287.1067919 | E38: 1634.326389 | F38: 275.8250822 | G38: 0.1248876 | H38: 0 | I38: 650.8317522 | K38: PFA Invest | L38: 371.340425 | M38: 399.669191 | N38: 487.315165 | O38: 1981.759717 | P38: 785.159728 | Q38: 0 | R38: 0 | S38: 99.669765
A39: Blandede Lav Aktieandel | B39: 236.3921904 | C39: 545.7019433 | D39: 600.4933342 | E39: 1232.269277 | F39: 184.4352102 | G39: 0 | H39: 0 | I39: 57.67339232 | K39: PortfolioManager | L39: 0 | M39: 0.211407 | N39: 1.2189294 | O39: 32.68123955 | P39: 21.2410385 | Q39: 0 | R39: 0 | S39: 36.120316
A40: Blandede i alt | B40: 933.251751 | C40: 2992.716812 | D40: 2363.946317 | E40: 6845.100847 | F40: 1159.308771 | G40: =SUM(G36:G39) -> 0.94516556 | H40: 0 | I40: 1849.204781 | K40: SEBinvest | L40: 239.92982 | M40: 406.085983 | N40: 564.621055 | O40: 786.419734 | P40: 313.140257 | Q40: 0 | R40: 0 | S40: 139.47148
A41: Kapitalforeninger Blandede | B41: 70.4543652 | C41: 207.8691636 | D41: 235.6749933 | E41: 431.7269657 | F41: 0 | G41: 0 | H41: 0 | I41: 16.1321879 | K41: Selected Investments | L41: 0 | M41: 0 | N41: 0 | O41: 0 | P41: 0 | Q41: 0 | R41: 0 | S41: 0
A42: Kapitalforeninger Øvrige | B42: 24.5516851 | C42: 10.6005498 | D42: 34.67080356 | E42: 78.2743112 | F42: 132.694349 | G42: 0 | H42: 0 | I42: 236.017736 | K42: SparDanmark | L42: 0 | M42: 0 | N42: 0 | O42: 0 | P42: 3.2203668 | Q42: 0 | R42: 0 | S42: 50.4995454
A43: Kapitalforeninger Hedgestrategier | B43: 0 | C43: 0 | D43: 0 | E43: 0 | F43: 0 | G43: 0 | H43: 0 | I43: 0 | K43: Sparinvest | L43: 1136.893699 | M43: 1522.57234 | N43: 1852.905962 | O43: 3736.497373 | P43: 2261.512496 | Q43: 0 | R43: 0 | S43: 2477.840277
A44: Andre Alternative Investeringsfonde | B44: 0 | C44: 0 | D44: 0 | E44: 0 | F44: 0 | G44: 0 | H44: 0 | I44: 33.60865 | K44: StockRate Invest | L44: 7.30326 | M44: 45.8493465 | N44: 13.832857 | O44: 16.471078 | P44: 0 | Q44: 0 | R44: 0 | S44: 41.876432
A45: I alt danske foreninger | B45: =B3+B21+B26+B33+B34+B35+B40+B41+B42+B43+B44 -> 18171.82647 | C45: 26700.12346 | D45: 25086.2683 | E45: 46207.92464 | F45: 24729.97543 | G45: 2.95086742 | H45: 80.6463131 | I45: 22194.1899 | K45: Stonehenge | L45: 13.1974608 | M45: 35.034315 | N45: 31.4533741 | O45: 70.1826023 | P45: 77.4780426 | Q45: 0 | R45: 0 | S45: 49.1313012
K46: Strategi Invest | L46: 0 | M46: 0 | N46: 0 | O46: 0 | P46: 0
K47: Sydinvest | L47: 686.6618189 | M47: 1385.088707 | N47: 1668.26892 | O47: 3013.837358 | P47: 304.5500852 | Q47: 0 | R47: 0 | S47: 555.1825894
K48: TRP-Invest | L48: 0 | M48: 0 | N48: 0 | O48: 0 | P48: 0 | Q48: 0 | R48: 0 | S48: 0
K49: Tryg Invest AIF-SIKAV
K50: ValueInvest Danmark | L50: 471.1743296 | M50: 416.9139901 | N50: 375.0704295 | O50: 379.9042016 | P50: 178.2611483 | Q50: 0 | R50: 0 | S50: 129.314153
K51: Wealth Invest | L51: 73.5051952 | M51: 342.5297188 | N51: 305.4655833 | O51: 291.8941052 | P51: 160.381569 | Q51: 0 | R51: 0 | S51: 213.840089
K52: I alt danske foreninger | L52: =SUM(L3:L51) -> 18171.82647 | M52: 26700.12346 | N52: 25086.2683 | O52: 46207.92464 | P52: 24729.97543 | Q52: 2.95086742 | R52: 80.6463131 | S52: 22194.1899
A54: Investering Danmark Amaliegade 7 DK-1256 København K Tel: 3370 1000

Sheet 1.5 Nettoflow (D)
A1: Nettoflow* i detailfonde opgjort på investeringsområde | K1: Nettoflow* i detailafdelinger opgjort på foreningsgruppe
A2: Kursværdi - mio kr. | B2: 2019 | C2: 2020 | D2: 2021 | E2: 2022 | F2: 2023 | G2: august | H2: september | I2: år-til-dato | K2: Kursværdi - mio kr. | L2: 2019 | M2: 2020 | N2: 2021 | O2: 2022 | P2: 2023 | Q2: august | R2: september | S2: år-til-dato
A3: Aktier Danmark | B3: =VLOOKUP($A3,'1.2 Nettokøb (D)'!$A$4:$I$46,2,0)-VLOOKUP($A3,'1.4 Udbytter (D)'!$A$3:$I$45,2,0) -> -4485.10159 | C3: =VLOOKUP($A3,'1.2 Nettokøb (D)'!$A$4:$I$46,3,0)-VLOOKUP($A3,'1.4 Udbytter (D)'!$A$3:$I$45,3,0) -> 2413.305283 | D3: =VLOOKUP($A3,'1.2 Nettokøb (D)'!$A$4:$I$46,4,0)-VLOOKUP($A3,'1.4 Udbytter (D)'!$A$3:$I$45,4,0) -> 3128.450658 | E3: =VLOOKUP($A3,'1.2 Nettokøb (D)'!$A$4:$I$46,5,0)-VLOOKUP($A3,'1.4 Udbytter (D)'!$A$3:$I$45,5,0) -> -1295.987677 | F3: =VLOOKUP($A3,'1.2 Nettokøb (D)'!$A$4:$I$46,6,0)-VLOOKUP($A3,'1.4 Udbytter (D)'!$A$3:$I$45,6,0) -> -1111.032231 | G3: =VLOOKUP($A3,'1.2 Nettokøb (D)'!$A$4:$I$46,7,0)-VLOOKUP($A3,'1.4 Udbytter (D)'!$A$3:$I$45,7,0) -> 169.0601367 | H3: =VLOOKUP($A3,'1.2 Nettokøb (D)'!$A$4:$I$46,8,0)-VLOOKUP($A3,'1.4 Udbytter (D)'!$A$3:$I$45,8,0) -> 271.7320536 | I3: =VLOOKUP($A3,'1.2 Nettokøb (D)'!$A$4:$I$46,9,0)-VLOOKUP($A3,'1.4 Udbytter (D)'!$A$3:$I$45,9,0) -> 4637.295425 | K3: ACM Forvaltning A/S | L3: =VLOOKUP($K3,'2.3 Nettokøb (D)'!$A$4:$I$53,2,0)-VLOOKUP($K3,'1.4 Udbytter (D)'!$K$3:$S$52,2,0) -> 382.49966 | M3: =VLOOKUP($K3,'2.3 Nettokøb (D)'!$A$4:$I$53,3,0)-VLOOKUP($K3,'1.4 Udbytter (D)'!$K$3:$S$52,3,0) -> 454.258794 | N3: =VLOOKUP($K3,'2.3 Nettokøb (D)'!$A$4:$I$53,4,0)-VLOOKUP($K3,'1.4 Udbytter (D)'!$K$3:$S$52,4,0) -> 300.0659165 | O3: =VLOOKUP($K3,'2.3 Nettokøb (D)'!$A$4:$I$53,5,0)-VLOOKUP($K3,'1.4 Udbytter (D)'!$K$3:$S$52,5,0) -> 72.48368386 | P3: =VLOOKUP($K3,'2.3 Nettokøb (D)'!$A$4:$I$53,6,0)-VLOOKUP($K3,'1.4 Udbytter (D)'!$K$3:$S$52,6,0) -> 844.4424496 | Q3: =VLOOKUP($K3,'2.3 Nettokøb (D)'!$A$4:$I$53,7,0)-VLOOKUP($K3,'1.4 Udbytter (D)'!$K$3:$S$52,7,0) -> -20.14187709 | R3: =VLOOKUP($K3,'2.3 Nettokøb (D)'!$A$4:$I$53,8,0)-VLOOKUP($K3,'1.4 Udbytter (D)'!$K$3:$S$52,8,0) -> 44.27028448 | S3: =VLOOKUP($K3,'2.3 Nettokøb (D)'!$A$4:$I$53,9,0)-VLOOKUP($K3,'1.4 Udbytter (D)'!$K$3:$S$52,9,0) -> 352.0337081
A4: Aktier Brancher | B4: =VLOOKUP($A4,'1.2 Nettokøb (D)'!$A$4:$I$46,2,0)-VLOOKUP($A4,'1.4 Udbytter (D)'!$A$3:$I$45,2,0) -> -102.257047 | C4: =VLOOKUP($A4,'1.2 Nettokøb (D)'!$A$4:$I$46,3,0)-VLOOKUP($A4,'1.4 Udbytter (D)'!$A$3:$I$45,3,0) -> -7.660254 | D4: =VLOOKUP($A4,'1.2 Nettokøb (D)'!$A$4:$I$46,4,0)-VLOOKUP($A4,'1.4 Udbytter (D)'!$A$3:$I$45,4,0) -> -171.55916 | E4: =VLOOKUP($A4,'1.2 Nettokøb (D)'!$A$4:$I$46,5,0)-VLOOKUP($A4,'1.4 Udbytter (D)'!$A$3:$I$45,5,0) -> -113.441984 | F4: =VLOOKUP($A4,'1.2 Nettokøb (D)'!$A$4:$I$46,6,0)-VLOOKUP($A4,'1.4 Udbytter (D)'!$A$3:$I$45,6,0) -> -19.606321 | G4: =VLOOKUP($A4,'1.2 Nettokøb (D)'!$A$4:$I$46,7,0)-VLOOKUP($A4,'1.4 Udbytter (D)'!$A$3:$I$45,7,0) -> 0.151006 | H4: =VLOOKUP($A4,'1.2 Nettokøb (D)'!$A$4:$I$46,8,0)-VLOOKUP($A4,'1.4 Udbytter (D)'!$A$3:$I$45,8,0) -> 0 | I4: =VLOOKUP($A4,'1.2 Nettokøb (D)'!$A$4:$I$46,9,0)-VLOOKUP($A4,'1.4 Udbytter (D)'!$A$3:$I$45,9,0) -> -6.210054 | K4: Advice Capital | L4: =VLOOKUP($K4,'2.3 Nettokøb (D)'!$A$4:$I$53,2,0)-VLOOKUP($K4,'1.4 Udbytter (D)'!$K$3:$S$52,2,0) -> 21.15369326 | M4: =VLOOKUP($K4,'2.3 Nettokøb (D)'!$A$4:$I$53,3,0)-VLOOKUP($K4,'1.4 Udbytter (D)'!$K$3:$S$52,3,0) -> -17.29412035 | N4: =VLOOKUP($K4,'2.3 Nettokøb (D)'!$A$4:$I$53,4,0)-VLOOKUP($K4,'1.4 Udbytter (D)'!$K$3:$S$52,4,0) -> 29.87296216 | O4: =VLOOKUP($K4,'2.3 Nettokøb (D)'!$A$4:$I$53,5,0)-VLOOKUP($K4,'1.4 Udbytter (D)'!$K$3:$S$52,5,0) -> 60.81272806 | P4: =VLOOKUP($K4,'2.3 Nettokøb (D)'!$A$4:$I$53,6,0)-VLOOKUP($K4,'1.4 Udbytter (D)'!$K$3:$S$52,6,0) -> -75.17074472 | Q4: =VLOOKUP($K4,'2.3 Nettokøb (D)'!$A$4:$I$53,7,0)-VLOOKUP($K4,'1.4 Udbytter (D)'!$K$3:$S$52,7,0) -> 0 | R4: =VLOOKUP($K4,'2.3 Nettokøb (D)'!$A$4:$I$53,8,0)-VLOOKUP($K4,'1.4 Udbytter (D)'!$K$3:$S$52,8,0) -> 0 | S4: =VLOOKUP($K4,'2.3 Nettokøb (D)'!$A$4:$I$53,9,0)-VLOOKUP($K4,'1.4 Udbytter (D)'!$K$3:$S$52,9,0) -> 0
A5: Aktier Ejendomme | B5: =VLOOKUP($A5,'1.2 Nettokøb (D)'!$A$4:$I$46,2,0)-VLOOKUP($A5,'1.4 Udbytter (D)'!$A$3:$I$45,2,0) -> 3123.410402 | C5: =VLOOKUP($A5,'1.2 Nettokøb (D)'!$A$4:$I$46,3,0)-VLOOKUP($A5,'1.4 Udbytter (D)'!$A$3:$I$45,3,0) -> 46.69188 | D5: =VLOOKUP($A5,'1.2 Nettokøb (D)'!$A$4:$I$46,4,0)-VLOOKUP($A5,'1.4 Udbytter (D)'!$A$3:$I$45,4,0) -> 1983.458475 | E5: =VLOOKUP($A5,'1.2 Nettokøb (D)'!$A$4:$I$46,5,0)-VLOOKUP($A5,'1.4 Udbytter (D)'!$A$3:$I$45,5,0) -> 1972.217896 | F5: =VLOOKUP($A5,'1.2 Nettokøb (D)'!$A$4:$I$46,6,0)-VLOOKUP($A5,'1.4 Udbytter (D)'!$A$3:$I$45,6,0) -> -2725.766216 | G5: =VLOOKUP($A5,'1.2 Nettokøb (D)'!$A$4:$I$46,7,0)-VLOOKUP($A5,'1.4 Udbytter (D)'!$A$3:$I$45,7,0) -> -2.8642376 | H5: =VLOOKUP($A5,'1.2 Nettokøb (D)'!$A$4:$I$46,8,0)-VLOOKUP($A5,'1.4 Udbytter (D)'!$A$3:$I$45,8,0) -> 4.16924 | I5: =VLOOKUP($A5,'1.2 Nettokøb (D)'!$A$4:$I$46,9,0)-VLOOKUP($A5,'1.4 Udbytter (D)'!$A$3:$I$45,9,0) -> -1649.714862 | K5: Alm. Brand Invest | L5: =VLOOKUP($K5,'2.3 Nettokøb (D)'!$A$4:$I$53,2,0)-VLOOKUP($K5,'1.4 Udbytter (D)'!$K$3:$S$52,2,0) -> -219.5823722 | M5: =VLOOKUP($K5,'2.3 Nettokøb (D)'!$A$4:$I$53,3,0)-VLOOKUP($K5,'1.4 Udbytter (D)'!$K$3:$S$52,3,0) -> 160.9358515 | N5: =VLOOKUP($K5,'2.3 Nettokøb (D)'!$A$4:$I$53,4,0)-VLOOKUP($K5,'1.4 Udbytter (D)'!$K$3:$S$52,4,0) -> -4051.915719 | O5: =VLOOKUP($K5,'2.3 Nettokøb (D)'!$A$4:$I$53,5,0)-VLOOKUP($K5,'1.4 Udbytter (D)'!$K$3:$S$52,5,0) -> 0 | P5: =VLOOKUP($K5,'2.3 Nettokøb (D)'!$A$4:$I$53,6,0)-VLOOKUP($K5,'1.4 Udbytter (D)'!$K$3:$S$52,6,0) -> 0 | Q5: =VLOOKUP($K5,'2.3 Nettokøb (D)'!$A$4:$I$53,7,0)-VLOOKUP($K5,'1.4 Udbytter (D)'!$K$3:$S$52,7,0) -> 0 | R5: =VLOOKUP($K5,'2.3 Nettokøb (D)'!$A$4:$I$53,8,0)-VLOOKUP($K5,'1.4 Udbytter (D)'!$K$3:$S$52,8,0) -> 0 | S5: =VLOOKUP($K5,'2.3 Nettokøb (D)'!$A$4:$I$53,9,0)-VLOOKUP($K5,'1.4 Udbytter (D)'!$K$3:$S$52,9,0) -> 0
A6: Aktier Emerging markets | B6: =VLOOKUP($A6,'1.2 Nettokøb (D)'!$A$4:$I$46,2,0)-VLOOKUP($A6,'1.4 Udbytter (D)'!$A$3:$I$45,2,0) -> -7101.548407 | C6: =VLOOKUP($A6,'1.2 Nettokøb (D)'!$A$4:$I$46,3,0)-VLOOKUP($A6,'1.4 Udbytter (D)'!$A$3:$I$45,3,0) -> -1063.086618 | D6: =VLOOKUP($A6,'1.2 Nettokøb (D)'!$A$4:$I$46,4,0)-VLOOKUP($A6,'1.4 Udbytter (D)'!$A$3:$I$45,4,0) -> 2531.625824 | E6: =VLOOKUP($A6,'1.2 Nettokøb (D)'!$A$4:$I$46,5,0)-VLOOKUP($A6,'1.4 Udbytter (D)'!$A$3:$I$45,5,0) -> -2073.611739 | F6: =VLOOKUP($A6,'1.2 Nettokøb (D)'!$A$4:$I$46,6,0)-VLOOKUP($A6,'1.4 Udbytter (D)'!$A$3:$I$45,6,0) -> 459.2187371 | G6: =VLOOKUP($A6,'1.2 Nettokøb (D)'!$A$4:$I$46,7,0)-VLOOKUP($A6,'1.4 Udbytter (D)'!$A$3:$I$45,7,0) -> 175.8802623 | H6: =VLOOKUP($A6,'1.2 Nettokøb (D)'!$A$4:$I$46,8,0)-VLOOKUP($A6,'1.4 Udbytter (D)'!$A$3:$I$45,8,0) -> 506.5517476 | I6: =VLOOKUP($A6,'1.2 Nettokøb (D)'!$A$4:$I$46,9,0)-VLOOKUP($A6,'1.4 Udbytter (D)'!$A$3:$I$45,9,0) -> -1872.952943 | K6: Amalie Invest | L6: =VLOOKUP($K6,'2.3 Nettokøb (D)'!$A$4:$I$53,2,0)-VLOOKUP($K6,'1.4 Udbytter (D)'!$K$3:$S$52,2,0) -> 0 | M6: =VLOOKUP($K6,'2.3 Nettokøb (D)'!$A$4:$I$53,3,0)-VLOOKUP($K6,'1.4 Udbytter (D)'!$K$3:$S$52,3,0) -> 0 | N6: =VLOOKUP($K6,'2.3 Nettokøb (D)'!$A$4:$I$53,4,0)-VLOOKUP($K6,'1.4 Udbytter (D)'!$K$3:$S$52,4,0) -> 0 | O6: =VLOOKUP($K6,'2.3 Nettokøb (D)'!$A$4:$I$53,5,0)-VLOOKUP($K6,'1.4 Udbytter (D)'!$K$3:$S$52,5,0) -> 0 | P6: =VLOOKUP($K6,'2.3 Nettokøb (D)'!$A$4:$I$53,6,0)-VLOOKUP($K6,'1.4 Udbytter (D)'!$K$3:$S$52,6,0) -> 0 | Q6: =VLOOKUP($K6,'2.3 Nettokøb (D)'!$A$4:$I$53,7,0)-VLOOKUP($K6,'1.4 Udbytter (D)'!$K$3:$S$52,7,0) -> 0 | R6: =VLOOKUP($K6,'2.3 Nettokøb (D)'!$A$4:$I$53,8,0)-VLOOKUP($K6,'1.4 Udbytter (D)'!$K$3:$S$52,8,0) -> 0 | S6: =VLOOKUP($K6,'2.3 Nettokøb (D)'!$A$4:$I$53,9,0)-VLOOKUP($K6,'1.4 Udbytter (D)'!$K$3:$S$52,9,0) -> 0
A7: Aktier Enkeltlande | B7: =VLOOKUP($A7,'1.2 Nettokøb (D)'!$A$4:$I$46,2,0)-VLOOKUP($A7,'1.4 Udbytter (D)'!$A$3:$I$45,2,0) -> -173.0411541 | C7: =VLOOKUP($A7,'1.2 Nettokøb (D)'!$A$4:$I$46,3,0)-VLOOKUP($A7,'1.4 Udbytter (D)'!$A$3:$I$45,3,0) -> -101.6947328 | D7: =VLOOKUP($A7,'1.2 Nettokøb (D)'!$A$4:$I$46,4,0)-VLOOKUP($A7,'1.4 Udbytter (D)'!$A$3:$I$45,4,0) -> -19.95715096 | E7: =VLOOKUP($A7,'1.2 Nettokøb (D)'!$A$4:$I$46,5,0)-VLOOKUP($A7,'1.4 Udbytter (D)'!$A$3:$I$45,5,0) -> -356.4722411 | F7: =VLOOKUP($A7,'1.2 Nettokøb (D)'!$A$4:$I$46,6,0)-VLOOKUP($A7,'1.4 Udbytter (D)'!$A$3:$I$45,6,0) -> 94.73066479 | G7: =VLOOKUP($A7,'1.2 Nettokøb (D)'!$A$4:$I$46,7,0)-VLOOKUP($A7,'1.4 Udbytter (D)'!$A$3:$I$45,7,0) -> 12.108312 | H7: =VLOOKUP($A7,'1.2 Nettokøb (D)'!$A$4:$I$46,8,0)-VLOOKUP($A7,'1.4 Udbytter (D)'!$A$3:$I$45,8,0) -> 22.80136076 | I7: =VLOOKUP($A7,'1.2 Nettokøb (D)'!$A$4:$I$46,9,0)-VLOOKUP($A7,'1.4 Udbytter (D)'!$A$3:$I$45,9,0) -> 130.3853172 | K7: BankInvest | L7: =VLOOKUP($K7,'2.3 Nettokøb (D)'!$A$4:$I$53,2,0)-VLOOKUP($K7,'1.4 Udbytter (D)'!$K$3:$S$52,2,0) -> 12310.63674 | M7: =VLOOKUP($K7,'2.3 Nettokøb (D)'!$A$4:$I$53,3,0)-VLOOKUP($K7,'1.4 Udbytter (D)'!$K$3:$S$52,3,0) -> 10818.48189 | N7: =VLOOKUP($K7,'2.3 Nettokøb (D)'!$A$4:$I$53,4,0)-VLOOKUP($K7,'1.4 Udbytter (D)'!$K$3:$S$52,4,0) -> 8651.540441 | O7: =VLOOKUP($K7,'2.3 Nettokøb (D)'!$A$4:$I$53,5,0)-VLOOKUP($K7,'1.4 Udbytter (D)'!$K$3:$S$52,5,0) -> -1415.424191 | P7: =VLOOKUP($K7,'2.3 Nettokøb (D)'!$A$4:$I$53,6,0)-VLOOKUP($K7,'1.4 Udbytter (D)'!$K$3:$S$52,6,0) -> -1902.233828 | Q7: =VLOOKUP($K7,'2.3 Nettokøb (D)'!$A$4:$I$53,7,0)-VLOOKUP($K7,'1.4 Udbytter (D)'!$K$3:$S$52,7,0) -> 721.5351256 | R7: =VLOOKUP($K7,'2.3 Nettokøb (D)'!$A$4:$I$53,8,0)-VLOOKUP($K7,'1.4 Udbytter (D)'!$K$3:$S$52,8,0) -> 6688.020582 | S7: =VLOOKUP($K7,'2.3 Nettokøb (D)'!$A$4:$I$53,9,0)-VLOOKUP($K7,'1.4 Udbytter (D)'!$K$3:$S$52,9,0) -> 18759.85234
A8: Aktier Europa | B8: =VLOOKUP($A8,'1.2 Nettokøb (D)'!$A$4:$I$46,2,0)-VLOOKUP($A8,'1.4 Udbytter (D)'!$A$3:$I$45,2,0) -> -5923.141138 | C8: =VLOOKUP($A8,'1.2 Nettokøb (D)'!$A$4:$I$46,3,0)-VLOOKUP($A8,'1.4 Udbytter (D)'!$A$3:$I$45,3,0) -> -2398.648467 | D8: =VLOOKUP($A8,'1.2 Nettokøb (D)'!$A$4:$I$46,4,0)-VLOOKUP($A8,'1.4 Udbytter (D)'!$A$3:$I$45,4,0) -> -352.2545813 | E8: =VLOOKUP($A8,'1.2 Nettokøb (D)'!$A$4:$I$46,5,0)-VLOOKUP($A8,'1.4 Udbytter (D)'!$A$3:$I$45,5,0) -> -3838.311604 | F8: =VLOOKUP($A8,'1.2 Nettokøb (D)'!$A$4:$I$46,6,0)-VLOOKUP($A8,'1.4 Udbytter (D)'!$A$3:$I$45,6,0) -> -3391.912824 | G8: =VLOOKUP($A8,'1.2 Nettokøb (D)'!$A$4:$I$46,7,0)-VLOOKUP($A8,'1.4 Udbytter (D)'!$A$3:$I$45,7,0) -> 72.61238479 | H8: =VLOOKUP($A8,'1.2 Nettokøb (D)'!$A$4:$I$46,8,0)-VLOOKUP($A8,'1.4 Udbytter (D)'!$A$3:$I$45,8,0) -> 102.549076 | I8: =VLOOKUP($A8,'1.2 Nettokøb (D)'!$A$4:$I$46,9,0)-VLOOKUP($A8,'1.4 Udbytter (D)'!$A$3:$I$45,9,0) -> 622.2335535 | K8: BIL Danmark | L8: =VLOOKUP($K8,'2.3 Nettokøb (D)'!$A$4:$I$53,2,0)-VLOOKUP($K8,'1.4 Udbytter (D)'!$K$3:$S$52,2,0) -> -263.3693285 | M8: =VLOOKUP($K8,'2.3 Nettokøb (D)'!$A$4:$I$53,3,0)-VLOOKUP($K8,'1.4 Udbytter (D)'!$K$3:$S$52,3,0) -> -25.91098581 | N8: =VLOOKUP($K8,'2.3 Nettokøb (D)'!$A$4:$I$53,4,0)-VLOOKUP($K8,'1.4 Udbytter (D)'!$K$3:$S$52,4,0) -> 0 | O8: =VLOOKUP($K8,'2.3 Nettokøb (D)'!$A$4:$I$53,5,0)-VLOOKUP($K8,'1.4 Udbytter (D)'!$K$3:$S$52,5,0) -> 0 | P8: =VLOOKUP($K8,'2.3 Nettokøb (D)'!$A$4:$I$53,6,0)-VLOOKUP($K8,'1.4 Udbytter (D)'!$K$3:$S$52,6,0) -> 0 | Q8: =VLOOKUP($K8,'2.3 Nettokøb (D)'!$A$4:$I$53,7,0)-VLOOKUP($K8,'1.4 Udbytter (D)'!$K$3:$S$52,7,0) -> 0 | R8: =VLOOKUP($K8,'2.3 Nettokøb (D)'!$A$4:$I$53,8,0)-VLOOKUP($K8,'1.4 Udbytter (D)'!$K$3:$S$52,8,0) -> 0 | S8: =VLOOKUP($K8,'2.3 Nettokøb (D)'!$A$4:$I$53,9,0)-VLOOKUP($K8,'1.4 Udbytter (D)'!$K$3:$S$52,9,0) -> 0
A9: Aktier Fjernøsten | B9: =VLOOKUP($A9,'1.2 Nettokøb (D)'!$A$4:$I$46,2,0)-VLOOKUP($A9,'1.4 Udbytter (D)'!$A$3:$I$45,2,0) -> -2102.979414 | C9: =VLOOKUP($A9,'1.2 Nettokøb (D)'!$A$4:$I$46,3,0)-VLOOKUP($A9,'1.4 Udbytter (D)'!$A$3:$I$45,3,0) -> -1235.727269 | D9: =VLOOKUP($A9,'1.2 Nettokøb (D)'!$A$4:$I$46,4,0)-VLOOKUP($A9,'1.4 Udbytter (D)'!$A$3:$I$45,4,0) -> 314.1842145 | E9: =VLOOKUP($A9,'1.2 Nettokøb (D)'!$A$4:$I$46,5,0)-VLOOKUP($A9,'1.4 Udbytter (D)'!$A$3:$I$45,5,0) -> -1008.620399 | F9: =VLOOKUP($A9,'1.2 Nettokøb (D)'!$A$4:$I$46,6,0)-VLOOKUP($A9,'1.4 Udbytter (D)'!$A$3:$I$45,6,0) -> -1667.483571 | G9: =VLOOKUP($A9,'1.2 Nettokøb (D)'!$A$4:$I$46,7,0)-VLOOKUP($A9,'1.4 Udbytter (D)'!$A$3:$I$45,7,0) -> -19.25496621 | H9: =VLOOKUP($A9,'1.2 Nettokøb (D)'!$A$4:$I$46,8,0)-VLOOKUP($A9,'1.4 Udbytter (D)'!$A$3:$I$45,8,0) -> -98.95148766 | I9: =VLOOKUP($A9,'1.2 Nettokøb (D)'!$A$4:$I$46,9,0)-VLOOKUP($A9,'1.4 Udbytter (D)'!$A$3:$I$45,9,0) -> -175.2267942 | K9: BLS Invest | L9: =VLOOKUP($K9,'2.3 Nettokøb (D)'!$A$4:$I$53,2,0)-VLOOKUP($K9,'1.4 Udbytter (D)'!$K$3:$S$52,2,0) -> 2832.901628 | M9: =VLOOKUP($K9,'2.3 Nettokøb (D)'!$A$4:$I$53,3,0)-VLOOKUP($K9,'1.4 Udbytter (D)'!$K$3:$S$52,3,0) -> 2171.90987 | N9: =VLOOKUP($K9,'2.3 Nettokøb (D)'!$A$4:$I$53,4,0)-VLOOKUP($K9,'1.4 Udbytter (D)'!$K$3:$S$52,4,0) -> -214.4580859 | O9: =VLOOKUP($K9,'2.3 Nettokøb (D)'!$A$4:$I$53,5,0)-VLOOKUP($K9,'1.4 Udbytter (D)'!$K$3:$S$52,5,0) -> -774.3739228 | P9: =VLOOKUP($K9,'2.3 Nettokøb (D)'!$A$4:$I$53,6,0)-VLOOKUP($K9,'1.4 Udbytter (D)'!$K$3:$S$52,6,0) -> 589.174276 | Q9: =VLOOKUP($K9,'2.3 Nettokøb (D)'!$A$4:$I$53,7,0)-VLOOKUP($K9,'1.4 Udbytter (D)'!$K$3:$S$52,7,0) -> -77.05047 | R9: =VLOOKUP($K9,'2.3 Nettokøb (D)'!$A$4:$I$53,8,0)-VLOOKUP($K9,'1.4 Udbytter (D)'!$K$3:$S$52,8,0) -> -86.235724 | S9: =VLOOKUP($K9,'2.3 Nettokøb (D)'!$A$4:$I$53,9,0)-VLOOKUP($K9,'1.4 Udbytter (D)'!$K$3:$S$52,9,0) -> -4384.071801
A10: Aktier Globale | B10: =VLOOKUP($A10,'1.2 Nettokøb (D)'!$A$4:$I$46,2,0)-VLOOKUP($A10,'1.4 Udbytter (D)'!$A$3:$I$45,2,0) -> 13689.75772 | C10: =VLOOKUP($A10,'1.2 Nettokøb (D)'!$A$4:$I$46,3,0)-VLOOKUP($A10,'1.4 Udbytter (D)'!$A$3:$I$45,3,0) -> 16305.05814 | D10: =VLOOKUP($A10,'1.2 Nettokøb (D)'!$A$4:$I$46,4,0)-VLOOKUP($A10,'1.4 Udbytter (D)'!$A$3:$I$45,4,0) -> 20289.35722 | E10: =VLOOKUP($A10,'1.2 Nettokøb (D)'!$A$4:$I$46,5,0)-VLOOKUP($A10,'1.4 Udbytter (D)'!$A$3:$I$45,5,0) -> -17341.56142 | F10: =VLOOKUP($A10,'1.2 Nettokøb (D)'!$A$4:$I$46,6,0)-VLOOKUP($A10,'1.4 Udbytter (D)'!$A$3:$I$45,6,0) -> 10368.72504 | G10: =VLOOKUP($A10,'1.2 Nettokøb (D)'!$A$4:$I$46,7,0)-VLOOKUP($A10,'1.4 Udbytter (D)'!$A$3:$I$45,7,0) -> 1460.040506 | H10: =VLOOKUP($A10,'1.2 Nettokøb (D)'!$A$4:$I$46,8,0)-VLOOKUP($A10,'1.4 Udbytter (D)'!$A$3:$I$45,8,0) -> -1338.611049 | I10: =VLOOKUP($A10,'1.2 Nettokøb (D)'!$A$4:$I$46,9,0)-VLOOKUP($A10,'1.4 Udbytter (D)'!$A$3:$I$45,9,0) -> 9408.044437 | K10: C Worldwide | L10: =VLOOKUP($K10,'2.3 Nettokøb (D)'!$A$4:$I$53,2,0)-VLOOKUP($K10,'1.4 Udbytter (D)'!$K$3:$S$52,2,0) -> -664.4880515 | M10: =VLOOKUP($K10,'2.3 Nettokøb (D)'!$A$4:$I$53,3,0)-VLOOKUP($K10,'1.4 Udbytter (D)'!$K$3:$S$52,3,0) -> 250.2601172 | N10: =VLOOKUP($K10,'2.3 Nettokøb (D)'!$A$4:$I$53,4,0)-VLOOKUP($K10,'1.4 Udbytter (D)'!$K$3:$S$52,4,0) -> 552.4691366 | O10: =VLOOKUP($K10,'2.3 Nettokøb (D)'!$A$4:$I$53,5,0)-VLOOKUP($K10,'1.4 Udbytter (D)'!$K$3:$S$52,5,0) -> -397.2171801 | P10: =VLOOKUP($K10,'2.3 Nettokøb (D)'!$A$4:$I$53,6,0)-VLOOKUP($K10,'1.4 Udbytter (D)'!$K$3:$S$52,6,0) -> -768.194377 | Q10: =VLOOKUP($K10,'2.3 Nettokøb (D)'!$A$4:$I$53,7,0)-VLOOKUP($K10,'1.4 Udbytter (D)'!$K$3:$S$52,7,0) -> -0.35992543 | R10: =VLOOKUP($K10,'2.3 Nettokøb (D)'!$A$4:$I$53,8,0)-VLOOKUP($K10,'1.4 Udbytter (D)'!$K$3:$S$52,8,0) -> 51.9572848 | S10: =VLOOKUP($K10,'2.3 Nettokøb (D)'!$A$4:$I$53,9,0)-VLOOKUP($K10,'1.4 Udbytter (D)'!$K$3:$S$52,9,0) -> -576.2978163
A11: Aktier Health Care | B11: =VLOOKUP($A11,'1.2 Nettokøb (D)'!$A$4:$I$46,2,0)-VLOOKUP($A11,'1.4 Udbytter (D)'!$A$3:$I$45,2,0) -> -114.2635627 | C11: =VLOOKUP($A11,'1.2 Nettokøb (D)'!$A$4:$I$46,3,0)-VLOOKUP($A11,'1.4 Udbytter (D)'!$A$3:$I$45,3,0) -> -20.8960562 | D11: =VLOOKUP($A11,'1.2 Nettokøb (D)'!$A$4:$I$46,4,0)-VLOOKUP($A11,'1.4 Udbytter (D)'!$A$3:$I$45,4,0) -> -133.0710496 | E11: =VLOOKUP($A11,'1.2 Nettokøb (D)'!$A$4:$I$46,5,0)-VLOOKUP($A11,'1.4 Udbytter (D)'!$A$3:$I$45,5,0) -> -95.81413029 | F11: =VLOOKUP($A11,'1.2 Nettokøb (D)'!$A$4:$I$46,6,0)-VLOOKUP($A11,'1.4 Udbytter (D)'!$A$3:$I$45,6,0) -> 925.5784375 | G11: =VLOOKUP($A11,'1.2 Nettokøb (D)'!$A$4:$I$46,7,0)-VLOOKUP($A11,'1.4 Udbytter (D)'!$A$3:$I$45,7,0) -> -1.50785 | H11: =VLOOKUP($A11,'1.2 Nettokøb (D)'!$A$4:$I$46,8,0)-VLOOKUP($A11,'1.4 Udbytter (D)'!$A$3:$I$45,8,0) -> -4.78235 | I11: =VLOOKUP($A11,'1.2 Nettokøb (D)'!$A$4:$I$46,9,0)-VLOOKUP($A11,'1.4 Udbytter (D)'!$A$3:$I$45,9,0) -> -80.1147377 | K11: Carnegie Wealth Management | L11: =VLOOKUP($K11,'2.3 Nettokøb (D)'!$A$4:$I$53,2,0)-VLOOKUP($K11,'1.4 Udbytter (D)'!$K$3:$S$52,2,0) -> 0 | M11: =VLOOKUP($K11,'2.3 Nettokøb (D)'!$A$4:$I$53,3,0)-VLOOKUP($K11,'1.4 Udbytter (D)'!$K$3:$S$52,3,0) -> 48.69363 | N11: =VLOOKUP($K11,'2.3 Nettokøb (D)'!$A$4:$I$53,4,0)-VLOOKUP($K11,'1.4 Udbytter (D)'!$K$3:$S$52,4,0) -> 156.145475 | O11: =VLOOKUP($K11,'2.3 Nettokøb (D)'!$A$4:$I$53,5,0)-VLOOKUP($K11,'1.4 Udbytter (D)'!$K$3:$S$52,5,0) -> -5.699387 | P11: =VLOOKUP($K11,'2.3 Nettokøb (D)'!$A$4:$I$53,6,0)-VLOOKUP($K11,'1.4 Udbytter (D)'!$K$3:$S$52,6,0) -> -53.353 | Q11: =VLOOKUP($K11,'2.3 Nettokøb (D)'!$A$4:$I$53,7,0)-VLOOKUP($K11,'1.4 Udbytter (D)'!$K$3:$S$52,7,0) -> -2.599 | R11: =VLOOKUP($K11,'2.3 Nettokøb (D)'!$A$4:$I$53,8,0)-VLOOKUP($K11,'1.4 Udbytter (D)'!$K$3:$S$52,8,0) -> -4.54475 | S11: =VLOOKUP($K11,'2.3 Nettokøb (D)'!$A$4:$I$53,9,0)-VLOOKUP($K11,'1.4 Udbytter (D)'!$K$3:$S$52,9,0) -> -55.448775
A12: Aktier IT | B12: =VLOOKUP($A12,'1.2 Nettokøb (D)'!$A$4:$I$46,2,0)-VLOOKUP($A12,'1.4 Udbytter (D)'!$A$3:$I$45,2,0) -> -15.8189748 | C12: =VLOOKUP($A12,'1.2 Nettokøb (D)'!$A$4:$I$46,3,0)-VLOOKUP($A12,'1.4 Udbytter (D)'!$A$3:$I$45,3,0) -> 386.8057299 | D12: =VLOOKUP($A12,'1.2 Nettokøb (D)'!$A$4:$I$46,4,0)-VLOOKUP($A12,'1.4 Udbytter (D)'!$A$3:$I$45,4,0) -> -15.4928873 | E12: =VLOOKUP($A12,'1.2 Nettokøb (D)'!$A$4:$I$46,5,0)-VLOOKUP($A12,'1.4 Udbytter (D)'!$A$3:$I$45,5,0) -> -372.8438191 | F12: =VLOOKUP($A12,'1.2 Nettokøb (D)'!$A$4:$I$46,6,0)-VLOOKUP($A12,'1.4 Udbytter (D)'!$A$3:$I$45,6,0) -> 403.9127318 | G12: =VLOOKUP($A12,'1.2 Nettokøb (D)'!$A$4:$I$46,7,0)-VLOOKUP($A12,'1.4 Udbytter (D)'!$A$3:$I$45,7,0) -> 37.16505125 | H12: =VLOOKUP($A12,'1.2 Nettokøb (D)'!$A$4:$I$46,8,0)-VLOOKUP($A12,'1.4 Udbytter (D)'!$A$3:$I$45,8,0) -> 8.03922075 | I12: =VLOOKUP($A12,'1.2 Nettokøb (D)'!$A$4:$I$46,9,0)-VLOOKUP($A12,'1.4 Udbytter (D)'!$A$3:$I$45,9,0) -> 529.2314075 | K12: Coop Opsparing | L12: =VLOOKUP($K12,'2.3 Nettokøb (D)'!$A$4:$I$53,2,0)-VLOOKUP($K12,'1.4 Udbytter (D)'!$K$3:$S$52,2,0) -> 0 | M12: =VLOOKUP($K12,'2.3 Nettokøb (D)'!$A$4:$I$53,3,0)-VLOOKUP($K12,'1.4 Udbytter (D)'!$K$3:$S$52,3,0) -> 0 | N12: =VLOOKUP($K12,'2.3 Nettokøb (D)'!$A$4:$I$53,4,0)-VLOOKUP($K12,'1.4 Udbytter (D)'!$K$3:$S$52,4,0) -> 0 | O12: =VLOOKUP($K12,'2.3 Nettokøb (D)'!$A$4:$I$53,5,0)-VLOOKUP($K12,'1.4 Udbytter (D)'!$K$3:$S$52,5,0) -> 0 | P12: =VLOOKUP($K12,'2.3 Nettokøb (D)'!$A$4:$I$53,6,0)-VLOOKUP($K12,'1.4 Udbytter (D)'!$K$3:$S$52,6,0) -> 0 | Q12: =VLOOKUP($K12,'2.3 Nettokøb (D)'!$A$4:$I$53,7,0)-VLOOKUP($K12,'1.4 Udbytter (D)'!$K$3:$S$52,7,0) -> -3.771309 | R12: =VLOOKUP($K12,'2.3 Nettokøb (D)'!$A$4:$I$53,8,0)-VLOOKUP($K12,'1.4 Udbytter (D)'!$K$3:$S$52,8,0) -> -8.257057 | S12: =VLOOKUP($K12,'2.3 Nettokøb (D)'!$A$4:$I$53,9,0)-VLOOKUP($K12,'1.4 Udbytter (D)'!$K$3:$S$52,9,0) -> -55.536859
A13: Aktier Japan | B13: =VLOOKUP($A13,'1.2 Nettokøb (D)'!$A$4:$I$46,2,0)-VLOOKUP($A13,'1.4 Udbytter (D)'!$A$3:$I$45,2,0) -> -2139.904742 | C13: =VLOOKUP($A13,'1.2 Nettokøb (D)'!$A$4:$I$46,3,0)-VLOOKUP($A13,'1.4 Udbytter (D)'!$A$3:$I$45,3,0) -> -1185.342012 | D13: =VLOOKUP($A13,'1.2 Nettokøb (D)'!$A$4:$I$46,4,0)-VLOOKUP($A13,'1.4 Udbytter (D)'!$A$3:$I$45,4,0) -> -291.7699547 | E13: =VLOOKUP($A13,'1.2 Nettokøb (D)'!$A$4:$I$46,5,0)-VLOOKUP($A13,'1.4 Udbytter (D)'!$A$3:$I$45,5,0) -> -246.9058363 | F13: =VLOOKUP($A13,'1.2 Nettokøb (D)'!$A$4:$I$46,6,0)-VLOOKUP($A13,'1.4 Udbytter (D)'!$A$3:$I$45,6,0) -> -38.51358739 | G13: =VLOOKUP($A13,'1.2 Nettokøb (D)'!$A$4:$I$46,7,0)-VLOOKUP($A13,'1.4 Udbytter (D)'!$A$3:$I$45,7,0) -> -21.286748 | H13: =VLOOKUP($A13,'1.2 Nettokøb (D)'!$A$4:$I$46,8,0)-VLOOKUP($A13,'1.4 Udbytter (D)'!$A$3:$I$45,8,0) -> -25.278272 | I13: =VLOOKUP($A13,'1.2 Nettokøb (D)'!$A$4:$I$46,9,0)-VLOOKUP($A13,'1.4 Udbytter (D)'!$A$3:$I$45,9,0) -> 262.6595283 | K13: Danske Invest | L13: =VLOOKUP($K13,'2.3 Nettokøb (D)'!$A$4:$I$53,2,0)-VLOOKUP($K13,'1.4 Udbytter (D)'!$K$3:$S$52,2,0) -> -18988.39588 | M13: =VLOOKUP($K13,'2.3 Nettokøb (D)'!$A$4:$I$53,3,0)-VLOOKUP($K13,'1.4 Udbytter (D)'!$K$3:$S$52,3,0) -> -9564.169534 | N13: =VLOOKUP($K13,'2.3 Nettokøb (D)'!$A$4:$I$53,4,0)-VLOOKUP($K13,'1.4 Udbytter (D)'!$K$3:$S$52,4,0) -> -88.54817359 | O13: =VLOOKUP($K13,'2.3 Nettokøb (D)'!$A$4:$I$53,5,0)-VLOOKUP($K13,'1.4 Udbytter (D)'!$K$3:$S$52,5,0) -> -19391.58833 | P13: =VLOOKUP($K13,'2.3 Nettokøb (D)'!$A$4:$I$53,6,0)-VLOOKUP($K13,'1.4 Udbytter (D)'!$K$3:$S$52,6,0) -> -5414.218448 | Q13: =VLOOKUP($K13,'2.3 Nettokøb (D)'!$A$4:$I$53,7,0)-VLOOKUP($K13,'1.4 Udbytter (D)'!$K$3:$S$52,7,0) -> -75.92433667 | R13: =VLOOKUP($K13,'2.3 Nettokøb (D)'!$A$4:$I$53,8,0)-VLOOKUP($K13,'1.4 Udbytter (D)'!$K$3:$S$52,8,0) -> -3058.581715 | S13: =VLOOKUP($K13,'2.3 Nettokøb (D)'!$A$4:$I$53,9,0)-VLOOKUP($K13,'1.4 Udbytter (D)'!$K$3:$S$52,9,0) -> -1694.602363
A14: Aktier Kina | B14: =VLOOKUP($A14,'1.2 Nettokøb (D)'!$A$4:$I$46,2,0)-VLOOKUP($A14,'1.4 Udbytter (D)'!$A$3:$I$45,2,0) -> -183.3963763 | C14: =VLOOKUP($A14,'1.2 Nettokøb (D)'!$A$4:$I$46,3,0)-VLOOKUP($A14,'1.4 Udbytter (D)'!$A$3:$I$45,3,0) -> -27.85157975 | D14: =VLOOKUP($A14,'1.2 Nettokøb (D)'!$A$4:$I$46,4,0)-VLOOKUP($A14,'1.4 Udbytter (D)'!$A$3:$I$45,4,0) -> 4.810608263 | E14: =VLOOKUP($A14,'1.2 Nettokøb (D)'!$A$4:$I$46,5,0)-VLOOKUP($A14,'1.4 Udbytter (D)'!$A$3:$I$45,5,0) -> -247.0625195 | F14: =VLOOKUP($A14,'1.2 Nettokøb (D)'!$A$4:$I$46,6,0)-VLOOKUP($A14,'1.4 Udbytter (D)'!$A$3:$I$45,6,0) -> -10.17860752 | G14: =VLOOKUP($A14,'1.2 Nettokøb (D)'!$A$4:$I$46,7,0)-VLOOKUP($A14,'1.4 Udbytter (D)'!$A$3:$I$45,7,0) -> -0.396405 | H14: =VLOOKUP($A14,'1.2 Nettokøb (D)'!$A$4:$I$46,8,0)-VLOOKUP($A14,'1.4 Udbytter (D)'!$A$3:$I$45,8,0) -> -2.018684 | I14: =VLOOKUP($A14,'1.2 Nettokøb (D)'!$A$4:$I$46,9,0)-VLOOKUP($A14,'1.4 Udbytter (D)'!$A$3:$I$45,9,0) -> -17.919504 | K14: Falcon Invest | L14: =VLOOKUP($K14,'2.3 Nettokøb (D)'!$A$4:$I$53,2,0)-VLOOKUP($K14,'1.4 Udbytter (D)'!$K$3:$S$52,2,0) -> 6.362021 | M14: =VLOOKUP($K14,'2.3 Nettokøb (D)'!$A$4:$I$53,3,0)-VLOOKUP($K14,'1.4 Udbytter (D)'!$K$3:$S$52,3,0) -> 45.470066 | N14: =VLOOKUP($K14,'2.3 Nettokøb (D)'!$A$4:$I$53,4,0)-VLOOKUP($K14,'1.4 Udbytter (D)'!$K$3:$S$52,4,0) -> 0.40395 | O14: =VLOOKUP($K14,'2.3 Nettokøb (D)'!$A$4:$I$53,5,0)-VLOOKUP($K14,'1.4 Udbytter (D)'!$K$3:$S$52,5,0) -> -99.11605 | P14: =VLOOKUP($K14,'2.3 Nettokøb (D)'!$A$4:$I$53,6,0)-VLOOKUP($K14,'1.4 Udbytter (D)'!$K$3:$S$52,6,0) -> 66.108823 | Q14: =VLOOKUP($K14,'2.3 Nettokøb (D)'!$A$4:$I$53,7,0)-VLOOKUP($K14,'1.4 Udbytter (D)'!$K$3:$S$52,7,0) -> 2.79207 | R14: =VLOOKUP($K14,'2.3 Nettokøb (D)'!$A$4:$I$53,8,0)-VLOOKUP($K14,'1.4 Udbytter (D)'!$K$3:$S$52,8,0) -> 5.47795 | S14: =VLOOKUP($K14,'2.3 Nettokøb (D)'!$A$4:$I$53,9,0)-VLOOKUP($K14,'1.4 Udbytter (D)'!$K$3:$S$52,9,0) -> -10.98759
A15: Aktier Latinamerika | B15: =VLOOKUP($A15,'1.2 Nettokøb (D)'!$A$4:$I$46,2,0)-VLOOKUP($A15,'1.4 Udbytter (D)'!$A$3:$I$45,2,0) -> -204.8270322 | C15: =VLOOKUP($A15,'1.2 Nettokøb (D)'!$A$4:$I$46,3,0)-VLOOKUP($A15,'1.4 Udbytter (D)'!$A$3:$I$45,3,0) -> 6.85504914 | D15: =VLOOKUP($A15,'1.2 Nettokøb (D)'!$A$4:$I$46,4,0)-VLOOKUP($A15,'1.4 Udbytter (D)'!$A$3:$I$45,4,0) -> -12.07775073 | E15: =VLOOKUP($A15,'1.2 Nettokøb (D)'!$A$4:$I$46,5,0)-VLOOKUP($A15,'1.4 Udbytter (D)'!$A$3:$I$45,5,0) -> 0 | F15: =VLOOKUP($A15,'1.2 Nettokøb (D)'!$A$4:$I$46,6,0)-VLOOKUP($A15,'1.4 Udbytter (D)'!$A$3:$I$45,6,0) -> 0 | G15: =VLOOKUP($A15,'1.2 Nettokøb (D)'!$A$4:$I$46,7,0)-VLOOKUP($A15,'1.4 Udbytter (D)'!$A$3:$I$45,7,0) -> 0 | H15: =VLOOKUP($A15,'1.2 Nettokøb (D)'!$A$4:$I$46,8,0)-VLOOKUP($A15,'1.4 Udbytter (D)'!$A$3:$I$45,8,0) -> 0 | I15: =VLOOKUP($A15,'1.2 Nettokøb (D)'!$A$4:$I$46,9,0)-VLOOKUP($A15,'1.4 Udbytter (D)'!$A$3:$I$45,9,0) -> 0 | K15: Formuepleje | L15: =VLOOKUP($K15,'2.3 Nettokøb (D)'!$A$4:$I$53,2,0)-VLOOKUP($K15,'1.4 Udbytter (D)'!$K$3:$S$52,2,0) -> 4942.763702 | M15: =VLOOKUP($K15,'2.3 Nettokøb (D)'!$A$4:$I$53,3,0)-VLOOKUP($K15,'1.4 Udbytter (D)'!$K$3:$S$52,3,0) -> 8312.108635 | N15: =VLOOKUP($K15,'2.3 Nettokøb (D)'!$A$4:$I$53,4,0)-VLOOKUP($K15,'1.4 Udbytter (D)'!$K$3:$S$52,4,0) -> -8073.882855 | O15: =VLOOKUP($K15,'2.3 Nettokøb (D)'!$A$4:$I$53,5,0)-VLOOKUP($K15,'1.4 Udbytter (D)'!$K$3:$S$52,5,0) -> -9140.915839 | P15: =VLOOKUP($K15,'2.3 Nettokøb (D)'!$A$4:$I$53,6,0)-VLOOKUP($K15,'1.4 Udbytter (D)'!$K$3:$S$52,6,0) -> -5312.424479 | Q15: =VLOOKUP($K15,'2.3 Nettokøb (D)'!$A$4:$I$53,7,0)-VLOOKUP($K15,'1.4 Udbytter (D)'!$K$3:$S$52,7,0) -> -117.528744 | R15: =VLOOKUP($K15,'2.3 Nettokøb (D)'!$A$4:$I$53,8,0)-VLOOKUP($K15,'1.4 Udbytter (D)'!$K$3:$S$52,8,0) -> -769.01625 | S15: =VLOOKUP($K15,'2.3 Nettokøb (D)'!$A$4:$I$53,9,0)-VLOOKUP($K15,'1.4 Udbytter (D)'!$K$3:$S$52,9,0) -> -2979.479017
A16: Aktier Nordamerika | B16: =VLOOKUP($A16,'1.2 Nettokøb (D)'!$A$4:$I$46,2,0)-VLOOKUP($A16,'1.4 Udbytter (D)'!$A$3:$I$45,2,0) -> -144.4430128 | C16: =VLOOKUP($A16,'1.2 Nettokøb (D)'!$A$4:$I$46,3,0)-VLOOKUP($A16,'1.4 Udbytter (D)'!$A$3:$I$45,3,0) -> -1923.36001 | D16: =VLOOKUP($A16,'1.2 Nettokøb (D)'!$A$4:$I$46,4,0)-VLOOKUP($A16,'1.4 Udbytter (D)'!$A$3:$I$45,4,0) -> -5436.269931 | E16: =VLOOKUP($A16,'1.2 Nettokøb (D)'!$A$4:$I$46,5,0)-VLOOKUP($A16,'1.4 Udbytter (D)'!$A$3:$I$45,5,0) -> -3207.215835 | F16: =VLOOKUP($A16,'1.2 Nettokøb (D)'!$A$4:$I$46,6,0)-VLOOKUP($A16,'1.4 Udbytter (D)'!$A$3:$I$45,6,0) -> -7065.975637 | G16: =VLOOKUP($A16,'1.2 Nettokøb (D)'!$A$4:$I$46,7,0)-VLOOKUP($A16,'1.4 Udbytter (D)'!$A$3:$I$45,7,0) -> 196.7545642 | H16: =VLOOKUP($A16,'1.2 Nettokøb (D)'!$A$4:$I$46,8,0)-VLOOKUP($A16,'1.4 Udbytter (D)'!$A$3:$I$45,8,0) -> 303.5560378 | I16: =VLOOKUP($A16,'1.2 Nettokøb (D)'!$A$4:$I$46,9,0)-VLOOKUP($A16,'1.4 Udbytter (D)'!$A$3:$I$45,9,0) -> 2535.658591 | K16: Fundamental Invest | L16: =VLOOKUP($K16,'2.3 Nettokøb (D)'!$A$4:$I$53,2,0)-VLOOKUP($K16,'1.4 Udbytter (D)'!$K$3:$S$52,2,0) -> -462.59792 | M16: =VLOOKUP($K16,'2.3 Nettokøb (D)'!$A$4:$I$53,3,0)-VLOOKUP($K16,'1.4 Udbytter (D)'!$K$3:$S$52,3,0) -> -241.169143 | N16: =VLOOKUP($K16,'2.3 Nettokøb (D)'!$A$4:$I$53,4,0)-VLOOKUP($K16,'1.4 Udbytter (D)'!$K$3:$S$52,4,0) -> -136.102974 | O16: =VLOOKUP($K16,'2.3 Nettokøb (D)'!$A$4:$I$53,5,0)-VLOOKUP($K16,'1.4 Udbytter (D)'!$K$3:$S$52,5,0) -> -215.928175 | P16: =VLOOKUP($K16,'2.3 Nettokøb (D)'!$A$4:$I$53,6,0)-VLOOKUP($K16,'1.4 Udbytter (D)'!$K$3:$S$52,6,0) -> -187.93246 | Q16: =VLOOKUP($K16,'2.3 Nettokøb (D)'!$A$4:$I$53,7,0)-VLOOKUP($K16,'1.4 Udbytter (D)'!$K$3:$S$52,7,0) -> -2.8394 | R16: =VLOOKUP($K16,'2.3 Nettokøb (D)'!$A$4:$I$53,8,0)-VLOOKUP($K16,'1.4 Udbytter (D)'!$K$3:$S$52,8,0) -> -11.7599 | S16: =VLOOKUP($K16,'2.3 Nettokøb (D)'!$A$4:$I$53,9,0)-VLOOKUP($K16,'1.4 Udbytter (D)'!$K$3:$S$52,9,0) -> -157.449611
A17: Aktier Norden | B17: =VLOOKUP($A17,'1.2 Nettokøb (D)'!$A$4:$I$46,2,0)-VLOOKUP($A17,'1.4 Udbytter (D)'!$A$3:$I$45,2,0) -> -118.069847 | C17: =VLOOKUP($A17,'1.2 Nettokøb (D)'!$A$4:$I$46,3,0)-VLOOKUP($A17,'1.4 Udbytter (D)'!$A$3:$I$45,3,0) -> 278.5397808 | D17: =VLOOKUP($A17,'1.2 Nettokøb (D)'!$A$4:$I$46,4,0)-VLOOKUP($A17,'1.4 Udbytter (D)'!$A$3:$I$45,4,0) -> 805.8914663 | E17: =VLOOKUP($A17,'1.2 Nettokøb (D)'!$A$4:$I$46,5,0)-VLOOKUP($A17,'1.4 Udbytter (D)'!$A$3:$I$45,5,0) -> 16.9637652 | F17: =VLOOKUP($A17,'1.2 Nettokøb (D)'!$A$4:$I$46,6,0)-VLOOKUP($A17,'1.4 Udbytter (D)'!$A$3:$I$45,6,0) -> -462.5399843 | G17: =VLOOKUP($A17,'1.2 Nettokøb (D)'!$A$4:$I$46,7,0)-VLOOKUP($A17,'1.4 Udbytter (D)'!$A$3:$I$45,7,0) -> -25.249095 | H17: =VLOOKUP($A17,'1.2 Nettokøb (D)'!$A$4:$I$46,8,0)-VLOOKUP($A17,'1.4 Udbytter (D)'!$A$3:$I$45,8,0) -> -148.297588 | I17: =VLOOKUP($A17,'1.2 Nettokøb (D)'!$A$4:$I$46,9,0)-VLOOKUP($A17,'1.4 Udbytter (D)'!$A$3:$I$45,9,0) -> -353.2192638 | K17: Great Dane | L17: =VLOOKUP($K17,'2.3 Nettokøb (D)'!$A$4:$I$53,2,0)-VLOOKUP($K17,'1.4 Udbytter (D)'!$K$3:$S$52,2,0) -> -33.09739 | M17: =VLOOKUP($K17,'2.3 Nettokøb (D)'!$A$4:$I$53,3,0)-VLOOKUP($K17,'1.4 Udbytter (D)'!$K$3:$S$52,3,0) -> -101.1867931 | N17: =VLOOKUP($K17,'2.3 Nettokøb (D)'!$A$4:$I$53,4,0)-VLOOKUP($K17,'1.4 Udbytter (D)'!$K$3:$S$52,4,0) -> 158.770096 | O17: =VLOOKUP($K17,'2.3 Nettokøb (D)'!$A$4:$I$53,5,0)-VLOOKUP($K17,'1.4 Udbytter (D)'!$K$3:$S$52,5,0) -> 426.851612 | P17: =VLOOKUP($K17,'2.3 Nettokøb (D)'!$A$4:$I$53,6,0)-VLOOKUP($K17,'1.4 Udbytter (D)'!$K$3:$S$52,6,0) -> -27.251126 | Q17: =VLOOKUP($K17,'2.3 Nettokøb (D)'!$A$4:$I$53,7,0)-VLOOKUP($K17,'1.4 Udbytter (D)'!$K$3:$S$52,7,0) -> 7.318463 | R17: =VLOOKUP($K17,'2.3 Nettokøb (D)'!$A$4:$I$53,8,0)-VLOOKUP($K17,'1.4 Udbytter (D)'!$K$3:$S$52,8,0) -> 9.453731 | S17: =VLOOKUP($K17,'2.3 Nettokøb (D)'!$A$4:$I$53,9,0)-VLOOKUP($K17,'1.4 Udbytter (D)'!$K$3:$S$52,9,0) -> 83.931392
A18: Aktier Tyskland | B18: =VLOOKUP($A18,'1.2 Nettokøb (D)'!$A$4:$I$46,2,0)-VLOOKUP($A18,'1.4 Udbytter (D)'!$A$3:$I$45,2,0) -> -982.9514192 | C18: =VLOOKUP($A18,'1.2 Nettokøb (D)'!$A$4:$I$46,3,0)-VLOOKUP($A18,'1.4 Udbytter (D)'!$A$3:$I$45,3,0) -> -74.30739671 | D18: =VLOOKUP($A18,'1.2 Nettokøb (D)'!$A$4:$I$46,4,0)-VLOOKUP($A18,'1.4 Udbytter (D)'!$A$3:$I$45,4,0) -> -47.27964689 | E18: =VLOOKUP($A18,'1.2 Nettokøb (D)'!$A$4:$I$46,5,0)-VLOOKUP($A18,'1.4 Udbytter (D)'!$A$3:$I$45,5,0) -> -55.84315191 | F18: =VLOOKUP($A18,'1.2 Nettokøb (D)'!$A$4:$I$46,6,0)-VLOOKUP($A18,'1.4 Udbytter (D)'!$A$3:$I$45,6,0) -> -40.10305055 | G18: =VLOOKUP($A18,'1.2 Nettokøb (D)'!$A$4:$I$46,7,0)-VLOOKUP($A18,'1.4 Udbytter (D)'!$A$3:$I$45,7,0) -> -2.2894518 | H18: =VLOOKUP($A18,'1.2 Nettokøb (D)'!$A$4:$I$46,8,0)-VLOOKUP($A18,'1.4 Udbytter (D)'!$A$3:$I$45,8,0) -> -5.90727425 | I18: =VLOOKUP($A18,'1.2 Nettokøb (D)'!$A$4:$I$46,9,0)-VLOOKUP($A18,'1.4 Udbytter (D)'!$A$3:$I$45,9,0) -> -42.2927172 | K18: Handelsinvest | L18: =VLOOKUP($K18,'2.3 Nettokøb (D)'!$A$4:$I$53,2,0)-VLOOKUP($K18,'1.4 Udbytter (D)'!$K$3:$S$52,2,0) -> -426.545282 | M18: =VLOOKUP($K18,'2.3 Nettokøb (D)'!$A$4:$I$53,3,0)-VLOOKUP($K18,'1.4 Udbytter (D)'!$K$3:$S$52,3,0) -> 409.845183 | N18: =VLOOKUP($K18,'2.3 Nettokøb (D)'!$A$4:$I$53,4,0)-VLOOKUP($K18,'1.4 Udbytter (D)'!$K$3:$S$52,4,0) -> 2990.123855 | O18: =VLOOKUP($K18,'2.3 Nettokøb (D)'!$A$4:$I$53,5,0)-VLOOKUP($K18,'1.4 Udbytter (D)'!$K$3:$S$52,5,0) -> -1105.023401 | P18: =VLOOKUP($K18,'2.3 Nettokøb (D)'!$A$4:$I$53,6,0)-VLOOKUP($K18,'1.4 Udbytter (D)'!$K$3:$S$52,6,0) -> -11083.27407 | Q18: =VLOOKUP($K18,'2.3 Nettokøb (D)'!$A$4:$I$53,7,0)-VLOOKUP($K18,'1.4 Udbytter (D)'!$K$3:$S$52,7,0) -> 0 | R18: =VLOOKUP($K18,'2.3 Nettokøb (D)'!$A$4:$I$53,8,0)-VLOOKUP($K18,'1.4 Udbytter (D)'!$K$3:$S$52,8,0) -> 0 | S18: =VLOOKUP($K18,'2.3 Nettokøb (D)'!$A$4:$I$53,9,0)-VLOOKUP($K18,'1.4 Udbytter (D)'!$K$3:$S$52,9,0) -> 0
A19: Aktier Østeuropa | B19: =VLOOKUP($A19,'1.2 Nettokøb (D)'!$A$4:$I$46,2,0)-VLOOKUP($A19,'1.4 Udbytter (D)'!$A$3:$I$45,2,0) -> -142.417466 | C19: =VLOOKUP($A19,'1.2 Nettokøb (D)'!$A$4:$I$46,3,0)-VLOOKUP($A19,'1.4 Udbytter (D)'!$A$3:$I$45,3,0) -> -55.03901014 | D19: =VLOOKUP($A19,'1.2 Nettokøb (D)'!$A$4:$I$46,4,0)-VLOOKUP($A19,'1.4 Udbytter (D)'!$A$3:$I$45,4,0) -> -16.0420364 | E19: =VLOOKUP($A19,'1.2 Nettokøb (D)'!$A$4:$I$46,5,0)-VLOOKUP($A19,'1.4 Udbytter (D)'!$A$3:$I$45,5,0) -> -80.32796681 | F19: =VLOOKUP($A19,'1.2 Nettokøb (D)'!$A$4:$I$46,6,0)-VLOOKUP($A19,'1.4 Udbytter (D)'!$A$3:$I$45,6,0) -> 0 | G19: =VLOOKUP($A19,'1.2 Nettokøb (D)'!$A$4:$I$46,7,0)-VLOOKUP($A19,'1.4 Udbytter (D)'!$A$3:$I$45,7,0) -> 0 | H19: =VLOOKUP($A19,'1.2 Nettokøb (D)'!$A$4:$I$46,8,0)-VLOOKUP($A19,'1.4 Udbytter (D)'!$A$3:$I$45,8,0) -> 0 | I19: =VLOOKUP($A19,'1.2 Nettokøb (D)'!$A$4:$I$46,9,0)-VLOOKUP($A19,'1.4 Udbytter (D)'!$A$3:$I$45,9,0) -> 0 | K19: HP Hedge | L19: =VLOOKUP($K19,'2.3 Nettokøb (D)'!$A$4:$I$53,2,0)-VLOOKUP($K19,'1.4 Udbytter (D)'!$K$3:$S$52,2,0) -> 110.2312496 | M19: =VLOOKUP($K19,'2.3 Nettokøb (D)'!$A$4:$I$53,3,0)-VLOOKUP($K19,'1.4 Udbytter (D)'!$K$3:$S$52,3,0) -> -225.3947604 | N19: =VLOOKUP($K19,'2.3 Nettokøb (D)'!$A$4:$I$53,4,0)-VLOOKUP($K19,'1.4 Udbytter (D)'!$K$3:$S$52,4,0) -> 2.03652414 | O19: =VLOOKUP($K19,'2.3 Nettokøb (D)'!$A$4:$I$53,5,0)-VLOOKUP($K19,'1.4 Udbytter (D)'!$K$3:$S$52,5,0) -> -82.64843702 | P19: =VLOOKUP($K19,'2.3 Nettokøb (D)'!$A$4:$I$53,6,0)-VLOOKUP($K19,'1.4 Udbytter (D)'!$K$3:$S$52,6,0) -> -555.9984384 | Q19: =VLOOKUP($K19,'2.3 Nettokøb (D)'!$A$4:$I$53,7,0)-VLOOKUP($K19,'1.4 Udbytter (D)'!$K$3:$S$52,7,0) -> 0 | R19: =VLOOKUP($K19,'2.3 Nettokøb (D)'!$A$4:$I$53,8,0)-VLOOKUP($K19,'1.4 Udbytter (D)'!$K$3:$S$52,8,0) -> 0 | S19: =VLOOKUP($K19,'2.3 Nettokøb (D)'!$A$4:$I$53,9,0)-VLOOKUP($K19,'1.4 Udbytter (D)'!$K$3:$S$52,9,0) -> 0
A20: Kapitalforeninger Aktier | B20: =VLOOKUP($A20,'1.2 Nettokøb (D)'!$A$4:$I$46,2,0)-VLOOKUP($A20,'1.4 Udbytter (D)'!$A$3:$I$45,2,0) -> 968.3434395 | C20: =VLOOKUP($A20,'1.2 Nettokøb (D)'!$A$4:$I$46,3,0)-VLOOKUP($A20,'1.4 Udbytter (D)'!$A$3:$I$45,3,0) -> 544.2677819 | D20: =VLOOKUP($A20,'1.2 Nettokøb (D)'!$A$4:$I$46,4,0)-VLOOKUP($A20,'1.4 Udbytter (D)'!$A$3:$I$45,4,0) -> 1469.691894 | E20: =VLOOKUP($A20,'1.2 Nettokøb (D)'!$A$4:$I$46,5,0)-VLOOKUP($A20,'1.4 Udbytter (D)'!$A$3:$I$45,5,0) -> -201.7183798 | F20: =VLOOKUP($A20,'1.2 Nettokøb (D)'!$A$4:$I$46,6,0)-VLOOKUP($A20,'1.4 Udbytter (D)'!$A$3:$I$45,6,0) -> -1268.003508 | G20: =VLOOKUP($A20,'1.2 Nettokøb (D)'!$A$4:$I$46,7,0)-VLOOKUP($A20,'1.4 Udbytter (D)'!$A$3:$I$45,7,0) -> -146.6387976 | H20: =VLOOKUP($A20,'1.2 Nettokøb (D)'!$A$4:$I$46,8,0)-VLOOKUP($A20,'1.4 Udbytter (D)'!$A$3:$I$45,8,0) -> -1561.655503 | I20: =VLOOKUP($A20,'1.2 Nettokøb (D)'!$A$4:$I$46,9,0)-VLOOKUP($A20,'1.4 Udbytter (D)'!$A$3:$I$45,9,0) -> -2640.634 | K20: HP Invest | L20: =VLOOKUP($K20,'2.3 Nettokøb (D)'!$A$4:$I$53,2,0)-VLOOKUP($K20,'1.4 Udbytter (D)'!$K$3:$S$52,2,0) -> 0 | M20: =VLOOKUP($K20,'2.3 Nettokøb (D)'!$A$4:$I$53,3,0)-VLOOKUP($K20,'1.4 Udbytter (D)'!$K$3:$S$52,3,0) -> 0 | N20: =VLOOKUP($K20,'2.3 Nettokøb (D)'!$A$4:$I$53,4,0)-VLOOKUP($K20,'1.4 Udbytter (D)'!$K$3:$S$52,4,0) -> 0 | O20: =VLOOKUP($K20,'2.3 Nettokøb (D)'!$A$4:$I$53,5,0)-VLOOKUP($K20,'1.4 Udbytter (D)'!$K$3:$S$52,5,0) -> 0 | P20: =VLOOKUP($K20,'2.3 Nettokøb (D)'!$A$4:$I$53,6,0)-VLOOKUP($K20,'1.4 Udbytter (D)'!$K$3:$S$52,6,0) -> 0 | Q20: =VLOOKUP($K20,'2.3 Nettokøb (D)'!$A$4:$I$53,7,0)-VLOOKUP($K20,'1.4 Udbytter (D)'!$K$3:$S$52,7,0) -> 0 | R20: =VLOOKUP($K20,'2.3 Nettokøb (D)'!$A$4:$I$53,8,0)-VLOOKUP($K20,'1.4 Udbytter (D)'!$K$3:$S$52,8,0) -> 0 | S20: =VLOOKUP($K20,'2.3 Nettokøb (D)'!$A$4:$I$53,9,0)-VLOOKUP($K20,'1.4 Udbytter (D)'!$K$3:$S$52,9,0) -> 0
A21: Udenlandske aktier i alt | B21: =VLOOKUP($A21,'1.2 Nettokøb (D)'!$A$4:$I$46,2,0)-VLOOKUP($A21,'1.4 Udbytter (D)'!$A$3:$I$45,2,0) -> -1667.548031 | C21: =VLOOKUP($A21,'1.2 Nettokøb (D)'!$A$4:$I$46,3,0)-VLOOKUP($A21,'1.4 Udbytter (D)'!$A$3:$I$45,3,0) -> 9474.604957 | D21: =VLOOKUP($A21,'1.2 Nettokøb (D)'!$A$4:$I$46,4,0)-VLOOKUP($A21,'1.4 Udbytter (D)'!$A$3:$I$45,4,0) -> 20903.24555 | E21: =VLOOKUP($A21,'1.2 Nettokøb (D)'!$A$4:$I$46,5,0)-VLOOKUP($A21,'1.4 Udbytter (D)'!$A$3:$I$45,5,0) -> -27250.56936 | F21: =VLOOKUP($A21,'1.2 Nettokøb (D)'!$A$4:$I$46,6,0)-VLOOKUP($A21,'1.4 Udbytter (D)'!$A$3:$I$45,6,0) -> -4437.917692 | G21: =VLOOKUP($A21,'1.2 Nettokøb (D)'!$A$4:$I$46,7,0)-VLOOKUP($A21,'1.4 Udbytter (D)'!$A$3:$I$45,7,0) -> 1735.224535 | H21: =VLOOKUP($A21,'1.2 Nettokøb (D)'!$A$4:$I$46,8,0)-VLOOKUP($A21,'1.4 Udbytter (D)'!$A$3:$I$45,8,0) -> -2237.835526 | I21: =VLOOKUP($A21,'1.2 Nettokøb (D)'!$A$4:$I$46,9,0)-VLOOKUP($A21,'1.4 Udbytter (D)'!$A$3:$I$45,9,0) -> 6649.927959 | K21: IA Invest | L21: =VLOOKUP($K21,'2.3 Nettokøb (D)'!$A$4:$I$53,2,0)-VLOOKUP($K21,'1.4 Udbytter (D)'!$K$3:$S$52,2,0) -> 22.42224 | M21: =VLOOKUP($K21,'2.3 Nettokøb (D)'!$A$4:$I$53,3,0)-VLOOKUP($K21,'1.4 Udbytter (D)'!$K$3:$S$52,3,0) -> 62.90423 | N21: =VLOOKUP($K21,'2.3 Nettokøb (D)'!$A$4:$I$53,4,0)-VLOOKUP($K21,'1.4 Udbytter (D)'!$K$3:$S$52,4,0) -> -20.708633 | O21: =VLOOKUP($K21,'2.3 Nettokøb (D)'!$A$4:$I$53,5,0)-VLOOKUP($K21,'1.4 Udbytter (D)'!$K$3:$S$52,5,0) -> -80.757576 | P21: =VLOOKUP($K21,'2.3 Nettokøb (D)'!$A$4:$I$53,6,0)-VLOOKUP($K21,'1.4 Udbytter (D)'!$K$3:$S$52,6,0) -> -8.194071 | Q21: =VLOOKUP($K21,'2.3 Nettokøb (D)'!$A$4:$I$53,7,0)-VLOOKUP($K21,'1.4 Udbytter (D)'!$K$3:$S$52,7,0) -> -1.542994 | R21: =VLOOKUP($K21,'2.3 Nettokøb (D)'!$A$4:$I$53,8,0)-VLOOKUP($K21,'1.4 Udbytter (D)'!$K$3:$S$52,8,0) -> 6.6987 | S21: =VLOOKUP($K21,'2.3 Nettokøb (D)'!$A$4:$I$53,9,0)-VLOOKUP($K21,'1.4 Udbytter (D)'!$K$3:$S$52,9,0) -> -22.5275
A22: Obligationer Korte Danske | B22: =VLOOKUP($A22,'1.2 Nettokøb (D)'!$A$4:$I$46,2,0)-VLOOKUP($A22,'1.4 Udbytter (D)'!$A$3:$I$45,2,0) -> -4608.026646 | C22: =VLOOKUP($A22,'1.2 Nettokøb (D)'!$A$4:$I$46,3,0)-VLOOKUP($A22,'1.4 Udbytter (D)'!$A$3:$I$45,3,0) -> 727.6739061 | D22: =VLOOKUP($A22,'1.2 Nettokøb (D)'!$A$4:$I$46,4,0)-VLOOKUP($A22,'1.4 Udbytter (D)'!$A$3:$I$45,4,0) -> 1505.968113 | E22: =VLOOKUP($A22,'1.2 Nettokøb (D)'!$A$4:$I$46,5,0)-VLOOKUP($A22,'1.4 Udbytter (D)'!$A$3:$I$45,5,0) -> 3248.502794 | F22: =VLOOKUP($A22,'1.2 Nettokøb (D)'!$A$4:$I$46,6,0)-VLOOKUP($A22,'1.4 Udbytter (D)'!$A$3:$I$45,6,0) -> 2716.313471 | G22: =VLOOKUP($A22,'1.2 Nettokøb (D)'!$A$4:$I$46,7,0)-VLOOKUP($A22,'1.4 Udbytter (D)'!$A$3:$I$45,7,0) -> -448.3802733 | H22: =VLOOKUP($A22,'1.2 Nettokøb (D)'!$A$4:$I$46,8,0)-VLOOKUP($A22,'1.4 Udbytter (D)'!$A$3:$I$45,8,0) -> 3109.791928 | I22: =VLOOKUP($A22,'1.2 Nettokøb (D)'!$A$4:$I$46,9,0)-VLOOKUP($A22,'1.4 Udbytter (D)'!$A$3:$I$45,9,0) -> 1785.245392 | K22: Investeringsforeningen Gudme Raaschou | L22: =VLOOKUP($K22,'2.3 Nettokøb (D)'!$A$4:$I$53,2,0)-VLOOKUP($K22,'1.4 Udbytter (D)'!$K$3:$S$52,2,0) -> -1827.711421 | M22: =VLOOKUP($K22,'2.3 Nettokøb (D)'!$A$4:$I$53,3,0)-VLOOKUP($K22,'1.4 Udbytter (D)'!$K$3:$S$52,3,0) -> 286.294268 | N22: =VLOOKUP($K22,'2.3 Nettokøb (D)'!$A$4:$I$53,4,0)-VLOOKUP($K22,'1.4 Udbytter (D)'!$K$3:$S$52,4,0) -> 196.811824 | O22: =VLOOKUP($K22,'2.3 Nettokøb (D)'!$A$4:$I$53,5,0)-VLOOKUP($K22,'1.4 Udbytter (D)'!$K$3:$S$52,5,0) -> -84.25927 | P22: =VLOOKUP($K22,'2.3 Nettokøb (D)'!$A$4:$I$53,6,0)-VLOOKUP($K22,'1.4 Udbytter (D)'!$K$3:$S$52,6,0) -> 46.231081 | Q22: =VLOOKUP($K22,'2.3 Nettokøb (D)'!$A$4:$I$53,7,0)-VLOOKUP($K22,'1.4 Udbytter (D)'!$K$3:$S$52,7,0) -> 6.82664 | R22: =VLOOKUP($K22,'2.3 Nettokøb (D)'!$A$4:$I$53,8,0)-VLOOKUP($K22,'1.4 Udbytter (D)'!$K$3:$S$52,8,0) -> 71.01354 | S22: =VLOOKUP($K22,'2.3 Nettokøb (D)'!$A$4:$I$53,9,0)-VLOOKUP($K22,'1.4 Udbytter (D)'!$K$3:$S$52,9,0) -> 159.117319
A23: Obligationer Lange Danske | B23: =VLOOKUP($A23,'1.2 Nettokøb (D)'!$A$4:$I$46,2,0)-VLOOKUP($A23,'1.4 Udbytter (D)'!$A$3:$I$45,2,0) -> -7.90921281 | C23: =VLOOKUP($A23,'1.2 Nettokøb (D)'!$A$4:$I$46,3,0)-VLOOKUP($A23,'1.4 Udbytter (D)'!$A$3:$I$45,3,0) -> -718.5453842 | D23: =VLOOKUP($A23,'1.2 Nettokøb (D)'!$A$4:$I$46,4,0)-VLOOKUP($A23,'1.4 Udbytter (D)'!$A$3:$I$45,4,0) -> 4944.463265 | E23: =VLOOKUP($A23,'1.2 Nettokøb (D)'!$A$4:$I$46,5,0)-VLOOKUP($A23,'1.4 Udbytter (D)'!$A$3:$I$45,5,0) -> 3898.050816 | F23: =VLOOKUP($A23,'1.2 Nettokøb (D)'!$A$4:$I$46,6,0)-VLOOKUP($A23,'1.4 Udbytter (D)'!$A$3:$I$45,6,0) -> 4796.057791 | G23: =VLOOKUP($A23,'1.2 Nettokøb (D)'!$A$4:$I$46,7,0)-VLOOKUP($A23,'1.4 Udbytter (D)'!$A$3:$I$45,7,0) -> -9.39604049 | H23: =VLOOKUP($A23,'1.2 Nettokøb (D)'!$A$4:$I$46,8,0)-VLOOKUP($A23,'1.4 Udbytter (D)'!$A$3:$I$45,8,0) -> -144.6732345 | I23: =VLOOKUP($A23,'1.2 Nettokøb (D)'!$A$4:$I$46,9,0)-VLOOKUP($A23,'1.4 Udbytter (D)'!$A$3:$I$45,9,0) -> 1249.23397 | K23: Investin | L23: =VLOOKUP($K23,'2.3 Nettokøb (D)'!$A$4:$I$53,2,0)-VLOOKUP($K23,'1.4 Udbytter (D)'!$K$3:$S$52,2,0) -> -0.06394055 | M23: =VLOOKUP($K23,'2.3 Nettokøb (D)'!$A$4:$I$53,3,0)-VLOOKUP($K23,'1.4 Udbytter (D)'!$K$3:$S$52,3,0) -> 871.6176679 | N23: =VLOOKUP($K23,'2.3 Nettokøb (D)'!$A$4:$I$53,4,0)-VLOOKUP($K23,'1.4 Udbytter (D)'!$K$3:$S$52,4,0) -> 797.0262071 | O23: =VLOOKUP($K23,'2.3 Nettokøb (D)'!$A$4:$I$53,5,0)-VLOOKUP($K23,'1.4 Udbytter (D)'!$K$3:$S$52,5,0) -> 148.5679522 | P23: =VLOOKUP($K23,'2.3 Nettokøb (D)'!$A$4:$I$53,6,0)-VLOOKUP($K23,'1.4 Udbytter (D)'!$K$3:$S$52,6,0) -> -272.7973554 | Q23: =VLOOKUP($K23,'2.3 Nettokøb (D)'!$A$4:$I$53,7,0)-VLOOKUP($K23,'1.4 Udbytter (D)'!$K$3:$S$52,7,0) -> 0 | R23: =VLOOKUP($K23,'2.3 Nettokøb (D)'!$A$4:$I$53,8,0)-VLOOKUP($K23,'1.4 Udbytter (D)'!$K$3:$S$52,8,0) -> 0 | S23: =VLOOKUP($K23,'2.3 Nettokøb (D)'!$A$4:$I$53,9,0)-VLOOKUP($K23,'1.4 Udbytter (D)'!$K$3:$S$52,9,0) -> 0
A24: Obligationer Øvrige Danske | B24: =VLOOKUP($A24,'1.2 Nettokøb (D)'!$A$4:$I$46,2,0)-VLOOKUP($A24,'1.4 Udbytter (D)'!$A$3:$I$45,2,0) -> 7492.156285 | C24: =VLOOKUP($A24,'1.2 Nettokøb (D)'!$A$4:$I$46,3,0)-VLOOKUP($A24,'1.4 Udbytter (D)'!$A$3:$I$45,3,0) -> -2813.42309 | D24: =VLOOKUP($A24,'1.2 Nettokøb (D)'!$A$4:$I$46,4,0)-VLOOKUP($A24,'1.4 Udbytter (D)'!$A$3:$I$45,4,0) -> 432.7734155 | E24: =VLOOKUP($A24,'1.2 Nettokøb (D)'!$A$4:$I$46,5,0)-VLOOKUP($A24,'1.4 Udbytter (D)'!$A$3:$I$45,5,0) -> 6939.467592 | F24: =VLOOKUP($A24,'1.2 Nettokøb (D)'!$A$4:$I$46,6,0)-VLOOKUP($A24,'1.4 Udbytter (D)'!$A$3:$I$45,6,0) -> -5812.688265 | G24: =VLOOKUP($A24,'1.2 Nettokøb (D)'!$A$4:$I$46,7,0)-VLOOKUP($A24,'1.4 Udbytter (D)'!$A$3:$I$45,7,0) -> 1201.457639 | H24: =VLOOKUP($A24,'1.2 Nettokøb (D)'!$A$4:$I$46,8,0)-VLOOKUP($A24,'1.4 Udbytter (D)'!$A$3:$I$45,8,0) -> -3402.866776 | I24: =VLOOKUP($A24,'1.2 Nettokøb (D)'!$A$4:$I$46,9,0)-VLOOKUP($A24,'1.4 Udbytter (D)'!$A$3:$I$45,9,0) -> 7436.1553 | K24: IR Invest | L24: =VLOOKUP($K24,'2.3 Nettokøb (D)'!$A$4:$I$53,2,0)-VLOOKUP($K24,'1.4 Udbytter (D)'!$K$3:$S$52,2,0) -> 0 | M24: =VLOOKUP($K24,'2.3 Nettokøb (D)'!$A$4:$I$53,3,0)-VLOOKUP($K24,'1.4 Udbytter (D)'!$K$3:$S$52,3,0) -> 0 | N24: =VLOOKUP($K24,'2.3 Nettokøb (D)'!$A$4:$I$53,4,0)-VLOOKUP($K24,'1.4 Udbytter (D)'!$K$3:$S$52,4,0) -> 0 | O24: =VLOOKUP($K24,'2.3 Nettokøb (D)'!$A$4:$I$53,5,0)-VLOOKUP($K24,'1.4 Udbytter (D)'!$K$3:$S$52,5,0) -> 0 | P24: =VLOOKUP($K24,'2.3 Nettokøb (D)'!$A$4:$I$53,6,0)-VLOOKUP($K24,'1.4 Udbytter (D)'!$K$3:$S$52,6,0) -> 0 | Q24: =VLOOKUP($K24,'2.3 Nettokøb (D)'!$A$4:$I$53,7,0)-VLOOKUP($K24,'1.4 Udbytter (D)'!$K$3:$S$52,7,0) -> 0 | R24: =VLOOKUP($K24,'2.3 Nettokøb (D)'!$A$4:$I$53,8,0)-VLOOKUP($K24,'1.4 Udbytter (D)'!$K$3:$S$52,8,0) -> 0 | S24: =VLOOKUP($K24,'2.3 Nettokøb (D)'!$A$4:$I$53,9,0)-VLOOKUP($K24,'1.4 Udbytter (D)'!$K$3:$S$52,9,0) -> 0
A25: Obligationer Danske Indeksobligationer | B25: =VLOOKUP($A25,'1.2 Nettokøb (D)'!$A$4:$I$46,2,0)-VLOOKUP($A25,'1.4 Udbytter (D)'!$A$3:$I$45,2,0) -> -4.4420425 | C25: =VLOOKUP($A25,'1.2 Nettokøb (D)'!$A$4:$I$46,3,0)-VLOOKUP($A25,'1.4 Udbytter (D)'!$A$3:$I$45,3,0) -> -5.7572882 | D25: =VLOOKUP($A25,'1.2 Nettokøb (D)'!$A$4:$I$46,4,0)-VLOOKUP($A25,'1.4 Udbytter (D)'!$A$3:$I$45,4,0) -> -12.1252279 | E25: =VLOOKUP($A25,'1.2 Nettokøb (D)'!$A$4:$I$46,5,0)-VLOOKUP($A25,'1.4 Udbytter (D)'!$A$3:$I$45,5,0) -> -7.4204688 | F25: =VLOOKUP($A25,'1.2 Nettokøb (D)'!$A$4:$I$46,6,0)-VLOOKUP($A25,'1.4 Udbytter (D)'!$A$3:$I$45,6,0) -> -12.2382539 | G25: =VLOOKUP($A25,'1.2 Nettokøb (D)'!$A$4:$I$46,7,0)-VLOOKUP($A25,'1.4 Udbytter (D)'!$A$3:$I$45,7,0) -> -3.0325 | H25: =VLOOKUP($A25,'1.2 Nettokøb (D)'!$A$4:$I$46,8,0)-VLOOKUP($A25,'1.4 Udbytter (D)'!$A$3:$I$45,8,0) -> -0.8302 | I25: =VLOOKUP($A25,'1.2 Nettokøb (D)'!$A$4:$I$46,9,0)-VLOOKUP($A25,'1.4 Udbytter (D)'!$A$3:$I$45,9,0) -> -10.8366568 | K25: Jyske Invest Fund Management A/S | L25: =VLOOKUP($K25,'2.3 Nettokøb (D)'!$A$4:$I$53,2,0)-VLOOKUP($K25,'1.4 Udbytter (D)'!$K$3:$S$52,2,0) -> 9194.500754 | M25: =VLOOKUP($K25,'2.3 Nettokøb (D)'!$A$4:$I$53,3,0)-VLOOKUP($K25,'1.4 Udbytter (D)'!$K$3:$S$52,3,0) -> 2066.762439 | N25: =VLOOKUP($K25,'2.3 Nettokøb (D)'!$A$4:$I$53,4,0)-VLOOKUP($K25,'1.4 Udbytter (D)'!$K$3:$S$52,4,0) -> 16835.49631 | O25: =VLOOKUP($K25,'2.3 Nettokøb (D)'!$A$4:$I$53,5,0)-VLOOKUP($K25,'1.4 Udbytter (D)'!$K$3:$S$52,5,0) -> 1853.672314 | P25: =VLOOKUP($K25,'2.3 Nettokøb (D)'!$A$4:$I$53,6,0)-VLOOKUP($K25,'1.4 Udbytter (D)'!$K$3:$S$52,6,0) -> 15209.87616 | Q25: =VLOOKUP($K25,'2.3 Nettokøb (D)'!$A$4:$I$53,7,0)-VLOOKUP($K25,'1.4 Udbytter (D)'!$K$3:$S$52,7,0) -> 569.631008 | R25: =VLOOKUP($K25,'2.3 Nettokøb (D)'!$A$4:$I$53,8,0)-VLOOKUP($K25,'1.4 Udbytter (D)'!$K$3:$S$52,8,0) -> 364.9020946 | S25: =VLOOKUP($K25,'2.3 Nettokøb (D)'!$A$4:$I$53,9,0)-VLOOKUP($K25,'1.4 Udbytter (D)'!$K$3:$S$52,9,0) -> 7184.537921
A26: Danske obligationer i alt | B26: =VLOOKUP($A26,'1.2 Nettokøb (D)'!$A$4:$I$46,2,0)-VLOOKUP($A26,'1.4 Udbytter (D)'!$A$3:$I$45,2,0) -> 2871.778384 | C26: =VLOOKUP($A26,'1.2 Nettokøb (D)'!$A$4:$I$46,3,0)-VLOOKUP($A26,'1.4 Udbytter (D)'!$A$3:$I$45,3,0) -> -2810.051856 | D26: =VLOOKUP($A26,'1.2 Nettokøb (D)'!$A$4:$I$46,4,0)-VLOOKUP($A26,'1.4 Udbytter (D)'!$A$3:$I$45,4,0) -> 6871.079566 | E26: =VLOOKUP($A26,'1.2 Nettokøb (D)'!$A$4:$I$46,5,0)-VLOOKUP($A26,'1.4 Udbytter (D)'!$A$3:$I$45,5,0) -> 14078.60073 | F26: =VLOOKUP($A26,'1.2 Nettokøb (D)'!$A$4:$I$46,6,0)-VLOOKUP($A26,'1.4 Udbytter (D)'!$A$3:$I$45,6,0) -> 1687.444743 | G26: =VLOOKUP($A26,'1.2 Nettokøb (D)'!$A$4:$I$46,7,0)-VLOOKUP($A26,'1.4 Udbytter (D)'!$A$3:$I$45,7,0) -> 740.6488252 | H26: =VLOOKUP($A26,'1.2 Nettokøb (D)'!$A$4:$I$46,8,0)-VLOOKUP($A26,'1.4 Udbytter (D)'!$A$3:$I$45,8,0) -> -438.5782833 | I26: =VLOOKUP($A26,'1.2 Nettokøb (D)'!$A$4:$I$46,9,0)-VLOOKUP($A26,'1.4 Udbytter (D)'!$A$3:$I$45,9,0) -> 10459.798 | K26: KAB / Lejerbo | L26: =VLOOKUP($K26,'2.3 Nettokøb (D)'!$A$4:$I$53,2,0)-VLOOKUP($K26,'1.4 Udbytter (D)'!$K$3:$S$52,2,0) -> 0 | M26: =VLOOKUP($K26,'2.3 Nettokøb (D)'!$A$4:$I$53,3,0)-VLOOKUP($K26,'1.4 Udbytter (D)'!$K$3:$S$52,3,0) -> 0 | N26: =VLOOKUP($K26,'2.3 Nettokøb (D)'!$A$4:$I$53,4,0)-VLOOKUP($K26,'1.4 Udbytter (D)'!$K$3:$S$52,4,0) -> 0 | O26: =VLOOKUP($K26,'2.3 Nettokøb (D)'!$A$4:$I$53,5,0)-VLOOKUP($K26,'1.4 Udbytter (D)'!$K$3:$S$52,5,0) -> 0 | P26: =VLOOKUP($K26,'2.3 Nettokøb (D)'!$A$4:$I$53,6,0)-VLOOKUP($K26,'1.4 Udbytter (D)'!$K$3:$S$52,6,0) -> 0 | Q26: =VLOOKUP($K26,'2.3 Nettokøb (D)'!$A$4:$I$53,7,0)-VLOOKUP($K26,'1.4 Udbytter (D)'!$K$3:$S$52,7,0) -> 0 | R26: =VLOOKUP($K26,'2.3 Nettokøb (D)'!$A$4:$I$53,8,0)-VLOOKUP($K26,'1.4 Udbytter (D)'!$K$3:$S$52,8,0) -> 0 | S26: =VLOOKUP($K26,'2.3 Nettokøb (D)'!$A$4:$I$53,9,0)-VLOOKUP($K26,'1.4 Udbytter (D)'!$K$3:$S$52,9,0) -> 0
A27: Obligationer Investment Grade | B27: =VLOOKUP($A27,'1.2 Nettokøb (D)'!$A$4:$I$46,2,0)-VLOOKUP($A27,'1.4 Udbytter (D)'!$A$3:$I$45,2,0) -> 2251.487658 | C27: =VLOOKUP($A27,'1.2 Nettokøb (D)'!$A$4:$I$46,3,0)-VLOOKUP($A27,'1.4 Udbytter (D)'!$A$3:$I$45,3,0) -> 6401.109171 | D27: =VLOOKUP($A27,'1.2 Nettokøb (D)'!$A$4:$I$46,4,0)-VLOOKUP($A27,'1.4 Udbytter (D)'!$A$3:$I$45,4,0) -> 2582.661138 | E27: =VLOOKUP($A27,'1.2 Nettokøb (D)'!$A$4:$I$46,5,0)-VLOOKUP($A27,'1.4 Udbytter (D)'!$A$3:$I$45,5,0) -> 971.7630096 | F27: =VLOOKUP($A27,'1.2 Nettokøb (D)'!$A$4:$I$46,6,0)-VLOOKUP($A27,'1.4 Udbytter (D)'!$A$3:$I$45,6,0) -> 1812.815497 | G27: =VLOOKUP($A27,'1.2 Nettokøb (D)'!$A$4:$I$46,7,0)-VLOOKUP($A27,'1.4 Udbytter (D)'!$A$3:$I$45,7,0) -> 1.525272331 | H27: =VLOOKUP($A27,'1.2 Nettokøb (D)'!$A$4:$I$46,8,0)-VLOOKUP($A27,'1.4 Udbytter (D)'!$A$3:$I$45,8,0) -> 257.7905659 | I27: =VLOOKUP($A27,'1.2 Nettokøb (D)'!$A$4:$I$46,9,0)-VLOOKUP($A27,'1.4 Udbytter (D)'!$A$3:$I$45,9,0) -> -1544.762658 | K27: Kapitalforeningen Blue Strait Capital | L27: =VLOOKUP($K27,'2.3 Nettokøb (D)'!$A$4:$I$53,2,0)-VLOOKUP($K27,'1.4 Udbytter (D)'!$K$3:$S$52,2,0) -> -127.5260759 | M27: =VLOOKUP($K27,'2.3 Nettokøb (D)'!$A$4:$I$53,3,0)-VLOOKUP($K27,'1.4 Udbytter (D)'!$K$3:$S$52,3,0) -> 34.38106893 | N27: =VLOOKUP($K27,'2.3 Nettokøb (D)'!$A$4:$I$53,4,0)-VLOOKUP($K27,'1.4 Udbytter (D)'!$K$3:$S$52,4,0) -> 34.900732 | O27: =VLOOKUP($K27,'2.3 Nettokøb (D)'!$A$4:$I$53,5,0)-VLOOKUP($K27,'1.4 Udbytter (D)'!$K$3:$S$52,5,0) -> 125.8851349 | P27: =VLOOKUP($K27,'2.3 Nettokøb (D)'!$A$4:$I$53,6,0)-VLOOKUP($K27,'1.4 Udbytter (D)'!$K$3:$S$52,6,0) -> -38.47195982 | Q27: =VLOOKUP($K27,'2.3 Nettokøb (D)'!$A$4:$I$53,7,0)-VLOOKUP($K27,'1.4 Udbytter (D)'!$K$3:$S$52,7,0) -> -2.49855 | R27: =VLOOKUP($K27,'2.3 Nettokøb (D)'!$A$4:$I$53,8,0)-VLOOKUP($K27,'1.4 Udbytter (D)'!$K$3:$S$52,8,0) -> -2.8641 | S27: =VLOOKUP($K27,'2.3 Nettokøb (D)'!$A$4:$I$53,9,0)-VLOOKUP($K27,'1.4 Udbytter (D)'!$K$3:$S$52,9,0) -> -37.64956066
A28: Obligationer Non-Investment Grade | B28: =VLOOKUP($A28,'1.2 Nettokøb (D)'!$A$4:$I$46,2,0)-VLOOKUP($A28,'1.4 Udbytter (D)'!$A$3:$I$45,2,0) -> 1874.452144 | C28: =VLOOKUP($A28,'1.2 Nettokøb (D)'!$A$4:$I$46,3,0)-VLOOKUP($A28,'1.4 Udbytter (D)'!$A$3:$I$45,3,0) -> 7636.846016 | D28: =VLOOKUP($A28,'1.2 Nettokøb (D)'!$A$4:$I$46,4,0)-VLOOKUP($A28,'1.4 Udbytter (D)'!$A$3:$I$45,4,0) -> -2693.859427 | E28: =VLOOKUP($A28,'1.2 Nettokøb (D)'!$A$4:$I$46,5,0)-VLOOKUP($A28,'1.4 Udbytter (D)'!$A$3:$I$45,5,0) -> -6627.001517 | F28: =VLOOKUP($A28,'1.2 Nettokøb (D)'!$A$4:$I$46,6,0)-VLOOKUP($A28,'1.4 Udbytter (D)'!$A$3:$I$45,6,0) -> 524.9442857 | G28: =VLOOKUP($A28,'1.2 Nettokøb (D)'!$A$4:$I$46,7,0)-VLOOKUP($A28,'1.4 Udbytter (D)'!$A$3:$I$45,7,0) -> -22.27520806 | H28: =VLOOKUP($A28,'1.2 Nettokøb (D)'!$A$4:$I$46,8,0)-VLOOKUP($A28,'1.4 Udbytter (D)'!$A$3:$I$45,8,0) -> 18.22967838 | I28: =VLOOKUP($A28,'1.2 Nettokøb (D)'!$A$4:$I$46,9,0)-VLOOKUP($A28,'1.4 Udbytter (D)'!$A$3:$I$45,9,0) -> 2860.833212 | K28: Kapitalforeningen Investering & Tryghed | L28: =VLOOKUP($K28,'2.3 Nettokøb (D)'!$A$4:$I$53,2,0)-VLOOKUP($K28,'1.4 Udbytter (D)'!$K$3:$S$52,2,0) -> 614.5068331 | M28: =VLOOKUP($K28,'2.3 Nettokøb (D)'!$A$4:$I$53,3,0)-VLOOKUP($K28,'1.4 Udbytter (D)'!$K$3:$S$52,3,0) -> 852.9159024 | N28: =VLOOKUP($K28,'2.3 Nettokøb (D)'!$A$4:$I$53,4,0)-VLOOKUP($K28,'1.4 Udbytter (D)'!$K$3:$S$52,4,0) -> 1703.430057 | O28: =VLOOKUP($K28,'2.3 Nettokøb (D)'!$A$4:$I$53,5,0)-VLOOKUP($K28,'1.4 Udbytter (D)'!$K$3:$S$52,5,0) -> 8.33543283 | P28: =VLOOKUP($K28,'2.3 Nettokøb (D)'!$A$4:$I$53,6,0)-VLOOKUP($K28,'1.4 Udbytter (D)'!$K$3:$S$52,6,0) -> -1784.23637 | Q28: =VLOOKUP($K28,'2.3 Nettokøb (D)'!$A$4:$I$53,7,0)-VLOOKUP($K28,'1.4 Udbytter (D)'!$K$3:$S$52,7,0) -> -117.494367 | R28: =VLOOKUP($K28,'2.3 Nettokøb (D)'!$A$4:$I$53,8,0)-VLOOKUP($K28,'1.4 Udbytter (D)'!$K$3:$S$52,8,0) -> -312.046523 | S28: =VLOOKUP($K28,'2.3 Nettokøb (D)'!$A$4:$I$53,9,0)-VLOOKUP($K28,'1.4 Udbytter (D)'!$K$3:$S$52,9,0) -> -1294.648306
A29: Obligationer Emerging Markets | B29: =VLOOKUP($A29,'1.2 Nettokøb (D)'!$A$4:$I$46,2,0)-VLOOKUP($A29,'1.4 Udbytter (D)'!$A$3:$I$45,2,0) -> -1379.84226 | C29: =VLOOKUP($A29,'1.2 Nettokøb (D)'!$A$4:$I$46,3,0)-VLOOKUP($A29,'1.4 Udbytter (D)'!$A$3:$I$45,3,0) -> 874.9724771 | D29: =VLOOKUP($A29,'1.2 Nettokøb (D)'!$A$4:$I$46,4,0)-VLOOKUP($A29,'1.4 Udbytter (D)'!$A$3:$I$45,4,0) -> 1179.275577 | E29: =VLOOKUP($A29,'1.2 Nettokøb (D)'!$A$4:$I$46,5,0)-VLOOKUP($A29,'1.4 Udbytter (D)'!$A$3:$I$45,5,0) -> -9992.386291 | F29: =VLOOKUP($A29,'1.2 Nettokøb (D)'!$A$4:$I$46,6,0)-VLOOKUP($A29,'1.4 Udbytter (D)'!$A$3:$I$45,6,0) -> -4966.969959 | G29: =VLOOKUP($A29,'1.2 Nettokøb (D)'!$A$4:$I$46,7,0)-VLOOKUP($A29,'1.4 Udbytter (D)'!$A$3:$I$45,7,0) -> 165.1656392 | H29: =VLOOKUP($A29,'1.2 Nettokøb (D)'!$A$4:$I$46,8,0)-VLOOKUP($A29,'1.4 Udbytter (D)'!$A$3:$I$45,8,0) -> 1195.710093 | I29: =VLOOKUP($A29,'1.2 Nettokøb (D)'!$A$4:$I$46,9,0)-VLOOKUP($A29,'1.4 Udbytter (D)'!$A$3:$I$45,9,0) -> 624.28994 | K29: Kapitalforeningen Tryg Invest Funds | L29: =VLOOKUP($K29,'2.3 Nettokøb (D)'!$A$4:$I$53,2,0)-VLOOKUP($K29,'1.4 Udbytter (D)'!$K$3:$S$52,2,0) -> 0 | M29: =VLOOKUP($K29,'2.3 Nettokøb (D)'!$A$4:$I$53,3,0)-VLOOKUP($K29,'1.4 Udbytter (D)'!$K$3:$S$52,3,0) -> 0 | N29: =VLOOKUP($K29,'2.3 Nettokøb (D)'!$A$4:$I$53,4,0)-VLOOKUP($K29,'1.4 Udbytter (D)'!$K$3:$S$52,4,0) -> 0 | O29: =VLOOKUP($K29,'2.3 Nettokøb (D)'!$A$4:$I$53,5,0)-VLOOKUP($K29,'1.4 Udbytter (D)'!$K$3:$S$52,5,0) -> 0 | P29: =VLOOKUP($K29,'2.3 Nettokøb (D)'!$A$4:$I$53,6,0)-VLOOKUP($K29,'1.4 Udbytter (D)'!$K$3:$S$52,6,0) -> 0 | Q29: =VLOOKUP($K29,'2.3 Nettokøb (D)'!$A$4:$I$53,7,0)-VLOOKUP($K29,'1.4 Udbytter (D)'!$K$3:$S$52,7,0) -> 0 | R29: =VLOOKUP($K29,'2.3 Nettokøb (D)'!$A$4:$I$53,8,0)-VLOOKUP($K29,'1.4 Udbytter (D)'!$K$3:$S$52,8,0) -> 0 | S29: =VLOOKUP($K29,'2.3 Nettokøb (D)'!$A$4:$I$53,9,0)-VLOOKUP($K29,'1.4 Udbytter (D)'!$K$3:$S$52,9,0) -> 0
A30: Obligationer Øvrige | B30: =VLOOKUP($A30,'1.2 Nettokøb (D)'!$A$4:$I$46,2,0)-VLOOKUP($A30,'1.4 Udbytter (D)'!$A$3:$I$45,2,0) -> 949.176646 | C30: =VLOOKUP($A30,'1.2 Nettokøb (D)'!$A$4:$I$46,3,0)-VLOOKUP($A30,'1.4 Udbytter (D)'!$A$3:$I$45,3,0) -> 2070.930908 | D30: =VLOOKUP($A30,'1.2 Nettokøb (D)'!$A$4:$I$46,4,0)-VLOOKUP($A30,'1.4 Udbytter (D)'!$A$3:$I$45,4,0) -> 6310.424036 | E30: =VLOOKUP($A30,'1.2 Nettokøb (D)'!$A$4:$I$46,5,0)-VLOOKUP($A30,'1.4 Udbytter (D)'!$A$3:$I$45,5,0) -> -657.4443158 | F30: =VLOOKUP($A30,'1.2 Nettokøb (D)'!$A$4:$I$46,6,0)-VLOOKUP($A30,'1.4 Udbytter (D)'!$A$3:$I$45,6,0) -> -993.5962366 | G30: =VLOOKUP($A30,'1.2 Nettokøb (D)'!$A$4:$I$46,7,0)-VLOOKUP($A30,'1.4 Udbytter (D)'!$A$3:$I$45,7,0) -> 202.2022235 | H30: =VLOOKUP($A30,'1.2 Nettokøb (D)'!$A$4:$I$46,8,0)-VLOOKUP($A30,'1.4 Udbytter (D)'!$A$3:$I$45,8,0) -> -891.1953215 | I30: =VLOOKUP($A30,'1.2 Nettokøb (D)'!$A$4:$I$46,9,0)-VLOOKUP($A30,'1.4 Udbytter (D)'!$A$3:$I$45,9,0) -> -6682.880256 | K30: Kapitalforeningen Wealth Invest | L30: =VLOOKUP($K30,'2.3 Nettokøb (D)'!$A$4:$I$53,2,0)-VLOOKUP($K30,'1.4 Udbytter (D)'!$K$3:$S$52,2,0) -> 0 | M30: =VLOOKUP($K30,'2.3 Nettokøb (D)'!$A$4:$I$53,3,0)-VLOOKUP($K30,'1.4 Udbytter (D)'!$K$3:$S$52,3,0) -> 0 | N30: =VLOOKUP($K30,'2.3 Nettokøb (D)'!$A$4:$I$53,4,0)-VLOOKUP($K30,'1.4 Udbytter (D)'!$K$3:$S$52,4,0) -> 0 | O30: =VLOOKUP($K30,'2.3 Nettokøb (D)'!$A$4:$I$53,5,0)-VLOOKUP($K30,'1.4 Udbytter (D)'!$K$3:$S$52,5,0) -> 0 | P30: =VLOOKUP($K30,'2.3 Nettokøb (D)'!$A$4:$I$53,6,0)-VLOOKUP($K30,'1.4 Udbytter (D)'!$K$3:$S$52,6,0) -> 0 | Q30: =VLOOKUP($K30,'2.3 Nettokøb (D)'!$A$4:$I$53,7,0)-VLOOKUP($K30,'1.4 Udbytter (D)'!$K$3:$S$52,7,0) -> -6.033958 | R30: =VLOOKUP($K30,'2.3 Nettokøb (D)'!$A$4:$I$53,8,0)-VLOOKUP($K30,'1.4 Udbytter (D)'!$K$3:$S$52,8,0) -> -6.779574 | S30: =VLOOKUP($K30,'2.3 Nettokøb (D)'!$A$4:$I$53,9,0)-VLOOKUP($K30,'1.4 Udbytter (D)'!$K$3:$S$52,9,0) -> -72.150649
A31: Obligationer Udenlandske Indeksobligationer | B31: =VLOOKUP($A31,'1.2 Nettokøb (D)'!$A$4:$I$46,2,0)-VLOOKUP($A31,'1.4 Udbytter (D)'!$A$3:$I$45,2,0) -> -1067.360615 | C31: =VLOOKUP($A31,'1.2 Nettokøb (D)'!$A$4:$I$46,3,0)-VLOOKUP($A31,'1.4 Udbytter (D)'!$A$3:$I$45,3,0) -> 6.34701181 | D31: =VLOOKUP($A31,'1.2 Nettokøb (D)'!$A$4:$I$46,4,0)-VLOOKUP($A31,'1.4 Udbytter (D)'!$A$3:$I$45,4,0) -> 4685.668752 | E31: =VLOOKUP($A31,'1.2 Nettokøb (D)'!$A$4:$I$46,5,0)-VLOOKUP($A31,'1.4 Udbytter (D)'!$A$3:$I$45,5,0) -> -697.1851585 | F31: =VLOOKUP($A31,'1.2 Nettokøb (D)'!$A$4:$I$46,6,0)-VLOOKUP($A31,'1.4 Udbytter (D)'!$A$3:$I$45,6,0) -> 4366.109947 | G31: =VLOOKUP($A31,'1.2 Nettokøb (D)'!$A$4:$I$46,7,0)-VLOOKUP($A31,'1.4 Udbytter (D)'!$A$3:$I$45,7,0) -> -232.3458295 | H31: =VLOOKUP($A31,'1.2 Nettokøb (D)'!$A$4:$I$46,8,0)-VLOOKUP($A31,'1.4 Udbytter (D)'!$A$3:$I$45,8,0) -> -351.1755216 | I31: =VLOOKUP($A31,'1.2 Nettokøb (D)'!$A$4:$I$46,9,0)-VLOOKUP($A31,'1.4 Udbytter (D)'!$A$3:$I$45,9,0) -> -411.4810109 | K31: Lægernes Invest | L31: =VLOOKUP($K31,'2.3 Nettokøb (D)'!$A$4:$I$53,2,0)-VLOOKUP($K31,'1.4 Udbytter (D)'!$K$3:$S$52,2,0) -> 6548.420512 | M31: =VLOOKUP($K31,'2.3 Nettokøb (D)'!$A$4:$I$53,3,0)-VLOOKUP($K31,'1.4 Udbytter (D)'!$K$3:$S$52,3,0) -> 8984.36012 | N31: =VLOOKUP($K31,'2.3 Nettokøb (D)'!$A$4:$I$53,4,0)-VLOOKUP($K31,'1.4 Udbytter (D)'!$K$3:$S$52,4,0) -> -9657.777891 | O31: =VLOOKUP($K31,'2.3 Nettokøb (D)'!$A$4:$I$53,5,0)-VLOOKUP($K31,'1.4 Udbytter (D)'!$K$3:$S$52,5,0) -> -2388.955994 | P31: =VLOOKUP($K31,'2.3 Nettokøb (D)'!$A$4:$I$53,6,0)-VLOOKUP($K31,'1.4 Udbytter (D)'!$K$3:$S$52,6,0) -> 2887.567196 | Q31: =VLOOKUP($K31,'2.3 Nettokøb (D)'!$A$4:$I$53,7,0)-VLOOKUP($K31,'1.4 Udbytter (D)'!$K$3:$S$52,7,0) -> 191.0213966 | R31: =VLOOKUP($K31,'2.3 Nettokøb (D)'!$A$4:$I$53,8,0)-VLOOKUP($K31,'1.4 Udbytter (D)'!$K$3:$S$52,8,0) -> -161.9674494 | S31: =VLOOKUP($K31,'2.3 Nettokøb (D)'!$A$4:$I$53,9,0)-VLOOKUP($K31,'1.4 Udbytter (D)'!$K$3:$S$52,9,0) -> -216.0416097
A32: Kapitalforeninger Obligationer Udenlandske | B32: =VLOOKUP($A32,'1.2 Nettokøb (D)'!$A$4:$I$46,2,0)-VLOOKUP($A32,'1.4 Udbytter (D)'!$A$3:$I$45,2,0) -> 1019.379868 | C32: =VLOOKUP($A32,'1.2 Nettokøb (D)'!$A$4:$I$46,3,0)-VLOOKUP($A32,'1.4 Udbytter (D)'!$A$3:$I$45,3,0) -> 751.1810964 | D32: =VLOOKUP($A32,'1.2 Nettokøb (D)'!$A$4:$I$46,4,0)-VLOOKUP($A32,'1.4 Udbytter (D)'!$A$3:$I$45,4,0) -> 1737.930479 | E32: =VLOOKUP($A32,'1.2 Nettokøb (D)'!$A$4:$I$46,5,0)-VLOOKUP($A32,'1.4 Udbytter (D)'!$A$3:$I$45,5,0) -> -562.7588305 | F32: =VLOOKUP($A32,'1.2 Nettokøb (D)'!$A$4:$I$46,6,0)-VLOOKUP($A32,'1.4 Udbytter (D)'!$A$3:$I$45,6,0) -> 347.9552109 | G32: =VLOOKUP($A32,'1.2 Nettokøb (D)'!$A$4:$I$46,7,0)-VLOOKUP($A32,'1.4 Udbytter (D)'!$A$3:$I$45,7,0) -> -59.90991895 | H32: =VLOOKUP($A32,'1.2 Nettokøb (D)'!$A$4:$I$46,8,0)-VLOOKUP($A32,'1.4 Udbytter (D)'!$A$3:$I$45,8,0) -> -87.28584415 | I32: =VLOOKUP($A32,'1.2 Nettokøb (D)'!$A$4:$I$46,9,0)-VLOOKUP($A32,'1.4 Udbytter (D)'!$A$3:$I$45,9,0) -> -130.9740092 | K32: Lån & Spar Invest | L32: =VLOOKUP($K32,'2.3 Nettokøb (D)'!$A$4:$I$53,2,0)-VLOOKUP($K32,'1.4 Udbytter (D)'!$K$3:$S$52,2,0) -> 228.420171 | M32: =VLOOKUP($K32,'2.3 Nettokøb (D)'!$A$4:$I$53,3,0)-VLOOKUP($K32,'1.4 Udbytter (D)'!$K$3:$S$52,3,0) -> 426.0073195 | N32: =VLOOKUP($K32,'2.3 Nettokøb (D)'!$A$4:$I$53,4,0)-VLOOKUP($K32,'1.4 Udbytter (D)'!$K$3:$S$52,4,0) -> 1035.709466 | O32: =VLOOKUP($K32,'2.3 Nettokøb (D)'!$A$4:$I$53,5,0)-VLOOKUP($K32,'1.4 Udbytter (D)'!$K$3:$S$52,5,0) -> -196.992983 | P32: =VLOOKUP($K32,'2.3 Nettokøb (D)'!$A$4:$I$53,6,0)-VLOOKUP($K32,'1.4 Udbytter (D)'!$K$3:$S$52,6,0) -> -352.511791 | Q32: =VLOOKUP($K32,'2.3 Nettokøb (D)'!$A$4:$I$53,7,0)-VLOOKUP($K32,'1.4 Udbytter (D)'!$K$3:$S$52,7,0) -> -6.27085 | R32: =VLOOKUP($K32,'2.3 Nettokøb (D)'!$A$4:$I$53,8,0)-VLOOKUP($K32,'1.4 Udbytter (D)'!$K$3:$S$52,8,0) -> 82.61538 | S32: =VLOOKUP($K32,'2.3 Nettokøb (D)'!$A$4:$I$53,9,0)-VLOOKUP($K32,'1.4 Udbytter (D)'!$K$3:$S$52,9,0) -> -149.037393
A33: Udenlandske obligationer i alt | B33: =VLOOKUP($A33,'1.2 Nettokøb (D)'!$A$4:$I$46,2,0)-VLOOKUP($A33,'1.4 Udbytter (D)'!$A$3:$I$45,2,0) -> 3647.293441 | C33: =VLOOKUP($A33,'1.2 Nettokøb (D)'!$A$4:$I$46,3,0)-VLOOKUP($A33,'1.4 Udbytter (D)'!$A$3:$I$45,3,0) -> 17741.38668 | D33: =VLOOKUP($A33,'1.2 Nettokøb (D)'!$A$4:$I$46,4,0)-VLOOKUP($A33,'1.4 Udbytter (D)'!$A$3:$I$45,4,0) -> 13802.10056 | E33: =VLOOKUP($A33,'1.2 Nettokøb (D)'!$A$4:$I$46,5,0)-VLOOKUP($A33,'1.4 Udbytter (D)'!$A$3:$I$45,5,0) -> -17565.0131 | F33: =VLOOKUP($A33,'1.2 Nettokøb (D)'!$A$4:$I$46,6,0)-VLOOKUP($A33,'1.4 Udbytter (D)'!$A$3:$I$45,6,0) -> 1091.258745 | G33: =VLOOKUP($A33,'1.2 Nettokøb (D)'!$A$4:$I$46,7,0)-VLOOKUP($A33,'1.4 Udbytter (D)'!$A$3:$I$45,7,0) -> 54.36217851 | H33: =VLOOKUP($A33,'1.2 Nettokøb (D)'!$A$4:$I$46,8,0)-VLOOKUP($A33,'1.4 Udbytter (D)'!$A$3:$I$45,8,0) -> 142.0736502 | I33: =VLOOKUP($A33,'1.2 Nettokøb (D)'!$A$4:$I$46,9,0)-VLOOKUP($A33,'1.4 Udbytter (D)'!$A$3:$I$45,9,0) -> -5284.974782 | K33: Maj Invest | L33: =VLOOKUP($K33,'2.3 Nettokøb (D)'!$A$4:$I$53,2,0)-VLOOKUP($K33,'1.4 Udbytter (D)'!$K$3:$S$52,2,0) -> 21.034885 | M33: =VLOOKUP($K33,'2.3 Nettokøb (D)'!$A$4:$I$53,3,0)-VLOOKUP($K33,'1.4 Udbytter (D)'!$K$3:$S$52,3,0) -> 125.742432 | N33: =VLOOKUP($K33,'2.3 Nettokøb (D)'!$A$4:$I$53,4,0)-VLOOKUP($K33,'1.4 Udbytter (D)'!$K$3:$S$52,4,0) -> -2324.012902 | O33: =VLOOKUP($K33,'2.3 Nettokøb (D)'!$A$4:$I$53,5,0)-VLOOKUP($K33,'1.4 Udbytter (D)'!$K$3:$S$52,5,0) -> -3182.732132 | P33: =VLOOKUP($K33,'2.3 Nettokøb (D)'!$A$4:$I$53,6,0)-VLOOKUP($K33,'1.4 Udbytter (D)'!$K$3:$S$52,6,0) -> -2333.979707 | Q33: =VLOOKUP($K33,'2.3 Nettokøb (D)'!$A$4:$I$53,7,0)-VLOOKUP($K33,'1.4 Udbytter (D)'!$K$3:$S$52,7,0) -> -36.477714 | R33: =VLOOKUP($K33,'2.3 Nettokøb (D)'!$A$4:$I$53,8,0)-VLOOKUP($K33,'1.4 Udbytter (D)'!$K$3:$S$52,8,0) -> -151.553601 | S33: =VLOOKUP($K33,'2.3 Nettokøb (D)'!$A$4:$I$53,9,0)-VLOOKUP($K33,'1.4 Udbytter (D)'!$K$3:$S$52,9,0) -> -1856.662521
A34: Pengemarkedsforeninger | B34: =VLOOKUP($A34,'1.2 Nettokøb (D)'!$A$4:$I$46,2,0)-VLOOKUP($A34,'1.4 Udbytter (D)'!$A$3:$I$45,2,0) -> 2.903173 | C34: =VLOOKUP($A34,'1.2 Nettokøb (D)'!$A$4:$I$46,3,0)-VLOOKUP($A34,'1.4 Udbytter (D)'!$A$3:$I$45,3,0) -> -245.747433 | D34: =VLOOKUP($A34,'1.2 Nettokøb (D)'!$A$4:$I$46,4,0)-VLOOKUP($A34,'1.4 Udbytter (D)'!$A$3:$I$45,4,0) -> 0 | E34: =VLOOKUP($A34,'1.2 Nettokøb (D)'!$A$4:$I$46,5,0)-VLOOKUP($A34,'1.4 Udbytter (D)'!$A$3:$I$45,5,0) -> 0 | F34: =VLOOKUP($A34,'1.2 Nettokøb (D)'!$A$4:$I$46,6,0)-VLOOKUP($A34,'1.4 Udbytter (D)'!$A$3:$I$45,6,0) -> 0 | G34: =VLOOKUP($A34,'1.2 Nettokøb (D)'!$A$4:$I$46,7,0)-VLOOKUP($A34,'1.4 Udbytter (D)'!$A$3:$I$45,7,0) -> 0 | H34: =VLOOKUP($A34,'1.2 Nettokøb (D)'!$A$4:$I$46,8,0)-VLOOKUP($A34,'1.4 Udbytter (D)'!$A$3:$I$45,8,0) -> 0 | I34: =VLOOKUP($A34,'1.2 Nettokøb (D)'!$A$4:$I$46,9,0)-VLOOKUP($A34,'1.4 Udbytter (D)'!$A$3:$I$45,9,0) -> 0 | K34: MS Invest | L34: =VLOOKUP($K34,'2.3 Nettokøb (D)'!$A$4:$I$53,2,0)-VLOOKUP($K34,'1.4 Udbytter (D)'!$K$3:$S$52,2,0) -> -112.552447 | M34: =VLOOKUP($K34,'2.3 Nettokøb (D)'!$A$4:$I$53,3,0)-VLOOKUP($K34,'1.4 Udbytter (D)'!$K$3:$S$52,3,0) -> -81.010572 | N34: =VLOOKUP($K34,'2.3 Nettokøb (D)'!$A$4:$I$53,4,0)-VLOOKUP($K34,'1.4 Udbytter (D)'!$K$3:$S$52,4,0) -> -57.312491 | O34: =VLOOKUP($K34,'2.3 Nettokøb (D)'!$A$4:$I$53,5,0)-VLOOKUP($K34,'1.4 Udbytter (D)'!$K$3:$S$52,5,0) -> -96.068572 | P34: =VLOOKUP($K34,'2.3 Nettokøb (D)'!$A$4:$I$53,6,0)-VLOOKUP($K34,'1.4 Udbytter (D)'!$K$3:$S$52,6,0) -> 0 | Q34: =VLOOKUP($K34,'2.3 Nettokøb (D)'!$A$4:$I$53,7,0)-VLOOKUP($K34,'1.4 Udbytter (D)'!$K$3:$S$52,7,0) -> 0 | R34: =VLOOKUP($K34,'2.3 Nettokøb (D)'!$A$4:$I$53,8,0)-VLOOKUP($K34,'1.4 Udbytter (D)'!$K$3:$S$52,8,0) -> 0 | S34: =VLOOKUP($K34,'2.3 Nettokøb (D)'!$A$4:$I$53,9,0)-VLOOKUP($K34,'1.4 Udbytter (D)'!$K$3:$S$52,9,0) -> 0
A35: Øvrige | B35: =VLOOKUP($A35,'1.2 Nettokøb (D)'!$A$4:$I$46,2,0)-VLOOKUP($A35,'1.4 Udbytter (D)'!$A$3:$I$45,2,0) -> -293.3570983 | C35: =VLOOKUP($A35,'1.2 Nettokøb (D)'!$A$4:$I$46,3,0)-VLOOKUP($A35,'1.4 Udbytter (D)'!$A$3:$I$45,3,0) -> -156.8939292 | D35: =VLOOKUP($A35,'1.2 Nettokøb (D)'!$A$4:$I$46,4,0)-VLOOKUP($A35,'1.4 Udbytter (D)'!$A$3:$I$45,4,0) -> 193.3128742 | E35: =VLOOKUP($A35,'1.2 Nettokøb (D)'!$A$4:$I$46,5,0)-VLOOKUP($A35,'1.4 Udbytter (D)'!$A$3:$I$45,5,0) -> 1609.673334 | F35: =VLOOKUP($A35,'1.2 Nettokøb (D)'!$A$4:$I$46,6,0)-VLOOKUP($A35,'1.4 Udbytter (D)'!$A$3:$I$45,6,0) -> -258.789981 | G35: =VLOOKUP($A35,'1.2 Nettokøb (D)'!$A$4:$I$46,7,0)-VLOOKUP($A35,'1.4 Udbytter (D)'!$A$3:$I$45,7,0) -> 223.465538 | H35: =VLOOKUP($A35,'1.2 Nettokøb (D)'!$A$4:$I$46,8,0)-VLOOKUP($A35,'1.4 Udbytter (D)'!$A$3:$I$45,8,0) -> 104.092218 | I35: =VLOOKUP($A35,'1.2 Nettokøb (D)'!$A$4:$I$46,9,0)-VLOOKUP($A35,'1.4 Udbytter (D)'!$A$3:$I$45,9,0) -> 813.600729 | K35: Nielsen Capital Management | L35: =VLOOKUP($K35,'2.3 Nettokøb (D)'!$A$4:$I$53,2,0)-VLOOKUP($K35,'1.4 Udbytter (D)'!$K$3:$S$52,2,0) -> 0 | M35: =VLOOKUP($K35,'2.3 Nettokøb (D)'!$A$4:$I$53,3,0)-VLOOKUP($K35,'1.4 Udbytter (D)'!$K$3:$S$52,3,0) -> 0 | N35: =VLOOKUP($K35,'2.3 Nettokøb (D)'!$A$4:$I$53,4,0)-VLOOKUP($K35,'1.4 Udbytter (D)'!$K$3:$S$52,4,0) -> 0 | O35: =VLOOKUP($K35,'2.3 Nettokøb (D)'!$A$4:$I$53,5,0)-VLOOKUP($K35,'1.4 Udbytter (D)'!$K$3:$S$52,5,0) -> 0 | P35: =VLOOKUP($K35,'2.3 Nettokøb (D)'!$A$4:$I$53,6,0)-VLOOKUP($K35,'1.4 Udbytter (D)'!$K$3:$S$52,6,0) -> 0 | Q35: =VLOOKUP($K35,'2.3 Nettokøb (D)'!$A$4:$I$53,7,0)-VLOOKUP($K35,'1.4 Udbytter (D)'!$K$3:$S$52,7,0) -> 0 | R35: =VLOOKUP($K35,'2.3 Nettokøb (D)'!$A$4:$I$53,8,0)-VLOOKUP($K35,'1.4 Udbytter (D)'!$K$3:$S$52,8,0) -> 0 | S35: =VLOOKUP($K35,'2.3 Nettokøb (D)'!$A$4:$I$53,9,0)-VLOOKUP($K35,'1.4 Udbytter (D)'!$K$3:$S$52,9,0) -> 0
A36: Blandede Balanceret | B36: =VLOOKUP($A36,'1.2 Nettokøb (D)'!$A$4:$I$46,2,0)-VLOOKUP($A36,'1.4 Udbytter (D)'!$A$3:$I$45,2,0) -> 11088.9555 | C36: =VLOOKUP($A36,'1.2 Nettokøb (D)'!$A$4:$I$46,3,0)-VLOOKUP($A36,'1.4 Udbytter (D)'!$A$3:$I$45,3,0) -> 10926.50526 | D36: =VLOOKUP($A36,'1.2 Nettokøb (D)'!$A$4:$I$46,4,0)-VLOOKUP($A36,'1.4 Udbytter (D)'!$A$3:$I$45,4,0) -> 11311.83621 | E36: =VLOOKUP($A36,'1.2 Nettokøb (D)'!$A$4:$I$46,5,0)-VLOOKUP($A36,'1.4 Udbytter (D)'!$A$3:$I$45,5,0) -> 305.5321399 | F36: =VLOOKUP($A36,'1.2 Nettokøb (D)'!$A$4:$I$46,6,0)-VLOOKUP($A36,'1.4 Udbytter (D)'!$A$3:$I$45,6,0) -> -3194.978216 | G36: =VLOOKUP($A36,'1.2 Nettokøb (D)'!$A$4:$I$46,7,0)-VLOOKUP($A36,'1.4 Udbytter (D)'!$A$3:$I$45,7,0) -> -343.1150831 | H36: =VLOOKUP($A36,'1.2 Nettokøb (D)'!$A$4:$I$46,8,0)-VLOOKUP($A36,'1.4 Udbytter (D)'!$A$3:$I$45,8,0) -> -77.46087293 | I36: =VLOOKUP($A36,'1.2 Nettokøb (D)'!$A$4:$I$46,9,0)-VLOOKUP($A36,'1.4 Udbytter (D)'!$A$3:$I$45,9,0) -> -1405.470321 | K36: Nordea Invest | L36: =VLOOKUP($K36,'2.3 Nettokøb (D)'!$A$4:$I$53,2,0)-VLOOKUP($K36,'1.4 Udbytter (D)'!$K$3:$S$52,2,0) -> 654.3361462 | M36: =VLOOKUP($K36,'2.3 Nettokøb (D)'!$A$4:$I$53,3,0)-VLOOKUP($K36,'1.4 Udbytter (D)'!$K$3:$S$52,3,0) -> 10735.32348 | N36: =VLOOKUP($K36,'2.3 Nettokøb (D)'!$A$4:$I$53,4,0)-VLOOKUP($K36,'1.4 Udbytter (D)'!$K$3:$S$52,4,0) -> 25549.559 | O36: =VLOOKUP($K36,'2.3 Nettokøb (D)'!$A$4:$I$53,5,0)-VLOOKUP($K36,'1.4 Udbytter (D)'!$K$3:$S$52,5,0) -> -1381.707532 | P36: =VLOOKUP($K36,'2.3 Nettokøb (D)'!$A$4:$I$53,6,0)-VLOOKUP($K36,'1.4 Udbytter (D)'!$K$3:$S$52,6,0) -> -1379.296639 | Q36: =VLOOKUP($K36,'2.3 Nettokøb (D)'!$A$4:$I$53,7,0)-VLOOKUP($K36,'1.4 Udbytter (D)'!$K$3:$S$52,7,0) -> 179.122929 | R36: =VLOOKUP($K36,'2.3 Nettokøb (D)'!$A$4:$I$53,8,0)-VLOOKUP($K36,'1.4 Udbytter (D)'!$K$3:$S$52,8,0) -> -1885.322428 | S36: =VLOOKUP($K36,'2.3 Nettokøb (D)'!$A$4:$I$53,9,0)-VLOOKUP($K36,'1.4 Udbytter (D)'!$K$3:$S$52,9,0) -> 4815.446058
A37: Blandede Fleksibel | B37: =VLOOKUP($A37,'1.2 Nettokøb (D)'!$A$4:$I$46,2,0)-VLOOKUP($A37,'1.4 Udbytter (D)'!$A$3:$I$45,2,0) -> 328.9316061 | C37: =VLOOKUP($A37,'1.2 Nettokøb (D)'!$A$4:$I$46,3,0)-VLOOKUP($A37,'1.4 Udbytter (D)'!$A$3:$I$45,3,0) -> 8327.502519 | D37: =VLOOKUP($A37,'1.2 Nettokøb (D)'!$A$4:$I$46,4,0)-VLOOKUP($A37,'1.4 Udbytter (D)'!$A$3:$I$45,4,0) -> 6888.164348 | E37: =VLOOKUP($A37,'1.2 Nettokøb (D)'!$A$4:$I$46,5,0)-VLOOKUP($A37,'1.4 Udbytter (D)'!$A$3:$I$45,5,0) -> -1080.169504 | F37: =VLOOKUP($A37,'1.2 Nettokøb (D)'!$A$4:$I$46,6,0)-VLOOKUP($A37,'1.4 Udbytter (D)'!$A$3:$I$45,6,0) -> -2043.872465 | G37: =VLOOKUP($A37,'1.2 Nettokøb (D)'!$A$4:$I$46,7,0)-VLOOKUP($A37,'1.4 Udbytter (D)'!$A$3:$I$45,7,0) -> 161.7569876 | H37: =VLOOKUP($A37,'1.2 Nettokøb (D)'!$A$4:$I$46,8,0)-VLOOKUP($A37,'1.4 Udbytter (D)'!$A$3:$I$45,8,0) -> 35.70050324 | I37: =VLOOKUP($A37,'1.2 Nettokøb (D)'!$A$4:$I$46,9,0)-VLOOKUP($A37,'1.4 Udbytter (D)'!$A$3:$I$45,9,0) -> 1580.662674 | K37: Nykredit Portefølje Administration | L37: =VLOOKUP($K37,'2.3 Nettokøb (D)'!$A$4:$I$53,2,0)-VLOOKUP($K37,'1.4 Udbytter (D)'!$K$3:$S$52,2,0) -> 9117.640898 | M37: =VLOOKUP($K37,'2.3 Nettokøb (D)'!$A$4:$I$53,3,0)-VLOOKUP($K37,'1.4 Udbytter (D)'!$K$3:$S$52,3,0) -> 7227.263034 | N37: =VLOOKUP($K37,'2.3 Nettokøb (D)'!$A$4:$I$53,4,0)-VLOOKUP($K37,'1.4 Udbytter (D)'!$K$3:$S$52,4,0) -> -11033.17389 | O37: =VLOOKUP($K37,'2.3 Nettokøb (D)'!$A$4:$I$53,5,0)-VLOOKUP($K37,'1.4 Udbytter (D)'!$K$3:$S$52,5,0) -> 79.35392535 | P37: =VLOOKUP($K37,'2.3 Nettokøb (D)'!$A$4:$I$53,6,0)-VLOOKUP($K37,'1.4 Udbytter (D)'!$K$3:$S$52,6,0) -> -6343.262386 | Q37: =VLOOKUP($K37,'2.3 Nettokøb (D)'!$A$4:$I$53,7,0)-VLOOKUP($K37,'1.4 Udbytter (D)'!$K$3:$S$52,7,0) -> -315.3836225 | R37: =VLOOKUP($K37,'2.3 Nettokøb (D)'!$A$4:$I$53,8,0)-VLOOKUP($K37,'1.4 Udbytter (D)'!$K$3:$S$52,8,0) -> -231.0300329 | S37: =VLOOKUP($K37,'2.3 Nettokøb (D)'!$A$4:$I$53,9,0)-VLOOKUP($K37,'1.4 Udbytter (D)'!$K$3:$S$52,9,0) -> -4998.192275
A38: Blandede Høj Aktieandel | B38: =VLOOKUP($A38,'1.2 Nettokøb (D)'!$A$4:$I$46,2,0)-VLOOKUP($A38,'1.4 Udbytter (D)'!$A$3:$I$45,2,0) -> 1660.89524 | C38: =VLOOKUP($A38,'1.2 Nettokøb (D)'!$A$4:$I$46,3,0)-VLOOKUP($A38,'1.4 Udbytter (D)'!$A$3:$I$45,3,0) -> 1629.98183 | D38: =VLOOKUP($A38,'1.2 Nettokøb (D)'!$A$4:$I$46,4,0)-VLOOKUP($A38,'1.4 Udbytter (D)'!$A$3:$I$45,4,0) -> 6886.812533 | E38: =VLOOKUP($A38,'1.2 Nettokøb (D)'!$A$4:$I$46,5,0)-VLOOKUP($A38,'1.4 Udbytter (D)'!$A$3:$I$45,5,0) -> 4513.990289 | F38: =VLOOKUP($A38,'1.2 Nettokøb (D)'!$A$4:$I$46,6,0)-VLOOKUP($A38,'1.4 Udbytter (D)'!$A$3:$I$45,6,0) -> 3617.604858 | G38: =VLOOKUP($A38,'1.2 Nettokøb (D)'!$A$4:$I$46,7,0)-VLOOKUP($A38,'1.4 Udbytter (D)'!$A$3:$I$45,7,0) -> 483.1695541 | H38: =VLOOKUP($A38,'1.2 Nettokøb (D)'!$A$4:$I$46,8,0)-VLOOKUP($A38,'1.4 Udbytter (D)'!$A$3:$I$45,8,0) -> 552.1208465 | I38: =VLOOKUP($A38,'1.2 Nettokøb (D)'!$A$4:$I$46,9,0)-VLOOKUP($A38,'1.4 Udbytter (D)'!$A$3:$I$45,9,0) -> 5043.035382 | K38: PFA Invest | L38: =VLOOKUP($K38,'2.3 Nettokøb (D)'!$A$4:$I$53,2,0)-VLOOKUP($K38,'1.4 Udbytter (D)'!$K$3:$S$52,2,0) -> 2308.558405 | M38: =VLOOKUP($K38,'2.3 Nettokøb (D)'!$A$4:$I$53,3,0)-VLOOKUP($K38,'1.4 Udbytter (D)'!$K$3:$S$52,3,0) -> 2458.577982 | N38: =VLOOKUP($K38,'2.3 Nettokøb (D)'!$A$4:$I$53,4,0)-VLOOKUP($K38,'1.4 Udbytter (D)'!$K$3:$S$52,4,0) -> 1531.671867 | O38: =VLOOKUP($K38,'2.3 Nettokøb (D)'!$A$4:$I$53,5,0)-VLOOKUP($K38,'1.4 Udbytter (D)'!$K$3:$S$52,5,0) -> -616.5829562 | P38: =VLOOKUP($K38,'2.3 Nettokøb (D)'!$A$4:$I$53,6,0)-VLOOKUP($K38,'1.4 Udbytter (D)'!$K$3:$S$52,6,0) -> -2231.313902 | Q38: =VLOOKUP($K38,'2.3 Nettokøb (D)'!$A$4:$I$53,7,0)-VLOOKUP($K38,'1.4 Udbytter (D)'!$K$3:$S$52,7,0) -> -99.73100941 | R38: =VLOOKUP($K38,'2.3 Nettokøb (D)'!$A$4:$I$53,8,0)-VLOOKUP($K38,'1.4 Udbytter (D)'!$K$3:$S$52,8,0) -> -172.3820598 | S38: =VLOOKUP($K38,'2.3 Nettokøb (D)'!$A$4:$I$53,9,0)-VLOOKUP($K38,'1.4 Udbytter (D)'!$K$3:$S$52,9,0) -> -5762.858986
A39: Blandede Lav Aktieandel | B39: =VLOOKUP($A39,'1.2 Nettokøb (D)'!$A$4:$I$46,2,0)-VLOOKUP($A39,'1.4 Udbytter (D)'!$A$3:$I$45,2,0) -> 6318.450884 | C39: =VLOOKUP($A39,'1.2 Nettokøb (D)'!$A$4:$I$46,3,0)-VLOOKUP($A39,'1.4 Udbytter (D)'!$A$3:$I$45,3,0) -> 1967.704746 | D39: =VLOOKUP($A39,'1.2 Nettokøb (D)'!$A$4:$I$46,4,0)-VLOOKUP($A39,'1.4 Udbytter (D)'!$A$3:$I$45,4,0) -> 861.9012246 | E39: =VLOOKUP($A39,'1.2 Nettokøb (D)'!$A$4:$I$46,5,0)-VLOOKUP($A39,'1.4 Udbytter (D)'!$A$3:$I$45,5,0) -> -695.2081153 | F39: =VLOOKUP($A39,'1.2 Nettokøb (D)'!$A$4:$I$46,6,0)-VLOOKUP($A39,'1.4 Udbytter (D)'!$A$3:$I$45,6,0) -> -4431.385099 | G39: =VLOOKUP($A39,'1.2 Nettokøb (D)'!$A$4:$I$46,7,0)-VLOOKUP($A39,'1.4 Udbytter (D)'!$A$3:$I$45,7,0) -> -219.6908532 | H39: =VLOOKUP($A39,'1.2 Nettokøb (D)'!$A$4:$I$46,8,0)-VLOOKUP($A39,'1.4 Udbytter (D)'!$A$3:$I$45,8,0) -> -275.3136249 | I39: =VLOOKUP($A39,'1.2 Nettokøb (D)'!$A$4:$I$46,9,0)-VLOOKUP($A39,'1.4 Udbytter (D)'!$A$3:$I$45,9,0) -> -4526.329811 | K39: PortfolioManager | L39: =VLOOKUP($K39,'2.3 Nettokøb (D)'!$A$4:$I$53,2,0)-VLOOKUP($K39,'1.4 Udbytter (D)'!$K$3:$S$52,2,0) -> 291.1005728 | M39: =VLOOKUP($K39,'2.3 Nettokøb (D)'!$A$4:$I$53,3,0)-VLOOKUP($K39,'1.4 Udbytter (D)'!$K$3:$S$52,3,0) -> 385.5734289 | N39: =VLOOKUP($K39,'2.3 Nettokøb (D)'!$A$4:$I$53,4,0)-VLOOKUP($K39,'1.4 Udbytter (D)'!$K$3:$S$52,4,0) -> 564.533734 | O39: =VLOOKUP($K39,'2.3 Nettokøb (D)'!$A$4:$I$53,5,0)-VLOOKUP($K39,'1.4 Udbytter (D)'!$K$3:$S$52,5,0) -> 100.6751509 | P39: =VLOOKUP($K39,'2.3 Nettokøb (D)'!$A$4:$I$53,6,0)-VLOOKUP($K39,'1.4 Udbytter (D)'!$K$3:$S$52,6,0) -> -520.030652 | Q39: =VLOOKUP($K39,'2.3 Nettokøb (D)'!$A$4:$I$53,7,0)-VLOOKUP($K39,'1.4 Udbytter (D)'!$K$3:$S$52,7,0) -> 76.51870852 | R39: =VLOOKUP($K39,'2.3 Nettokøb (D)'!$A$4:$I$53,8,0)-VLOOKUP($K39,'1.4 Udbytter (D)'!$K$3:$S$52,8,0) -> 85.13145424 | S39: =VLOOKUP($K39,'2.3 Nettokøb (D)'!$A$4:$I$53,9,0)-VLOOKUP($K39,'1.4 Udbytter (D)'!$K$3:$S$52,9,0) -> 108.5458416
A40: Blandede i alt | B40: =VLOOKUP($A40,'1.2 Nettokøb (D)'!$A$4:$I$46,2,0)-VLOOKUP($A40,'1.4 Udbytter (D)'!$A$3:$I$45,2,0) -> 19397.23323 | C40: =VLOOKUP($A40,'1.2 Nettokøb (D)'!$A$4:$I$46,3,0)-VLOOKUP($A40,'1.4 Udbytter (D)'!$A$3:$I$45,3,0) -> 22851.69435 | D40: =VLOOKUP($A40,'1.2 Nettokøb (D)'!$A$4:$I$46,4,0)-VLOOKUP($A40,'1.4 Udbytter (D)'!$A$3:$I$45,4,0) -> 25948.71432 | E40: =VLOOKUP($A40,'1.2 Nettokøb (D)'!$A$4:$I$46,5,0)-VLOOKUP($A40,'1.4 Udbytter (D)'!$A$3:$I$45,5,0) -> 3044.14481 | F40: =VLOOKUP($A40,'1.2 Nettokøb (D)'!$A$4:$I$46,6,0)-VLOOKUP($A40,'1.4 Udbytter (D)'!$A$3:$I$45,6,0) -> -6052.630921 | G40: =VLOOKUP($A40,'1.2 Nettokøb (D)'!$A$4:$I$46,7,0)-VLOOKUP($A40,'1.4 Udbytter (D)'!$A$3:$I$45,7,0) -> 82.12060555 | H40: =VLOOKUP($A40,'1.2 Nettokøb (D)'!$A$4:$I$46,8,0)-VLOOKUP($A40,'1.4 Udbytter (D)'!$A$3:$I$45,8,0) -> 235.0468519 | I40: =VLOOKUP($A40,'1.2 Nettokøb (D)'!$A$4:$I$46,9,0)-VLOOKUP($A40,'1.4 Udbytter (D)'!$A$3:$I$45,9,0) -> 691.8979239 | K40: SEBinvest | L40: =VLOOKUP($K40,'2.3 Nettokøb (D)'!$A$4:$I$53,2,0)-VLOOKUP($K40,'1.4 Udbytter (D)'!$K$3:$S$52,2,0) -> -2179.400784 | M40: =VLOOKUP($K40,'2.3 Nettokøb (D)'!$A$4:$I$53,3,0)-VLOOKUP($K40,'1.4 Udbytter (D)'!$K$3:$S$52,3,0) -> 1599.32705 | N40: =VLOOKUP($K40,'2.3 Nettokøb (D)'!$A$4:$I$53,4,0)-VLOOKUP($K40,'1.4 Udbytter (D)'!$K$3:$S$52,4,0) -> -147.841988 | O40: =VLOOKUP($K40,'2.3 Nettokøb (D)'!$A$4:$I$53,5,0)-VLOOKUP($K40,'1.4 Udbytter (D)'!$K$3:$S$52,5,0) -> -1174.150537 | P40: =VLOOKUP($K40,'2.3 Nettokøb (D)'!$A$4:$I$53,6,0)-VLOOKUP($K40,'1.4 Udbytter (D)'!$K$3:$S$52,6,0) -> -1977.876564 | Q40: =VLOOKUP($K40,'2.3 Nettokøb (D)'!$A$4:$I$53,7,0)-VLOOKUP($K40,'1.4 Udbytter (D)'!$K$3:$S$52,7,0) -> 23.360585 | R40: =VLOOKUP($K40,'2.3 Nettokøb (D)'!$A$4:$I$53,8,0)-VLOOKUP($K40,'1.4 Udbytter (D)'!$K$3:$S$52,8,0) -> -86.448114 | S40: =VLOOKUP($K40,'2.3 Nettokøb (D)'!$A$4:$I$53,9,0)-VLOOKUP($K40,'1.4 Udbytter (D)'!$K$3:$S$52,9,0) -> -1409.437665
A41: Kapitalforeninger Blandede | B41: =VLOOKUP($A41,'1.2 Nettokøb (D)'!$A$4:$I$46,2,0)-VLOOKUP($A41,'1.4 Udbytter (D)'!$A$3:$I$45,2,0) -> 2332.311436 | C41: =VLOOKUP($A41,'1.2 Nettokøb (D)'!$A$4:$I$46,3,0)-VLOOKUP($A41,'1.4 Udbytter (D)'!$A$3:$I$45,3,0) -> 11069.07751 | D41: =VLOOKUP($A41,'1.2 Nettokøb (D)'!$A$4:$I$46,4,0)-VLOOKUP($A41,'1.4 Udbytter (D)'!$A$3:$I$45,4,0) -> -15748.81748 | E41: =VLOOKUP($A41,'1.2 Nettokøb (D)'!$A$4:$I$46,5,0)-VLOOKUP($A41,'1.4 Udbytter (D)'!$A$3:$I$45,5,0) -> -1980.127355 | F41: =VLOOKUP($A41,'1.2 Nettokøb (D)'!$A$4:$I$46,6,0)-VLOOKUP($A41,'1.4 Udbytter (D)'!$A$3:$I$45,6,0) -> -728.5853662 | G41: =VLOOKUP($A41,'1.2 Nettokøb (D)'!$A$4:$I$46,7,0)-VLOOKUP($A41,'1.4 Udbytter (D)'!$A$3:$I$45,7,0) -> 8.06658543 | H41: =VLOOKUP($A41,'1.2 Nettokøb (D)'!$A$4:$I$46,8,0)-VLOOKUP($A41,'1.4 Udbytter (D)'!$A$3:$I$45,8,0) -> 1858.143407 | I41: =VLOOKUP($A41,'1.2 Nettokøb (D)'!$A$4:$I$46,9,0)-VLOOKUP($A41,'1.4 Udbytter (D)'!$A$3:$I$45,9,0) -> 2845.438884 | K41: Selected Investments | L41: =VLOOKUP($K41,'2.3 Nettokøb (D)'!$A$4:$I$53,2,0)-VLOOKUP($K41,'1.4 Udbytter (D)'!$K$3:$S$52,2,0) -> 0 | M41: =VLOOKUP($K41,'2.3 Nettokøb (D)'!$A$4:$I$53,3,0)-VLOOKUP($K41,'1.4 Udbytter (D)'!$K$3:$S$52,3,0) -> 677.940958 | N41: =VLOOKUP($K41,'2.3 Nettokøb (D)'!$A$4:$I$53,4,0)-VLOOKUP($K41,'1.4 Udbytter (D)'!$K$3:$S$52,4,0) -> -156.239592 | O41: =VLOOKUP($K41,'2.3 Nettokøb (D)'!$A$4:$I$53,5,0)-VLOOKUP($K41,'1.4 Udbytter (D)'!$K$3:$S$52,5,0) -> 52.044614 | P41: =VLOOKUP($K41,'2.3 Nettokøb (D)'!$A$4:$I$53,6,0)-VLOOKUP($K41,'1.4 Udbytter (D)'!$K$3:$S$52,6,0) -> 4.54331 | Q41: =VLOOKUP($K41,'2.3 Nettokøb (D)'!$A$4:$I$53,7,0)-VLOOKUP($K41,'1.4 Udbytter (D)'!$K$3:$S$52,7,0) -> -20.649767 | R41: =VLOOKUP($K41,'2.3 Nettokøb (D)'!$A$4:$I$53,8,0)-VLOOKUP($K41,'1.4 Udbytter (D)'!$K$3:$S$52,8,0) -> -4.084826 | S41: =VLOOKUP($K41,'2.3 Nettokøb (D)'!$A$4:$I$53,9,0)-VLOOKUP($K41,'1.4 Udbytter (D)'!$K$3:$S$52,9,0) -> -6.571193
A42: Kapitalforeninger Øvrige | B42: =VLOOKUP($A42,'1.2 Nettokøb (D)'!$A$4:$I$46,2,0)-VLOOKUP($A42,'1.4 Udbytter (D)'!$A$3:$I$45,2,0) -> 373.5381178 | C42: =VLOOKUP($A42,'1.2 Nettokøb (D)'!$A$4:$I$46,3,0)-VLOOKUP($A42,'1.4 Udbytter (D)'!$A$3:$I$45,3,0) -> 434.7842949 | D42: =VLOOKUP($A42,'1.2 Nettokøb (D)'!$A$4:$I$46,4,0)-VLOOKUP($A42,'1.4 Udbytter (D)'!$A$3:$I$45,4,0) -> 294.8739693 | E42: =VLOOKUP($A42,'1.2 Nettokøb (D)'!$A$4:$I$46,5,0)-VLOOKUP($A42,'1.4 Udbytter (D)'!$A$3:$I$45,5,0) -> 108.1663877 | F42: =VLOOKUP($A42,'1.2 Nettokøb (D)'!$A$4:$I$46,6,0)-VLOOKUP($A42,'1.4 Udbytter (D)'!$A$3:$I$45,6,0) -> 953.8520558 | G42: =VLOOKUP($A42,'1.2 Nettokøb (D)'!$A$4:$I$46,7,0)-VLOOKUP($A42,'1.4 Udbytter (D)'!$A$3:$I$45,7,0) -> -5.235242487 | H42: =VLOOKUP($A42,'1.2 Nettokøb (D)'!$A$4:$I$46,8,0)-VLOOKUP($A42,'1.4 Udbytter (D)'!$A$3:$I$45,8,0) -> 66.26988448 | I42: =VLOOKUP($A42,'1.2 Nettokøb (D)'!$A$4:$I$46,9,0)-VLOOKUP($A42,'1.4 Udbytter (D)'!$A$3:$I$45,9,0) -> 236.5942121 | K42: SparDanmark | L42: =VLOOKUP($K42,'2.3 Nettokøb (D)'!$A$4:$I$53,2,0)-VLOOKUP($K42,'1.4 Udbytter (D)'!$K$3:$S$52,2,0) -> 0 | M42: =VLOOKUP($K42,'2.3 Nettokøb (D)'!$A$4:$I$53,3,0)-VLOOKUP($K42,'1.4 Udbytter (D)'!$K$3:$S$52,3,0) -> 0 | N42: =VLOOKUP($K42,'2.3 Nettokøb (D)'!$A$4:$I$53,4,0)-VLOOKUP($K42,'1.4 Udbytter (D)'!$K$3:$S$52,4,0) -> 0 | O42: =VLOOKUP($K42,'2.3 Nettokøb (D)'!$A$4:$I$53,5,0)-VLOOKUP($K42,'1.4 Udbytter (D)'!$K$3:$S$52,5,0) -> 3719.529837 | P42: =VLOOKUP($K42,'2.3 Nettokøb (D)'!$A$4:$I$53,6,0)-VLOOKUP($K42,'1.4 Udbytter (D)'!$K$3:$S$52,6,0) -> 472.0644953 | Q42: =VLOOKUP($K42,'2.3 Nettokøb (D)'!$A$4:$I$53,7,0)-VLOOKUP($K42,'1.4 Udbytter (D)'!$K$3:$S$52,7,0) -> 79.32453621 | R42: =VLOOKUP($K42,'2.3 Nettokøb (D)'!$A$4:$I$53,8,0)-VLOOKUP($K42,'1.4 Udbytter (D)'!$K$3:$S$52,8,0) -> 138.3632545 | S42: =VLOOKUP($K42,'2.3 Nettokøb (D)'!$A$4:$I$53,9,0)-VLOOKUP($K42,'1.4 Udbytter (D)'!$K$3:$S$52,9,0) -> 774.5712361
A43: Kapitalforeninger Hedgestrategier | B43: =VLOOKUP($A43,'1.2 Nettokøb (D)'!$A$4:$I$46,2,0)-VLOOKUP($A43,'1.4 Udbytter (D)'!$A$3:$I$45,2,0) -> 2125.540377 | C43: =VLOOKUP($A43,'1.2 Nettokøb (D)'!$A$4:$I$46,3,0)-VLOOKUP($A43,'1.4 Udbytter (D)'!$A$3:$I$45,3,0) -> -586.610522 | D43: =VLOOKUP($A43,'1.2 Nettokøb (D)'!$A$4:$I$46,4,0)-VLOOKUP($A43,'1.4 Udbytter (D)'!$A$3:$I$45,4,0) -> -2372.873167 | E43: =VLOOKUP($A43,'1.2 Nettokøb (D)'!$A$4:$I$46,5,0)-VLOOKUP($A43,'1.4 Udbytter (D)'!$A$3:$I$45,5,0) -> -1773.680292 | F43: =VLOOKUP($A43,'1.2 Nettokøb (D)'!$A$4:$I$46,6,0)-VLOOKUP($A43,'1.4 Udbytter (D)'!$A$3:$I$45,6,0) -> -3656.69065 | G43: =VLOOKUP($A43,'1.2 Nettokøb (D)'!$A$4:$I$46,7,0)-VLOOKUP($A43,'1.4 Udbytter (D)'!$A$3:$I$45,7,0) -> -158.626174 | H43: =VLOOKUP($A43,'1.2 Nettokøb (D)'!$A$4:$I$46,8,0)-VLOOKUP($A43,'1.4 Udbytter (D)'!$A$3:$I$45,8,0) -> -610.1516803 | I43: =VLOOKUP($A43,'1.2 Nettokøb (D)'!$A$4:$I$46,9,0)-VLOOKUP($A43,'1.4 Udbytter (D)'!$A$3:$I$45,9,0) -> -4015.818281 | K43: Sparinvest | L43: =VLOOKUP($K43,'2.3 Nettokøb (D)'!$A$4:$I$53,2,0)-VLOOKUP($K43,'1.4 Udbytter (D)'!$K$3:$S$52,2,0) -> 2006.755091 | M43: =VLOOKUP($K43,'2.3 Nettokøb (D)'!$A$4:$I$53,3,0)-VLOOKUP($K43,'1.4 Udbytter (D)'!$K$3:$S$52,3,0) -> 3736.259614 | N43: =VLOOKUP($K43,'2.3 Nettokøb (D)'!$A$4:$I$53,4,0)-VLOOKUP($K43,'1.4 Udbytter (D)'!$K$3:$S$52,4,0) -> 9984.785924 | O43: =VLOOKUP($K43,'2.3 Nettokøb (D)'!$A$4:$I$53,5,0)-VLOOKUP($K43,'1.4 Udbytter (D)'!$K$3:$S$52,5,0) -> 2565.767845 | P43: =VLOOKUP($K43,'2.3 Nettokøb (D)'!$A$4:$I$53,6,0)-VLOOKUP($K43,'1.4 Udbytter (D)'!$K$3:$S$52,6,0) -> 12772.42335 | Q43: =VLOOKUP($K43,'2.3 Nettokøb (D)'!$A$4:$I$53,7,0)-VLOOKUP($K43,'1.4 Udbytter (D)'!$K$3:$S$52,7,0) -> 640.2520361 | R43: =VLOOKUP($K43,'2.3 Nettokøb (D)'!$A$4:$I$53,8,0)-VLOOKUP($K43,'1.4 Udbytter (D)'!$K$3:$S$52,8,0) -> -984.675358 | S43: =VLOOKUP($K43,'2.3 Nettokøb (D)'!$A$4:$I$53,9,0)-VLOOKUP($K43,'1.4 Udbytter (D)'!$K$3:$S$52,9,0) -> 5173.236935
A44: Andre Alternative Investeringsfonde | B44: =VLOOKUP($A44,'1.2 Nettokøb (D)'!$A$4:$I$46,2,0)-VLOOKUP($A44,'1.4 Udbytter (D)'!$A$3:$I$45,2,0) -> -4.732819 | C44: =VLOOKUP($A44,'1.2 Nettokøb (D)'!$A$4:$I$46,3,0)-VLOOKUP($A44,'1.4 Udbytter (D)'!$A$3:$I$45,3,0) -> 0 | D44: =VLOOKUP($A44,'1.2 Nettokøb (D)'!$A$4:$I$46,4,0)-VLOOKUP($A44,'1.4 Udbytter (D)'!$A$3:$I$45,4,0) -> 0 | E44: =VLOOKUP($A44,'1.2 Nettokøb (D)'!$A$4:$I$46,5,0)-VLOOKUP($A44,'1.4 Udbytter (D)'!$A$3:$I$45,5,0) -> 545.4014729 | F44: =VLOOKUP($A44,'1.2 Nettokøb (D)'!$A$4:$I$46,6,0)-VLOOKUP($A44,'1.4 Udbytter (D)'!$A$3:$I$45,6,0) -> 121.0601972 | G44: =VLOOKUP($A44,'1.2 Nettokøb (D)'!$A$4:$I$46,7,0)-VLOOKUP($A44,'1.4 Udbytter (D)'!$A$3:$I$45,7,0) -> -7.24477215 | H44: =VLOOKUP($A44,'1.2 Nettokøb (D)'!$A$4:$I$46,8,0)-VLOOKUP($A44,'1.4 Udbytter (D)'!$A$3:$I$45,8,0) -> 40.01225805 | I44: =VLOOKUP($A44,'1.2 Nettokøb (D)'!$A$4:$I$46,9,0)-VLOOKUP($A44,'1.4 Udbytter (D)'!$A$3:$I$45,9,0) -> 434.5252549 | K44: StockRate Invest | L44: =VLOOKUP($K44,'2.3 Nettokøb (D)'!$A$4:$I$53,2,0)-VLOOKUP($K44,'1.4 Udbytter (D)'!$K$3:$S$52,2,0) -> 25.115159 | M44: =VLOOKUP($K44,'2.3 Nettokøb (D)'!$A$4:$I$53,3,0)-VLOOKUP($K44,'1.4 Udbytter (D)'!$K$3:$S$52,3,0) -> 38.5714145 | N44: =VLOOKUP($K44,'2.3 Nettokøb (D)'!$A$4:$I$53,4,0)-VLOOKUP($K44,'1.4 Udbytter (D)'!$K$3:$S$52,4,0) -> 247.419305 | O44: =VLOOKUP($K44,'2.3 Nettokøb (D)'!$A$4:$I$53,5,0)-VLOOKUP($K44,'1.4 Udbytter (D)'!$K$3:$S$52,5,0) -> 78.236208 | P44: =VLOOKUP($K44,'2.3 Nettokøb (D)'!$A$4:$I$53,6,0)-VLOOKUP($K44,'1.4 Udbytter (D)'!$K$3:$S$52,6,0) -> 75.512683 | Q44: =VLOOKUP($K44,'2.3 Nettokøb (D)'!$A$4:$I$53,7,0)-VLOOKUP($K44,'1.4 Udbytter (D)'!$K$3:$S$52,7,0) -> 36.853652 | R44: =VLOOKUP($K44,'2.3 Nettokøb (D)'!$A$4:$I$53,8,0)-VLOOKUP($K44,'1.4 Udbytter (D)'!$K$3:$S$52,8,0) -> 8.235716 | S44: =VLOOKUP($K44,'2.3 Nettokøb (D)'!$A$4:$I$53,9,0)-VLOOKUP($K44,'1.4 Udbytter (D)'!$K$3:$S$52,9,0) -> 245.768184
A45: I alt danske foreninger | B45: =B3+B21+B26+B33+B34+B35+B40+B41+B42+B43+B44 -> 24299.85862 | C45: 60185.54934 | D45: 53020.08685 | E45: -30479.39105 | F45: -12392.0311 | G45: 2841.842216 | H45: -569.1951664 | I45: 17468.28533 | K45: Stonehenge | L45: =VLOOKUP($K45,'2.3 Nettokøb (D)'!$A$4:$I$53,2,0)-VLOOKUP($K45,'1.4 Udbytter (D)'!$K$3:$S$52,2,0) -> 122.1625418 | M45: =VLOOKUP($K45,'2.3 Nettokøb (D)'!$A$4:$I$53,3,0)-VLOOKUP($K45,'1.4 Udbytter (D)'!$K$3:$S$52,3,0) -> 88.2608348 | N45: =VLOOKUP($K45,'2.3 Nettokøb (D)'!$A$4:$I$53,4,0)-VLOOKUP($K45,'1.4 Udbytter (D)'!$K$3:$S$52,4,0) -> 4.04014884 | O45: =VLOOKUP($K45,'2.3 Nettokøb (D)'!$A$4:$I$53,5,0)-VLOOKUP($K45,'1.4 Udbytter (D)'!$K$3:$S$52,5,0) -> 58.3361058 | P45: =VLOOKUP($K45,'2.3 Nettokøb (D)'!$A$4:$I$53,6,0)-VLOOKUP($K45,'1.4 Udbytter (D)'!$K$3:$S$52,6,0) -> -217.1709327 | Q45: =VLOOKUP($K45,'2.3 Nettokøb (D)'!$A$4:$I$53,7,0)-VLOOKUP($K45,'1.4 Udbytter (D)'!$K$3:$S$52,7,0) -> -14.4471125 | R45: =VLOOKUP($K45,'2.3 Nettokøb (D)'!$A$4:$I$53,8,0)-VLOOKUP($K45,'1.4 Udbytter (D)'!$K$3:$S$52,8,0) -> -8.69060114 | S45: =VLOOKUP($K45,'2.3 Nettokøb (D)'!$A$4:$I$53,9,0)-VLOOKUP($K45,'1.4 Udbytter (D)'!$K$3:$S$52,9,0) -> -294.0479782
A46: * Nettoflow er nettokøb, brutto korrigeret for udbytte. | K46: Strategi Invest | L46: =VLOOKUP($K46,'2.3 Nettokøb (D)'!$A$4:$I$53,2,0)-VLOOKUP($K46,'1.4 Udbytter (D)'!$K$3:$S$52,2,0) -> 0 | M46: =VLOOKUP($K46,'2.3 Nettokøb (D)'!$A$4:$I$53,3,0)-VLOOKUP($K46,'1.4 Udbytter (D)'!$K$3:$S$52,3,0) -> 0 | N46: =VLOOKUP($K46,'2.3 Nettokøb (D)'!$A$4:$I$53,4,0)-VLOOKUP($K46,'1.4 Udbytter (D)'!$K$3:$S$52,4,0) -> 0 | O46: =VLOOKUP($K46,'2.3 Nettokøb (D)'!$A$4:$I$53,5,0)-VLOOKUP($K46,'1.4 Udbytter (D)'!$K$3:$S$52,5,0) -> 0 | P46: =VLOOKUP($K46,'2.3 Nettokøb (D)'!$A$4:$I$53,6,0)-VLOOKUP($K46,'1.4 Udbytter (D)'!$K$3:$S$52,6,0) -> 0 | Q46: =VLOOKUP($K46,'2.3 Nettokøb (D)'!$A$4:$I$53,7,0)-VLOOKUP($K46,'1.4 Udbytter (D)'!$K$3:$S$52,7,0) -> 0 | R46: =VLOOKUP($K46,'2.3 Nettokøb (D)'!$A$4:$I$53,8,0)-VLOOKUP($K46,'1.4 Udbytter (D)'!$K$3:$S$52,8,0) -> 0 | S46: =VLOOKUP($K46,'2.3 Nettokøb (D)'!$A$4:$I$53,9,0)-VLOOKUP($K46,'1.4 Udbytter (D)'!$K$3:$S$52,9,0) -> 0
K47: Sydinvest | L47: =VLOOKUP($K47,'2.3 Nettokøb (D)'!$A$4:$I$53,2,0)-VLOOKUP($K47,'1.4 Udbytter (D)'!$K$3:$S$52,2,0) -> 969.9893596 | M47: =VLOOKUP($K47,'2.3 Nettokøb (D)'!$A$4:$I$53,3,0)-VLOOKUP($K47,'1.4 Udbytter (D)'!$K$3:$S$52,3,0) -> 6425.398699 | N47: =VLOOKUP($K47,'2.3 Nettokøb (D)'!$A$4:$I$53,4,0)-VLOOKUP($K47,'1.4 Udbytter (D)'!$K$3:$S$52,4,0) -> 14822.6087 | O47: =VLOOKUP($K47,'2.3 Nettokøb (D)'!$A$4:$I$53,5,0)-VLOOKUP($K47,'1.4 Udbytter (D)'!$K$3:$S$52,5,0) -> 4148.949691 | P47: =VLOOKUP($K47,'2.3 Nettokøb (D)'!$A$4:$I$53,6,0)-VLOOKUP($K47,'1.4 Udbytter (D)'!$K$3:$S$52,6,0) -> 464.5151036 | Q47: =VLOOKUP($K47,'2.3 Nettokøb (D)'!$A$4:$I$53,7,0)-VLOOKUP($K47,'1.4 Udbytter (D)'!$K$3:$S$52,7,0) -> 506.7562142 | R47: =VLOOKUP($K47,'2.3 Nettokøb (D)'!$A$4:$I$53,8,0)-VLOOKUP($K47,'1.4 Udbytter (D)'!$K$3:$S$52,8,0) -> 651.9582594 | S47: =VLOOKUP($K47,'2.3 Nettokøb (D)'!$A$4:$I$53,9,0)-VLOOKUP($K47,'1.4 Udbytter (D)'!$K$3:$S$52,9,0) -> 6449.122835
K48: TRP-Invest | L48: =VLOOKUP($K48,'2.3 Nettokøb (D)'!$A$4:$I$53,2,0)-VLOOKUP($K48,'1.4 Udbytter (D)'!$K$3:$S$52,2,0) -> -294.1319876 | M48: =VLOOKUP($K48,'2.3 Nettokøb (D)'!$A$4:$I$53,3,0)-VLOOKUP($K48,'1.4 Udbytter (D)'!$K$3:$S$52,3,0) -> 22.94828859 | N48: =VLOOKUP($K48,'2.3 Nettokøb (D)'!$A$4:$I$53,4,0)-VLOOKUP($K48,'1.4 Udbytter (D)'!$K$3:$S$52,4,0) -> 572.2889989 | O48: =VLOOKUP($K48,'2.3 Nettokøb (D)'!$A$4:$I$53,5,0)-VLOOKUP($K48,'1.4 Udbytter (D)'!$K$3:$S$52,5,0) -> -734.7939446 | P48: =VLOOKUP($K48,'2.3 Nettokøb (D)'!$A$4:$I$53,6,0)-VLOOKUP($K48,'1.4 Udbytter (D)'!$K$3:$S$52,6,0) -> -71.83884353 | Q48: =VLOOKUP($K48,'2.3 Nettokøb (D)'!$A$4:$I$53,7,0)-VLOOKUP($K48,'1.4 Udbytter (D)'!$K$3:$S$52,7,0) -> 0 | R48: =VLOOKUP($K48,'2.3 Nettokøb (D)'!$A$4:$I$53,8,0)-VLOOKUP($K48,'1.4 Udbytter (D)'!$K$3:$S$52,8,0) -> 0 | S48: =VLOOKUP($K48,'2.3 Nettokøb (D)'!$A$4:$I$53,9,0)-VLOOKUP($K48,'1.4 Udbytter (D)'!$K$3:$S$52,9,0) -> 0
K49: Tryg Invest AIF-SIKAV | L49: =VLOOKUP($K49,'2.3 Nettokøb (D)'!$A$4:$I$53,2,0)-VLOOKUP($K49,'1.4 Udbytter (D)'!$K$3:$S$52,2,0) -> 0 | M49: =VLOOKUP($K49,'2.3 Nettokøb (D)'!$A$4:$I$53,3,0)-VLOOKUP($K49,'1.4 Udbytter (D)'!$K$3:$S$52,3,0) -> 0 | N49: =VLOOKUP($K49,'2.3 Nettokøb (D)'!$A$4:$I$53,4,0)-VLOOKUP($K49,'1.4 Udbytter (D)'!$K$3:$S$52,4,0) -> 0 | O49: =VLOOKUP($K49,'2.3 Nettokøb (D)'!$A$4:$I$53,5,0)-VLOOKUP($K49,'1.4 Udbytter (D)'!$K$3:$S$52,5,0) -> 0 | P49: =VLOOKUP($K49,'2.3 Nettokøb (D)'!$A$4:$I$53,6,0)-VLOOKUP($K49,'1.4 Udbytter (D)'!$K$3:$S$52,6,0) -> 0 | Q49: =VLOOKUP($K49,'2.3 Nettokøb (D)'!$A$4:$I$53,7,0)-VLOOKUP($K49,'1.4 Udbytter (D)'!$K$3:$S$52,7,0) -> 0 | R49: =VLOOKUP($K49,'2.3 Nettokøb (D)'!$A$4:$I$53,8,0)-VLOOKUP($K49,'1.4 Udbytter (D)'!$K$3:$S$52,8,0) -> 0 | S49: =VLOOKUP($K49,'2.3 Nettokøb (D)'!$A$4:$I$53,9,0)-VLOOKUP($K49,'1.4 Udbytter (D)'!$K$3:$S$52,9,0) -> 0
K50: ValueInvest Danmark | L50: =VLOOKUP($K50,'2.3 Nettokøb (D)'!$A$4:$I$53,2,0)-VLOOKUP($K50,'1.4 Udbytter (D)'!$K$3:$S$52,2,0) -> -946.9204714 | M50: =VLOOKUP($K50,'2.3 Nettokøb (D)'!$A$4:$I$53,3,0)-VLOOKUP($K50,'1.4 Udbytter (D)'!$K$3:$S$52,3,0) -> -938.9544525 | N50: =VLOOKUP($K50,'2.3 Nettokøb (D)'!$A$4:$I$53,4,0)-VLOOKUP($K50,'1.4 Udbytter (D)'!$K$3:$S$52,4,0) -> -596.7905909 | O50: =VLOOKUP($K50,'2.3 Nettokøb (D)'!$A$4:$I$53,5,0)-VLOOKUP($K50,'1.4 Udbytter (D)'!$K$3:$S$52,5,0) -> -722.2063479 | P50: =VLOOKUP($K50,'2.3 Nettokøb (D)'!$A$4:$I$53,6,0)-VLOOKUP($K50,'1.4 Udbytter (D)'!$K$3:$S$52,6,0) -> -1357.88912 | Q50: =VLOOKUP($K50,'2.3 Nettokøb (D)'!$A$4:$I$53,7,0)-VLOOKUP($K50,'1.4 Udbytter (D)'!$K$3:$S$52,7,0) -> -35.65724866 | R50: =VLOOKUP($K50,'2.3 Nettokøb (D)'!$A$4:$I$53,8,0)-VLOOKUP($K50,'1.4 Udbytter (D)'!$K$3:$S$52,8,0) -> -402.7848854 | S50: =VLOOKUP($K50,'2.3 Nettokøb (D)'!$A$4:$I$53,9,0)-VLOOKUP($K50,'1.4 Udbytter (D)'!$K$3:$S$52,9,0) -> -834.1286455
K51: Wealth Invest | L51: =VLOOKUP($K51,'2.3 Nettokøb (D)'!$A$4:$I$53,2,0)-VLOOKUP($K51,'1.4 Udbytter (D)'!$K$3:$S$52,2,0) -> -1885.270288 | M51: =VLOOKUP($K51,'2.3 Nettokøb (D)'!$A$4:$I$53,3,0)-VLOOKUP($K51,'1.4 Udbytter (D)'!$K$3:$S$52,3,0) -> 1602.245428 | N51: =VLOOKUP($K51,'2.3 Nettokøb (D)'!$A$4:$I$53,4,0)-VLOOKUP($K51,'1.4 Udbytter (D)'!$K$3:$S$52,4,0) -> 2857.142004 | O51: =VLOOKUP($K51,'2.3 Nettokøb (D)'!$A$4:$I$53,5,0)-VLOOKUP($K51,'1.4 Udbytter (D)'!$K$3:$S$52,5,0) -> -691.7505337 | P51: =VLOOKUP($K51,'2.3 Nettokøb (D)'!$A$4:$I$53,6,0)-VLOOKUP($K51,'1.4 Udbytter (D)'!$K$3:$S$52,6,0) -> -1555.568773 | Q51: =VLOOKUP($K51,'2.3 Nettokøb (D)'!$A$4:$I$53,7,0)-VLOOKUP($K51,'1.4 Udbytter (D)'!$K$3:$S$52,7,0) -> 756.931107 | R51: =VLOOKUP($K51,'2.3 Nettokøb (D)'!$A$4:$I$53,8,0)-VLOOKUP($K51,'1.4 Udbytter (D)'!$K$3:$S$52,8,0) -> -428.268449 | S51: =VLOOKUP($K51,'2.3 Nettokøb (D)'!$A$4:$I$53,9,0)-VLOOKUP($K51,'1.4 Udbytter (D)'!$K$3:$S$52,9,0) -> 229.949678
